Workbook

Sheet Online Assessment tool
B2: Offline Assessment Tool V1.92 | H2: Printed: | J2: =NOW() -> 2026-03-15T22:47:06.820 | S2: Applicants name | AJ2: Month | AK2: =MONTH(J2) -> 3 | AN2: Age in mnths | AO2: mnths till 65 | AP2: loan bal at 65 | AR2: super at 65 | AU2: ` | BA2: =VLOOKUP(AK2,AV64:AW75,2,FALSE) -> 2 | BB2: CHILDS AGE | BF2: STANDARD STAMP DUTY ON PURCHASE | BL2: CONCESSIONAL STAMP DUTY ON PURCHASE | BT2: YES | BU2: Abstudy | BX2: Annually | BY2: wkly | BZ2: Term of | CD2: 7 | CF2: Established | CI2: age of applicants | CK2: check<18 | CL2: Yes | CN2: drop down box - click here | CP2: =I4 -> 0 | CR2: Perth metro / Country | CT2: Prior to 30 June 2017
H3: Filename: | J3: =MID(Admin_loan_variables!A1,(SEARCH("[",Admin_loan_variables!A1,1)+1),((SEARCH("]",Admin_loan_variables!A1,1)-(SEARCH("[",Admin_loan_variables!A1,1))))-1) -> Offline Calc. v1.92 effective 15 October 2025 (2).xlsm | S3: Compiled by | BA3: =IF(G7>0,SUM(($J$2-G7)/365)*12,0) -> 0 | BB3: 0 | BC3: 0 | BR3: App 1 | BT3: NO | BU3: Age Pension - Single | BX3: Fortnightly | BY3: f/n | BZ3: months is not the standard of | CD3: 14 | CF3: Construction | CI3: =SUM($J$2-G7)/365.25 -> 126.2065692 | CJ3: =SUM($G$7)+6574 -> 1917-12-30 | CK3: =IF(CJ3>$J$2,"Applicant 1 is under 18 "," ") ->  | CL3: N/A | CN3: Home renovations | CP3: =I5 -> 0 | CR3: North West remote | CT3: After 1 July 2017
B4: Number of single applicants | S4: Loan Number | AH4: AT AGE 65 | AU4: Age 65yrs to end of loan | AW4: Value remaining @ 65 | AX4: =Admin_LAM_variables!D34+Admin_LAM_variables!D49 -> 0.081 | AY4: Current Pension | AZ4: servicing of remaining debt | BA4: =IF(G8>0,SUM(($J$2-G8)/365)*12,0) -> 0 | BB4: 1 | BC4: =VLOOKUP(BB4,Admin_Depend_assess_rates!$B$5:$C$30,2,FALSE) -> 1 | BD4: AA | BF4: Stamp Duty Rate Table | BL4: Stamp Duty Rate Table | BR4: App 2 | BU4: Age Pension - Partnered | BX4: Weekly | BY4: mth | BZ4: months | CI4: =SUM($J$2-G8)/365.25 -> 126.2065692 | CJ4: =SUM($G$8)+6574.5 -> 1917-12-30T12:00:00 | CK4: =IF(CJ4>$J$2,"Applicant 2 is under 18 "," ") ->  | CN4: Home renovations & debts | CP4: =SUM(CP2:CP3) -> 0
B5: Number of Couples | S5: Age of Dependents | AH5: Taxable income OLDEST | AL5: =IF($BA$3>$BA$4,($K$10+$K$11+$K$12+$K$13+K16),($Y$10+$Y$11+$Y$12+$Y$13+Y16)) -> 0 | AN5: =IF($BA$3>$BA$4,$BA$3,$BA$4) -> 0 | AO5: =IF(SUM(780-AN5)<0,0,(780-AN5)) -> 780 | AP5: =IF((AO5-F40)<0,FV(Admin_LAM_variables!D34/12,IF(AO5<0,0,AO5),$AA$62,-$AK$64,0),0) -> 0 | AR5: =FV(Admin_LAM_variables!D54/12,AO5,-((AL5)*Admin_LAM_variables!D55)/12,-I36,1) -> 0 | AU5: Applicant 1 | AV5: =IF((BA3+$F$40)>780,(BA3+$F$40)-780,0) -> 0 | AW5: =FV(Admin_LAM_variables!D34/12,$F$40-AV5,$AA$62,-$AK$64,0) -> 0 | AX5: =PMT((Admin_LAM_variables!D34+Admin_LAM_variables!D49)/12,F40-(780-BA3),-AW7,0,0) -> 0 | AY5: =IF($G$8>0,Admin_LAM_variables!D46,Admin_LAM_variables!D47) -> 27664 | AZ5: =SUM(AX5*12)/AY7 -> 0 | BB5: 2 | BC5: =VLOOKUP(BB5,Admin_Depend_assess_rates!$B$5:$C$30,2,FALSE) -> 1 | BD5: AA | BF5: 1 | BG5: =+BF5+1 -> 2 | BH5: =+BG5+1 -> 3 | BI5: =+BH5+1 -> 4 | BJ5: =+BI5+1 -> 5 | BL5: 1 | BM5: =+BL5+1 -> 2 | BN5: =+BM5+1 -> 3 | BO5: =+BN5+1 -> 4 | BP5: =+BO5+1 -> 5 | BR5: 0 | BU5: Austudy | BX5: Monthly | BY5: ann | CF5: Newly Built | CI5: =SUM($J$2-O7)/365.25 -> 126.2065692 | CJ5: =SUM($O$7)+6574.5 -> 1917-12-30T12:00:00 | CK5: =IF(CJ5>$J$2,"Applicant 3 is under 18 "," ") ->  | CN5: Debt consolidation | CR5: =Admin_loan_variables!A26 -> Metro - Up to $800,000
B6: Number dependents (100% to 50% custody) | K6: Dependants (49% to 31% custody) | P6: Dependants (30% to 16% custody) | AH6: Maint rec app 1 | AL6: =SUM(K20) -> 0 | AU6: Applicant 2 | AV6: =IF((BA4+$F$40)>780,(BA4+$F$40)-780,0) -> 0 | AW6: =FV($AX$4/12,$F$40-AV6,$AA$62,-$AK$64,0) -> 0 | AY6: =IF($G$8>0,Admin_LAM_variables!D46,Admin_LAM_variables!D47) -> 27664 | BB6: 3 | BC6: =VLOOKUP(BB6,Admin_Depend_assess_rates!$B$5:$C$30,2,FALSE) -> 1 | BD6: AA | BF6: From | BG6: To | BH6: Marginal Rate | BI6: SD on Range | BJ6: SD on Base | BL6: From | BM6: To | BN6: Marginal Rate | BO6: SD on Range | BP6: SD on Base | BR6: 0.05 | BU6: Carer payment | BZ6: Assessed rate | CI6: =SUM($J$2-O8)/365.25 -> 126.2065692 | CJ6: =SUM($O$8)+6574.5 -> 1917-12-30T12:00:00 | CK6: =IF(CJ6>$J$2,"Applicant 4 is under 18 "," ") ->  | CN6: Purchase further equity | CR6: =Admin_loan_variables!A27 -> Regional - Up to $800,000 | CS6: 1 | CT6: 2
B7: Date of Birth Oldest Applicant | AH7: Centrelink inc app 1 | AL7: =SUM(K17:K19) -> 0 | AV7: net loan @ 65 | AW7: =IF((AR5-AW5)>0,0,AW5-AR5-AR11) -> 0 | AY7: =(FV(Admin_LAM_variables!D33/12,AO5,0,-AY5,0)) -> 52977.17953 | BB7: 4 | BC7: =VLOOKUP(BB7,Admin_Depend_assess_rates!$B$5:$C$30,2,FALSE) -> 1 | BD7: AA | BF7: =Admin_stamp_duty!B5 -> 0 | BG7: =Admin_stamp_duty!C5 -> 120000 | BH7: =Admin_stamp_duty!D5 -> 0.019 | BI7: =ROUND((+BG7-BF7+1)*BH7,0) -> 2280 | BJ7: 0 | BL7: =Admin_stamp_duty!B21 -> 0 | BM7: =Admin_stamp_duty!C21 -> 100000 | BN7: =Admin_stamp_duty!D21 -> 0.015 | BO7: =ROUND((+BM7-BL7+1)*BN7,0) -> 1500 | BP7: 0 | BR7: 0.1 | BU7: Disability Support Pension - Single | BZ7: is not correct. This should be check check….x%8.49% | CN7: Other and Fees | CR7: =Admin_loan_variables!A28 -> Regional - Up to $800,000
B8: Date of Birth Youngest Applicant | AH8: Maint paid app 1 | AL8: =SUM(#REF!) ->  | AX8: =FV(Admin_LAM_variables!D33/12,AO24,0,-AY7,1) -> 52977.17953 | BB8: 5 | BC8: =VLOOKUP(BB8,Admin_Depend_assess_rates!$B$5:$C$30,2,FALSE) -> 1 | BD8: AA | BF8: =Admin_stamp_duty!B6 -> 120001 | BG8: =Admin_stamp_duty!C6 -> 150000 | BH8: =Admin_stamp_duty!D6 -> 0.0285 | BI8: =ROUND((+BG8-BF8+1)*BH8,0) -> 855 | BJ8: =SUM(BI$7:BI7) -> 2280 | BL8: =Admin_stamp_duty!B22 -> 100001 | BM8: =Admin_stamp_duty!C22 -> 200000 | BN8: =Admin_stamp_duty!D22 -> 0.0439 | BO8: =ROUND((+BM8-BL8+1)*BN8,0) -> 4390 | BP8: =SUM(BO$7:BO7) -> 1500 | BR8: 0.15 | BU8: Disability Support Pension - Partnered | CR8: =Admin_loan_variables!A29 -> Kimberley & Pilbara - Up to $800,000
BB9: 6 | BC9: =VLOOKUP(BB9,Admin_Depend_assess_rates!$B$5:$C$30,2,FALSE) -> 1 | BD9: AA | BF9: =Admin_stamp_duty!B7 -> 150001 | BG9: =Admin_stamp_duty!C7 -> 360000 | BH9: =Admin_stamp_duty!D7 -> 0.038 | BI9: =ROUND((+BG9-BF9+1)*BH9,0) -> 7980 | BJ9: =SUM(BI$7:BI8) -> 3135 | BR9: 0.2 | BU9: Newstart - Single - No children | BZ9: Calculations indicate that applicants have a shortfall of $ | CR9: =Admin_loan_variables!A30 -> Kimberley & Pilbara - Up to $800,000
B10: Gross Wages/Salary | K10: =IF(H10<1,0,IF(J10="WKLY",((H10/7)*365),IF(J10="f/n",(H10/14)*365,IF(J10="MTH",H10*12,IF(J10="ANN",H10))))) -> 0 | M10: 1 | N10: =SUM(K10*M10) -> 0 | Q10: Gross Wage/salary | Y10: =IF(V10<1,0,IF(X10="WKLY",((V10/7)*365),IF(X10="f/n",(V10/14)*365,IF(X10="MTH",V10*12,IF(X10="ANN",V10))))) -> 0 | AA10: 1 | AB10: =SUM(Y10*AA10) -> 0 | BB10: 7 | BC10: =VLOOKUP(BB10,Admin_Depend_assess_rates!$B$5:$C$30,2,FALSE) -> 1 | BD10: AA | BF10: =Admin_stamp_duty!B8 -> 360001 | BG10: =Admin_stamp_duty!C8 -> 725000 | BH10: =Admin_stamp_duty!D8 -> 0.0475 | BI10: =ROUND((+BG10-BF10+1)*BH10,0) -> 17338 | BJ10: =SUM(BI$7:BI9) -> 11115 | BR10: 0.25 | BU10: Newstart - single -With dep children | BZ10: Please ensure that these funds are available prior to lodging application
B11: Shift allowance | K11: =IF(H11<1,0,IF(J11="WKLY",((H11/7)*365),IF(J11="f/n",(H11/14)*365,IF(J11="MTH",H11*12,IF(J11="ANN",H11))))) -> 0 | M11: 1 | N11: =SUM(K11*M11) -> 0 | Q11: Shift allowance | Y11: 0 | AA11: 1 | AB11: =SUM(Y11*AA11) -> 0 | AH11: Taxable income YOUNGEST | AL11: =IF($BA$3>$BA$4,($Y$10+$Y$11+$Y$12+$Y$13+Y16),($K$10+$K$11+$K$12+$K$13+K16)) -> 0 | AN11: =IF($BA$3>$BA$4,$BA$4,$BA$3) -> 0 | AO11: =IF(SUM(780-AN11)<0,0,(780-AN11)) -> 780 | AP11: =IF(AO11-F40<0,FV($I$40/12,AO11,$Y$62,-$AK$64,0),0) -> 0 | AR11: =FV(Admin_LAM_variables!D54/12,AO11,-((AL11)*Admin_LAM_variables!D55)/12,-I38,1) -> 0 | BB11: 8 | BC11: =VLOOKUP(BB11,Admin_Depend_assess_rates!$B$5:$C$30,2,FALSE) -> 1 | BD11: AA | BF11: =Admin_stamp_duty!B9 -> 725001 | BG11: =Admin_stamp_duty!C9 -> 2000000 | BH11: =Admin_stamp_duty!D9 -> 0.0515 | BI11: =ROUND((+BG11-BF11+1)*BH11,0) -> 65663 | BJ11: =SUM(BI$7:BI10) -> 28453 | BR11: 0.3 | BU11: Newstart - Partnered
B12: Overtime & Bonus | K12: 0 | M12: 0.75 | N12: 0 | Q12: Overtime & Bonus | Y12: 0 | AA12: 0.75 | AB12: 0 | AH12: Maint rec app 2 | AL12: =SUM(Y20) -> 0 | BB12: 9 | BC12: =VLOOKUP(BB12,Admin_Depend_assess_rates!$B$5:$C$30,2,FALSE) -> 1 | BD12: AA | BF12: =+BG11+1 -> 2000001 | BI12: N/A | BJ12: =SUM(BI$7:BI11) -> 94116 | BR12: 0.35 | BU12: No Centrelink pension | BZ12: At
B13: Commission | K13: =IF(H13<1,0,IF(J13="WKLY",((H13/7)*365),IF(J13="f/n",(H13/14)*365,IF(J13="MTH",H13*12,IF(J13="ANN",H13))))) -> 0 | M13: 0.75 | N13: 0 | Q13: Commission | Y13: 0 | AA13: 0.75 | AB13: 0 | AH13: Centrelink inc app 2 | AL13: =SUM(Y17:Y19) -> 0 | BB13: 10 | BC13: =VLOOKUP(BB13,Admin_Depend_assess_rates!$B$5:$C$30,2,FALSE) -> 1 | BD13: AA | BR13: 0.4 | BU13: Other | BZ13: % servicing is above policy of
B14: Self employed taxable income | K14: =IF(H14<1,0,IF(J14="WKLY",((H14/7)*365),IF(J14="f/n",(H14/14)*365,IF(J14="MTH",H14*12,IF(J14="ANN",H14))))) -> 0 | M14: 1 | N14: 0 | Q14: Self employed taxable income | Y14: 0 | AA14: 1 | AB14: 0 | AH14: Maint paid app 2 | AL14: =SUM(Y25) -> 0 | BB14: 11 | BC14: =VLOOKUP(BB14,Admin_Depend_assess_rates!$B$5:$C$30,2,FALSE) -> 1 | BD14: AA | BF14: =IF(B36<Calculation___Concessional_Stamp_Duty_Threshold__House_and_Land_with_No_FHOG,"use concessional rate if less than $"&Calculation___Concessional_Stamp_Duty_Threshold__House_and_Land_with_No_FHOG,0) -> use concessional rate if less than $200000 | BJ14: =IF(B36>Calculation___Concessional_Stamp_Duty_Threshold__House_and_Land_with_No_FHOG,BH17,BN17) -> 0 | BR14: 0.45 | BU14: Parenting Payment - Single | BZ14: %. Loan must fit under UMI policy!
B15: Casual Employment Wages & Salary | K15: =IF(H15<1,0,IF(J15="WKLY",((H15/7)*365),IF(J15="f/n",(H15/14)*365,IF(J15="MTH",H15*12,IF(J15="ANN",H15))))) -> 0 | M15: 0.92 | N15: =SUM(K15*M15) -> 0 | Q15: Casual Employment Wages & Salary | Y15: =IF(V15<1,0,IF(X15="WKLY",((V15/7)*365),IF(X15="f/n",(V15/14)*365,IF(X15="MTH",V15*12,IF(X15="ANN",V15))))) -> 0 | AA15: 0.92 | AB15: =SUM(Y15*AA15) -> 0 | BR15: 0.5
B16: Other | K16: 0 | N16: 0 | Q16: Other | Y16: 0 | AB16: 0 | BB16: 12 | BC16: =VLOOKUP(BB16,Admin_Depend_assess_rates!$B$5:$C$30,2,FALSE) -> 0.5 | BD16: A | BG16: Gross | BH16: Tax | BM16: Gross | BN16: Tax | BR16: 0.55 | BU16: Parenting Payment - Partnered
B17: No Centrelink pension | K17: =IF(H17<1,0,IF(J17="WKLY",((H17/7)*365),IF(J17="f/n",(H17/14)*365,IF(J17="MTH",H17*12,IF(J17="ANN",H17))))) -> 0 | M17: 1 | N17: 0 | Q17: No Centrelink pension | Y17: =IF(V17<1,0,IF(X17="WKLY",((V17/7)*365),IF(X17="f/n",(V17/14)*365,IF(X17="MTH",V17*12,IF(X17="ANN",V17))))) -> 0 | AA17: 1 | AB17: 0 | BB17: 13 | BC17: =VLOOKUP(BB17,Admin_Depend_assess_rates!$B$5:$C$30,2,FALSE) -> 0.5 | BD17: B | BF17: HOUSE PRICE | BG17: =B36 -> 0 | BH17: =VLOOKUP(B36,BF7:BJ12,BJ5)+ROUND((B36-VLOOKUP(B36,BF7:BJ12,BF5))*VLOOKUP(B36,BF7:BJ12,BH5),0) -> 0 | BL17: HOUSE PRICE | BM17: =IF(B36>Calculation___Concessional_Stamp_Duty_Threshold__House_and_Land_with_No_FHOG,"over limit",B36) -> 0 | BN17: =VLOOKUP(BM17,$BL$7:$BP$12,BP$5)+ROUND((BM17-VLOOKUP(BM17,$BL$7:$BP$12,BL$5))*VLOOKUP(BM17,$BL$7:$BP$12,BN$5),0) -> 0 | BR17: 0.6 | BU17: Sickness allowance | BZ17: % DSR is above DSR policy of
B18: Carer's allowance | K18: 0 | M18: 1 | N18: 0 | Q18: Carer's allowance | Y18: 0 | AA18: 1 | AB18: 0 | BB18: 14 | BC18: =VLOOKUP(BB18,Admin_Depend_assess_rates!$B$5:$C$30,2,FALSE) -> 0 | BD18: B | BR18: 0.65 | BU18: Youth Allowance
B19: Austudy Abstudy | K19: 0 | M19: 1 | N19: 0 | Q19: Austudy Abstudy | Y19: 0 | AA19: 1 | AB19: 0 | BB19: 15 | BC19: =VLOOKUP(BB19,Admin_Depend_assess_rates!$B$5:$C$30,2,FALSE) -> 0 | BD19: B | BR19: 0.7 | BU19: (Base only) | BZ19: Number of dependents stated as
B20: child maintenance rec | K20: 0 | M20: =IF($BB$34>0,$BC$34/$BB$34,0) -> 0 | N20: =SUM(K20*M20) -> 0 | Q20: child maintenance rec | Y20: 0 | AA20: =IF($BB$34>0,$BC$34/$BB$34,0) -> 0 | AB20: =SUM(Y20*AA20) -> 0 | AP20: paymt term 10 yrs more | BB20: 16 | BC20: =VLOOKUP(BB20,Admin_Depend_assess_rates!$B$5:$C$30,2,FALSE) -> 0 | BD20: C | BF20: STANDARD STAMP DUTY ON PURCHASE OF | BL20: FIRST HOME OWNER STAMP DUTY ON | BR20: 0.75 | BU20: (YTD Gross) | BZ20: however ages for
B21: Family Tax A | J21: f/n | K21: 0 | M21: =IF($BB$34>0,$BC$34/$BB$34,0) -> 0 | N21: =SUM(K21*M21) -> 0 | Q21: Family Tax A | X21: f/n | Y21: 0 | AA21: =IF($BB$34>0,$BC$34/$BB$34,0) -> 0 | AB21: =SUM(Y21*AA21) -> 0 | AG21: bal of loan less both supers when youngest reaches 65 | AM21: =IF(AR5>AP5,0,AP5-AR5) -> 0 | AO21: =F40-AO5 -> -420 | AP21: =PMT((Admin_LAM_variables!D34+Admin_LAM_variables!D49)/12,120,-AM21,0) -> 0 | BB21: 17 | BC21: =VLOOKUP(BB21,Admin_Depend_assess_rates!$B$5:$C$30,2,FALSE) -> 0 | BD21: C | BF21: LAND ONLY | BN21: PURCHASE | BR21: 0.8 | BU21: (YTD Annualised) | BZ21: are loaded
B22: Family Tax B | J22: f/n | K22: 0 | M22: =IF(AL51>0,AL51,0) -> 0 | N22: =SUM(K22*M22) -> 0 | Q22: Family Tax B | X22: f/n | Y22: 0 | AA22: =IF(AL51>0,AL51,0) -> 0 | AB22: =SUM(Y22*AA22) -> 0 | AP22: paymt term remain | BB22: 18 | BC22: =VLOOKUP(BB22,Admin_Depend_assess_rates!$B$5:$C$30,2,FALSE) -> 0 | BD22: C | BF22: Stamp Duty Rate Table | BL22: Stamp Duty Rate Table | BR22: 0.85
K23: =SUM(K10:L22) -> 0 | N23: =SUM(N10:O22) -> 0 | Y23: =SUM(Y10:Z22) -> 0 | AB23: =SUM(AB10:AC22) -> 0 | AH23: Income oldest | AM23: =AY7/2 -> 26488.58977 | AP23: =PMT((Admin_LAM_variables!D34+Admin_LAM_variables!D49)/12,AO21,-AM21,0,0) -> 0 | AU23: CENTRELINK CALCULATION | BB23: 19 | BC23: =VLOOKUP(BB23,Admin_Depend_assess_rates!$B$5:$C$30,2,FALSE) -> 0 | BD23: D | BF23: 1 | BG23: =+BF23+1 -> 2 | BH23: =+BG23+1 -> 3 | BI23: =+BH23+1 -> 4 | BJ23: =+BI23+1 -> 5 | BL23: 1 | BM23: =+BL23+1 -> 2 | BN23: =+BM23+1 -> 3 | BO23: =+BN23+1 -> 4 | BP23: =+BO23+1 -> 5 | BR23: 0.9
N24: Monthly | O24: =N23/12 -> 0 | AB24: Monthly | AC24: =AB23/12 -> 0 | AH24: Income youngest - current income or pension | AM24: =IF(AB29>Admin_LAM_variables!D47,AB29,AY7/2) -> 26488.58977 | AO24: =SUM(AO11-AO5) -> 0 | AU24: INCOME APP 1 | AV24: =SUM(K10:L19) -> 0 | AW24: =SUM(Admin_LAM_variables!D13+Admin_LAM_variables!D10*(BB34-1)) -> 115997 | BB24: 20 | BC24: =VLOOKUP(BB24,Admin_Depend_assess_rates!$B$5:$C$30,2,FALSE) -> 0 | BD24: D | BF24: From | BG24: To | BH24: Marginal Rate | BI24: SD on Range | BJ24: SD on Base | BL24: From | BM24: To | BN24: Marginal Rate | BO24: SD on Range | BP24: SD on Base | BR24: 0.95
B25: Is HELP, SFSS, SSL, VSL payable? | P25: Is HELP, SFSS, SSL, VSL payable? | AK25: =IF(AM25<35001,27.03%,31%) -> 0.31 | AM25: =SUM(AM23:AN24) -> 52977.17953 | AP25: =IF(AM21>Y62,SUM(AP23*12)/AM25,0) -> 0 | AR25: =IF(AP25>AK25,"outside policy"," ") ->  | AU25: INCOME APP 2 | AV25: =SUM(Y10:Z19) -> 0 | BB25: 21 | BC25: =VLOOKUP(BB25,Admin_Depend_assess_rates!$B$5:$C$30,2,FALSE) -> 0 | BD25: D | BF25: =Admin_stamp_duty!B13 -> 0 | BG25: =Admin_stamp_duty!C13 -> 120000 | BH25: =Admin_stamp_duty!D13 -> 0.019 | BI25: =ROUND((+BG25-BF25+1)*BH25,0) -> 2280 | BJ25: 0 | BL25: =Admin_stamp_duty!B26 -> 0 | BM25: =Admin_stamp_duty!C26 -> 500000 | BN25: =Admin_stamp_duty!D26 -> 0 | BO25: =ROUND((+BM25-BL25+1)*BN25,0) -> 0 | BP25: 0 | BR25: 1
AU26: total income | AV26: =SUM(AV24:AV25) -> 0 | AW26: =SUM((AV24+AV25)-Admin_LAM_variables!D19) -> -65189 | AY26: =IF(AW26>0,AW26*FTB_A___Maximum_Rate___Benefit_Reduction__0.xx_cents_in_dollar,0)+AY51 -> 0 | AZ26: =IF(AV26>AW24,(AV26-AW24)*FTB_A___Base_Rate___Benefit_Reduction__0.xx_cents_in_dollar,0) -> 0 | BB26: 22 | BC26: =VLOOKUP(BB26,Admin_Depend_assess_rates!$B$5:$C$30,2,FALSE) -> 0 | BD26: D | BF26: =Admin_stamp_duty!B14 -> 120001 | BG26: =Admin_stamp_duty!C14 -> 150000 | BH26: =Admin_stamp_duty!D14 -> 0.0285 | BI26: =ROUND((+BG26-BF26+1)*BH26,0) -> 855 | BJ26: =SUM(BI$25:BI25) -> 2280 | BL26: =Admin_stamp_duty!B27 -> 500001 | BM26: =Admin_stamp_duty!C27 -> 700000 | BN26: =Admin_stamp_duty!D27 -> 0.1363 | BO26: =ROUND((+BM26-BL26+1)*BN26,0) -> 27260 | BP26: =SUM(BO25:BO25) -> 0
J27: Security Location & Value | BB27: 23 | BC27: =VLOOKUP(BB27,Admin_Depend_assess_rates!$B$5:$C$30,2,FALSE) -> 0 | BD27: D | BF27: =Admin_stamp_duty!B15 -> 150001 | BG27: =Admin_stamp_duty!C15 -> 360000 | BH27: =Admin_stamp_duty!D15 -> 0.038 | BI27: =ROUND((+BG27-BF27+1)*BH27,0) -> 7980 | BJ27: =SUM(BI$25:BI26) -> 3135
B28: For increase: Curr loan Bal. | AX28: Base rate | BB28: 24 | BC28: =VLOOKUP(BB28,Admin_Depend_assess_rates!$B$5:$C$30,2,FALSE) -> 0 | BD28: D | BF28: =Admin_stamp_duty!B16 -> 360001 | BG28: =Admin_stamp_duty!C16 -> 725000 | BH28: =Admin_stamp_duty!D16 -> 0.0475 | BI28: =ROUND((+BG28-BF28+1)*BH28,0) -> 17338 | BJ28: =SUM(BI$25:BI27) -> 11115
B29: drop down box - click here | AV29: No. of kids | AW29: MAX EACH | AX29: min each | AY29: Totals | BF29: =Admin_stamp_duty!B17 -> 725001 | BG29: =Admin_stamp_duty!C17 -> 2000000 | BH29: =Admin_stamp_duty!D17 -> 0.0515 | BI29: =ROUND((+BG29-BF29+1)*BH29,0) -> 65663 | BJ29: =SUM(BI$25:BI28) -> 28453
B30: drop down box - click here | O30: CC Limit | P30: Lender & type of debt | V30: Balance | X30: Rpymt | Y30: Freq | AU30: <5 | AV30: =COUNTIF($V$5:$AC$5,AU30) -> 0 | AW30: =Admin_FTP!D6 -> 6705.05 | AX30: =Admin_FTP!E6 -> 2774 | AY30: =SUM(AW30*AV30) -> 0 | AZ30: =SUM(AX30*AV30) -> 0 | BF30: =+BG29+1 -> 2000001 | BI30: N/A | BJ30: =SUM(BI$25:BI30) -> 94116
B31: drop down box - click here | X31: =PMT(22%/12,36,-O31,-1) -> 0.01985711984
B32: Total loan req'd (input below) | G32: =SUM(G28:G31) -> 0 | X32: =PMT(22%/12,36,-O32,-1) -> 0.01985711984 | AP32: ``
B33: Type of deal | F33: Loan required | J33: Clients own funds | X33: =PMT(22%/12,36,-O33,-1) -> 0.01985711984 | Y33: =IF(O33="","","mth") ->  | AA33: INCOME CRITERIA | AU33: <13 | AV33: =COUNTIF($V$5:$AC$5,AU33)-AV30 -> 0 | AW33: =Admin_FTP!D7 -> 6705.05 | AX33: =Admin_FTP!E7 -> 2774 | AY33: =SUM(AW33*AV33) -> 0 | AZ33: =SUM(AX33*AV33) -> 0
B34: Established | X34: 0 | AA34: Qualifying | AC34: =AJ152 -> 0 | AH34: bal of loan when youngest reaches 65 | AM34: =IF(FV((Admin_LAM_variables!D34+Admin_LAM_variables!D49)/12,AO24,Y62,-AM21,1)-AR11<0,0,(FV((Admin_LAM_variables!D34+Admin_LAM_variables!D49)/12,AO24,Y62,-AM21,1)-AR5-AR11)) -> 0 | AU34: <16 | AV34: =COUNTIF($V$5:$AC$5,AU34)-AV33-AV30 -> 0 | AW34: =Admin_FTP!D8 -> 8446.1 | AX34: =Admin_FTP!E8 -> 2774 | AY34: =SUM(AW34*AV34) -> 0 | AZ34: =SUM(AX34*AV34) -> 0 | BB34: =COUNTIF(BB35:BB42,">0") -> 0 | BC34: =SUM(BC35:BC42) -> 0
B35: purchase price | F35: FHOG | I35: Super balance App 1 | AA35: Assessable | AC35: =N23+AB23 -> 0 | AU35: <18 | AV35: =COUNTIF($V$5:$AC$5,AU35)-AV34-AV33-AV30 -> 0 | AW35: =Admin_FTP!D9 -> 2774 | AX35: =Admin_FTP!E9 -> 2774 | AY35: =SUM(AW35*AV35) -> 0 | AZ35: =SUM(AX35*AV35) -> 0 | BB35: =IF(V5>0,SUM(V5)," ") ->  | BC35: =VLOOKUP((V5),$BB$3:$BC$28,2,FALSE) -> 0 | BF35: Concession depending on FHOG and max land value: | BM35: Gross | BN35: Tax
AH36: Income based on FV of Pension | AU36: <25 | AV36: =COUNTIF($V$5:$AC$5,AU36)-AV35-AV34-AV33-AV30 -> 0 | AW36: =Admin_FTP!D10 -> 0 | AX36: =Admin_FTP!E10 -> 0 | AY36: =SUM(AW36*AV36) -> 0 | AZ36: =SUM(AX36*AV36) -> 0 | BB36: =IF(W5>0,SUM(W5)," ") ->  | BC36: =VLOOKUP((W5),$BB$3:$BC$28,2,FALSE) -> 0 | BH36: =IF(N74>0,IF(BG38<72001,500,0)) -> FALSE | BL36: HOUSE PRICE | BM36: =IF(B36>250000,B36,0) -> 0 | BN36: =VLOOKUP(B36,BL25:BP30,BP23)+ROUND((B36-VLOOKUP(B36,BL25:BP30,BL23))*VLOOKUP(B36,BL25:BP30,BN23),0) -> 0
B37: Land Price | I37: Super balance App 2 | AA37: NDI Ratio must be at least 1.00.1 | AH37: Income oldest | AM37: =SUM(AX8/2) -> 26488.58977 | AO37: =SUM(F40-AO11) -> -420 | AP37: =PMT((Admin_LAM_variables!D34+Admin_LAM_variables!D49)/12,AO37,-AM34,0,0) -> 0 | AV37: =SUM(AV30:AV36) -> 0 | BB37: =IF(X5>0,SUM(X5)," ") ->  | BC37: =VLOOKUP((X5),$BB$3:$BC$28,2,FALSE) -> 0 | BG37: Gross | BH37: Tax
AH38: Income youngest | AM38: =SUM(AX8/2) -> 26488.58977 | AP38: =IF(AM34>0,SUM(AP37*12)/AM39,0) -> 0 | AR38: =IF(AP38>AK39,"outside policy"," ") ->  | AX38: Gross | AY38: =SUM(AY30:AY37) -> 0 | AZ38: =SUM(AZ30:AZ37) -> 0 | BA38: =SUM(AZ38)/(365/14) -> 0 | BB38: =IF(Y5>0,SUM(Y5)," ") ->  | BC38: =VLOOKUP((Y5),$BB$3:$BC$28,2,FALSE) -> 0 | BF38: LAND PRICE | BG38: =B38 -> 0 | BH38: =VLOOKUP(BG38,$BF$25:$BJ$30,BJ$23)+ROUND((BG38-VLOOKUP(BG38,$BF$25:$BJ$30,BF$23))*VLOOKUP(BG38,$BF$25:$BJ$30,BH$23),0) -> 0
B39: house price | F39: Loan term | I39: Interest Rate | P39: HECS/HELP APP 1 | X39: =IF(H25="YES",BC84/12,0) -> 0 | AA39: NDI RATIO | AC39: =IF(F40>0,IF(AK79>0,AK85/AK92,""),"") ->  | AD39: =IF(AK79>0,":1","") ->  | AK39: =IF(AM39<35001,27.03%,31%) -> 0.31 | AM39: =SUM(AM37:AN38) -> 52977.17953 | AX39: Nett | AY39: =IF(AY26<AY38,AY38-AY26,0) -> 0 | AZ39: =IF(AZ26<AZ38,AZ38-AZ26,0) -> 0 | BB39: =IF(Z5>0,SUM(Z5)," ") ->  | BC39: =VLOOKUP((Z5),$BB$3:$BC$28,2,FALSE) -> 0
F40: 360 | I40: =AK87 -> 0.071 | P40: HECS/HELP APP 2 | X40: =IF(V25="YES",BD84/12,0) -> 0 | AU40: Family Tax benefit part A | AY40: =SUM(AY39)/(365/14) -> 0 | AZ40: =SUM(AZ39)/(365/14) -> 0 | BB40: =IF(AA5>0,SUM(AA5)," ") ->  | BC40: =VLOOKUP((AA5),$BB$3:$BC$28,2,FALSE) -> 0 | BL40: FIRST HOME OWNER STAMP DUTY ON
B41: =SUM(B36+B38+B40) -> 0 | E41: TOTAL | P41: TOTAL MONTHLY REPAYMENTS | X41: =SUM(AQ57+X39+X40) -> 0.05957135953 | AU41: =IF(AY40>AZ40,AY40,AZ40) -> 0 | BB41: =IF(AB5>0,SUM(AB5)," ") ->  | BC41: =VLOOKUP((AB5),$BB$3:$BC$28,2,FALSE) -> 0 | BN41: LAND
D42: AREAS TO BE ADDRESSED PRIOR TO LODGING APPLICATION | P42: DEBT TO INCOME RATIO % | Y42: =IF(ISERROR(SUM(AP50:AP57)/12/SUM(O24+AC24)),"",(SUM(AP50:AP57)/12/SUM(O24+AC24))) ->  | AI42: <12 | AJ42: =COUNTIF($BB$35:$BB$42,AI42) -> 0 | AW42: Maintenance received | BB42: =IF(AC5>0,SUM(AC5)," ") ->  | BC42: =VLOOKUP((AC5),$BB$3:$BC$28,2,FALSE) -> 0 | BL42: Stamp Duty Rate Table
V43: TOTAL LIVING EXPENSES | AI43: <14 | AJ43: =COUNTIF($BB$35:$BB$42,AI43)-AJ42 -> 0 | AU43: Large Family supplement | AW43: =IF(K20>0,1,0) -> 0 | AX43: =IF(K20>0,FTB_A___Maintenance_Income___Income_Reduction_Threshold__Couple,0) -> 0 | BL43: 1 | BM43: =+BL43+1 -> 2 | BN43: =+BM43+1 -> 3 | BO43: =+BN43+1 -> 4 | BP43: =+BO43+1 -> 5
D44: =IF(AND((F34+F38)<=Z52,AC39>0.99,AK97="Pass",AK99="Pass"),"ASSESSMENT MEETS UMI POLICY","ASSESSMENT FAIL") ->  | Y44: Amount | Z44: Freq | AB44: Annual | AI44: >13 | AJ44: =COUNTIF($BB$35:$BB$42,AI44) -> 0 | AU44: =IF(BB34>3,(BB34-3)*AV44,0) -> 0 | AV44: =FTB_A___Large_Family_Supplement__Third_and_subsequent_child -> 0 | AW44: =IF(Y20>0,1,0) -> 0 | AX44: =IF(Y20>0,FTB_A___Maintenance_Income___Income_Reduction_Threshold__Couple,0) -> 0 | BL44: From | BM44: To | BN44: Marginal Rate | BO44: SD on Range | BP44: SD on Base
D45: =IF(AND(CS6=1,B41>Admin_loan_variables!B20),"WARNING! Purchase price for Perth metropolitan areas cannot exceed $"&Admin_loan_variables!B20,IF(AND(CS6>=2,CS6<=3,B41>Admin_loan_variables!B21),"WARNING! Purchase price for regional areas cannot exceed $"&Admin_loan_variables!B21,IF(AND(CS6=4,B41>Admin_loan_variables!B23),"WARNING! Purchase price for the Kimberley & Pilbara cannot exceed $"&Admin_loan_variables!B22,IF(AND(CS6=5,B41>Admin_loan_variables!B23),"WARNING! Purchase price for the Kimberley & Pilbara cannot exceed $"&Admin_loan_variables!B23,"")))) ->  | U45: Living Expenses | Z45: mth | AB45: =IF(Y45<1,0,IF(Z45=BY2,((Y45/7)*365),IF(Z45=BY3,(Y45/14)*365,IF(Z45=BY4,Y45*12,IF(Z45=BY5,Y45))))) -> 0 | AX45: =IF(AX43=AX44,FTB_A___Maintenance_Income___Income_Reduction_Threshold__Single_Parent,FTB_A___Maintenance_Income___Income_Reduction_Threshold__Couple) -> 1960.05 | BL45: =Admin_stamp_duty!B31 -> 0 | BM45: =Admin_stamp_duty!C31 -> 350000 | BN45: =Admin_stamp_duty!D31 -> 0 | BO45: =ROUND((+BM45-BL45+1)*BN45,0) -> 0 | BP45: 0
D46: =IFERROR(IF(AC49="Fail","UMI is insufficient to service Rent/Board plus Monthly Construction Payment",""),"") ->  | U46: =IF(Y45="","WARNING! You must input the customers living expenses.","") -> WARNING! You must input the customers living expenses.
D47: =IF(AC50="Fail","The post-construction Projected payment exceeds the UMI","") ->  | U47: Rent/Board | V47: Rent/Board | Z47: wkly | AF47: `
D48: =IFERROR(IF(AL70<80%,"Warning! Declared living expenses are less than 80% of comparative benchmark",""),"") ->  | U48: Min Mthly Const Pymt | Y48: =400 -> 400
D49: =IF(I4>1,"Warning! You have entered 2 single applicants. Please use Loanapp for an accurate serviceability","") ->  | U49: Projected Loan - PCRV | Y49: =AK98 -> 0 | AB49: CPPV | AC49: =IF(B34="Construction",AK97,"") ->  | AP49: Existing debts
D50: =IF(AND(CS6=1,Single_Applicant=1,No_of_depend=0,AC34>Admin_loan_variables!B6),"****INCOME EXCEEDS LIMIT OF "&TEXT(Admin_loan_variables!B6,"$#,##,0")&"****",IF(AND(CS6=1,Single_Applicant>1,No_of_depend=0,AC34>Admin_loan_variables!B7),"****INCOME EXCEEDS LIMIT OF "&TEXT(Admin_loan_variables!B7,"$#,##,0")&"****",IF(AND(CS6=1,Single_Applicant>=1,No_of_depend>0,AC34>Admin_loan_variables!B8),"****INCOME EXCEEDS LIMIT OF "&TEXT(Admin_loan_variables!B8,"$#,##,0")&"****",IF(AND(CS6=2,Single_Applicant=1,No_of_depend=0,AC34>Admin_loan_variables!B9),"****INCOME EXCEEDS LIMIT OF "&TEXT(Admin_loan_variables!B9,"$#,##,0")&"****",IF(AND(CS6=2,Single_Applicant>1,No_of_depend=0,AC34>Admin_loan_variables!B10),"****INCOME EXCEEDS LIMIT OF "&TEXT(Admin_loan_variables!B10,"$#,##,0")&"****",IF(AND(CS6=2,Single_Applicant>=1,No_of_depend>0,AC34>Admin_loan_variables!B11),"****INCOME EXCEEDS LIMIT OF "&TEXT(Admin_loan_variables!B11,"$#,##,0")&"****",IF(AND(CS6=3,Single_Applicant=1,No_of_depend=0,AC34>Admin_loan_variables!B9),"****INCOME EXCEEDS LIMIT OF "&TEXT(Admin_loan_variables!B9,"$#,##,0")&"****",IF(AND(CS6=3,Single_Applicant>1,No_of_depend=0,AC34>Admin_loan_variables!B10),"****INCOME EXCEEDS LIMIT OF "&TEXT(Admin_loan_variables!B10,"$#,##,0")&"****",IF(AND(CS6=3,Single_Applicant>=1,No_of_depend>0,AC34>Admin_loan_variables!B11),"****INCOME EXCEEDS LIMIT OF "&TEXT(Admin_loan_variables!B11,"$#,##,0")&"****",IF(AND(CS6=4,Single_Applicant=1,No_of_depend=0,AC34>Admin_loan_variables!B12),"****INCOME EXCEEDS LIMIT OF "&TEXT(Admin_loan_variables!B12,"$#,##,0")&"****",IF(AND(CS6=4,Single_Applicant>1,No_of_depend=0,AC34>Admin_loan_variables!B13),"****INCOME EXCEEDS LIMIT OF "&TEXT(Admin_loan_variables!B13,"$#,##,0")&"****",IF(AND(CS6=5,Single_Applicant=1,No_of_depend=0,AC34>Admin_loan_variables!B15),"****INCOME EXCEEDS LIMIT OF "&TEXT(Admin_loan_variables!B15,"$#,##,0")&"****",IF(AND(CS6=5,Single_Applicant>1,No_of_depend=0,AC34>Admin_loan_variables!B16),"****INCOME EXCEEDS LIMIT OF "&TEXT(Admin_loan_variables!B16,"$#,##,0")&"****",IF(AND(CS6=4,Single_Applicant>=1,No_of_depend>0,AC34>Admin_loan_variables!B14),"****INCOME EXCEEDS LIMIT OF "&TEXT(Admin_loan_variables!B14,"$#,##,0")&"****",IF(AND(CS6=5,Single_Applicant>=1,No_of_depend>0,AC34>Admin_loan_variables!B17),"****INCOME EXCEEDS LIMIT OF "&TEXT(Admin_loan_variables!B17,"$#,##,0")&"****",IF(AND(CS6=1,Couple=1,No_of_depend=0,AC34>Admin_loan_variables!B7),"****INCOME EXCEEDS LIMIT OF "&TEXT(Admin_loan_variables!B7,"$#,##,0")&"****",IF(AND(CS6=1,Couple=1,No_of_depend=0,AC34>Admin_loan_variables!B7),"****INCOME EXCEEDS LIMIT OF "&TEXT(Admin_loan_variables!B7,"$#,##,0")&"****",IF(AND(CS6=1,Couple>=1,No_of_depend>=0,AC34>Admin_loan_variables!B8),"****INCOME EXCEEDS LIMIT OF "&TEXT(Admin_loan_variables!B8,"$#,##,0")&"****",IF(AND(CS6=2,Couple=1,No_of_depend=0,AC34>Admin_loan_variables!B10),"****INCOME EXCEEDS LIMIT OF "&TEXT(Admin_loan_variables!B10,"$#,##,0")&"****",IF(AND(CS6=2,Couple=1,No_of_depend>0,AC34>Admin_loan_variables!B11),"****INCOME EXCEEDS LIMIT OF "&TEXT(Admin_loan_variables!B11,"$#,##,0")&"****",IF(AND(CS6=3,Couple=1,No_of_depend=0,AC34>Admin_loan_variables!B10),"****INCOME EXCEEDS LIMIT OF "&TEXT(Admin_loan_variables!B10,"$#,##,0")&"****",IF(AND(CS6=3,Couple=1,No_of_depend>0,AC34>Admin_loan_variables!B11),"****INCOME EXCEEDS LIMIT OF "&TEXT(Admin_loan_variables!B11,"$#,##,0")&"****",IF(AND(CS6=4,Couple=1,No_of_depend=0,AC34>Admin_loan_variables!B13),"****INCOME EXCEEDS LIMIT OF "&TEXT(Admin_loan_variables!B13,"$#,##,0")&"****",IF(AND(CS6=4,Couple=1,No_of_depend>0,AC34>Admin_loan_variables!B14),"****INCOME EXCEEDS LIMIT OF "&TEXT(Admin_loan_variables!B14,"$#,##,0")&"****",IF(AND(CS6=5,Couple=1,No_of_depend=0,AC34>Admin_loan_variables!B16),"****INCOME EXCEEDS LIMIT OF "&TEXT(Admin_loan_variables!B16,"$#,##,0")&"****",IF(AND(CS6=5,Couple=1,No_of_depend>0,AC34>Admin_loan_variables!B17),"****INCOME EXCEEDS LIMIT OF "&TEXT(Admin_loan_variables!B17,"$#,##,0")&"****","")))))))))))))))))))))))))) ->  | U50: Projected Rpymt - PCRV | Y50: =PMT(I40/12,F40,-Y49) -> 0 | AB50: PCRV | AC50: =AK99 ->  | AJ50: =IF(AM51<AM50,AM50,AM51) -> 0 | AM50: =SUM(K10:K16) -> 0 | AP50: =X31*12 -> 0.2382854381 | AU50: Multiple Birth | AX50: =IF(AX45>AX43,AX45,AX43) -> 1960.05 | BA50: Child Maintenance Assessment | BL50: =Admin_stamp_duty!B32 -> 350001 | BM50: =Admin_stamp_duty!C32 -> 450000 | BN50: =Admin_stamp_duty!D32 -> 0.1539 | BO50: =ROUND((+BM50-BL50+1)*BN50,0) -> 15390 | BP50: =SUM(BO45:BO45) -> 0
D51: =IF(AV37=I6+O6+R6," ",BZ19&SUM(I6,O6,R6)&BZ20&AV37&BZ21) ->  | AJ51: =IF(AJ50>Admin_LAM_variables!D12,0,'Online Assessment tool'!AU59) -> 0 | AL51: =IF(AJ42>0,100%,IF(AJ43>0,50%,0)) -> 0 | AM51: =SUM(Y10:Y16) -> 0 | AP51: =X32*12 -> 0.2382854381 | AX51: =SUM(FTB_A___Maintenance_Income___Income_Reduction_Threshold__Increase_for_each_Child_after_first*(BB34-1))+AX50 -> 1306.7 | AY51: =(IF((K20+Y20)>AX51,(K20+Y20)-AX51,0))*FTB_A___Maintenance_Income___Benefit_Reduction__0.xx_cents_in_dollar -> 0
D52: =IF(F40>360,"MAXIMUM LOAN TERM IS 30 YEARS","") ->  | V52: MAXIMUM LOAN | Z52: =ROUNDDOWN(INT(AK89),-2) ->  | AM52: =K17+K21+K22 -> 0 | AP52: =X33*12 -> 0.2382854381 | BC52: Amount | BF52: INCOME TAX TABLE - APPLICANT 1
AM53: =Y17+Y21+Y22 -> 0 | AP53: =IF(X34<1,0,IF(Y34="wkly",(X34*52),IF(Y34="f/n",(X34*26),IF(Y34="mth",X34*12)))) -> 0 | AU53: Family tax benefit part B | BA53: Assessable Income | BC53: =SUM($N$23+$AB$23) -> 0 | BD53: =N20+AB20 -> 0
D54: =IF(G7>1," ","Insert app 1's Date of Birth") -> Insert app 1's Date of Birth | V54: LOAN REPAYMENT | Z54: =PMT(AK87/12,F40,-AK64,0,0) -> 0 | AJ54: =IF(AJ55>AJ56,AJ56,AJ55) -> -0.8292996687 | AP54: 0 | AY54: =IF(MIN(AV24:AV25)>FTB_B___Income_Reduction_Threshold__Based_on_the_Lowest_Income_Earner,(MIN(AV24:AV25)-FTB_B___Income_Reduction_Threshold__Based_on_the_Lowest_Income_Earner)*FTB_B___Benefit_Reduction__0.xx_cents_in_dollar,0) -> 0 | BA54: Assessable Inc - Maint | BC54: =SUM(N29+AB29)-SUM(N20+AB20) -> 0 | BD54: =SUM(BC54/60%)*40% -> 0 | BF54: Stamp Duty Rate Table
E55: =IFERROR(IF(D54-D53>'Online Assessment tool'!#REF!,"",IF(D54-D54<'Online Assessment tool'!#REF!,"Warning! A post retirement strategy will be required if the loan term is not reduced")),"") ->  | F55: =IFERROR(IF(E54-E53>'Online Assessment tool'!A89,"",IF(E54-E54<'Online Assessment tool'!A89,"Warning! A post retirement strategy will be required if the loan term is not reduced")),"") -> FALSE | G55: =IFERROR(IF(F54-F53>'Online Assessment tool'!B89,"",IF(F54-F54<'Online Assessment tool'!B89,"Warning! A post retirement strategy will be required if the loan term is not reduced")),"") -> FALSE | H55: =IFERROR(IF(G54-G53>'Online Assessment tool'!C89,"",IF(G54-G54<'Online Assessment tool'!C89,"Warning! A post retirement strategy will be required if the loan term is not reduced")),"") -> FALSE | I55: =IFERROR(IF(H54-H53>'Online Assessment tool'!D89,"",IF(H54-H54<'Online Assessment tool'!D89,"Warning! A post retirement strategy will be required if the loan term is not reduced")),"") -> FALSE | J55: =IFERROR(IF(I54-I53>'Online Assessment tool'!E89,"",IF(I54-I54<'Online Assessment tool'!E89,"Warning! A post retirement strategy will be required if the loan term is not reduced")),"") -> FALSE | K55: =IFERROR(IF(J54-J53>'Online Assessment tool'!F89,"",IF(J54-J54<'Online Assessment tool'!F89,"Warning! A post retirement strategy will be required if the loan term is not reduced")),"") -> FALSE | L55: =IFERROR(IF(K54-K53>'Online Assessment tool'!G89,"",IF(K54-K54<'Online Assessment tool'!G89,"Warning! A post retirement strategy will be required if the loan term is not reduced")),"") -> FALSE | M55: =IFERROR(IF(L54-L53>'Online Assessment tool'!H89,"",IF(L54-L54<'Online Assessment tool'!H89,"Warning! A post retirement strategy will be required if the loan term is not reduced")),"") -> FALSE | N55: =IFERROR(IF(M54-M53>'Online Assessment tool'!I89,"",IF(M54-M54<'Online Assessment tool'!I89,"Warning! A post retirement strategy will be required if the loan term is not reduced")),"") -> FALSE | O55: =IFERROR(IF(N54-N53>'Online Assessment tool'!J89,"",IF(N54-N54<'Online Assessment tool'!J89,"Warning! A post retirement strategy will be required if the loan term is not reduced")),"") -> FALSE | P55: =IFERROR(IF(O54-O53>'Online Assessment tool'!K89,"",IF(O54-O54<'Online Assessment tool'!K89,"Warning! A post retirement strategy will be required if the loan term is not reduced")),"") -> FALSE | Q55: =IFERROR(IF(P54-P53>'Online Assessment tool'!L89,"",IF(P54-P54<'Online Assessment tool'!L89,"Warning! A post retirement strategy will be required if the loan term is not reduced")),"") -> FALSE | R55: =IFERROR(IF(Q54-Q53>'Online Assessment tool'!M89,"",IF(Q54-Q54<'Online Assessment tool'!M89,"Warning! A post retirement strategy will be required if the loan term is not reduced")),"") -> FALSE | AJ55: =PV(Admin_LAM_variables!D34+Admin_LAM_variables!D49/12,F40,-(AQ92*Y52)/12,0,0) -> 0 | AP55: =IF(X36<1,0,IF(Y36="wkly",(X36*52),IF(Y36="f/n",(X36*26),IF(Y36="mth",X36*12)))) -> 0 | AU55: under 5 | AV55: =AV30 -> 0 | AW55: =IF(AV55>0,1,0) -> 0 | AX55: =IF($AY$54<Admin_FTP!D11,Admin_FTP!D11-$AY$54,0) -> 5372.8 | AY55: =SUM(AX55*AW55)/(365/14) -> 0 | BA55: Maint as % of Assess Income | BC55: =IFERROR(BD53/BC53,0) -> 0 | BF55: 1 | BG55: 2 | BH55: 3 | BI55: 4 | BJ55: 5
D56: =IF(Y64<0,BZ9&ROUNDDOWN(-Y64,0)&BZ10," ") -> Calculations indicate that applicants have a shortfall of $2922 Please ensure that these funds are available prior to lodging application | Y56: Oldest applicant | AB56: Youngest applicant | AJ56: =PV(Admin_LAM_variables!D34+Admin_LAM_variables!D49/12,F40,-(((AQ92*Y52)/12)-X41),0,0) -> -0.8292996687 | AP56: =IF(X37<1,0,IF(Y37="wkly",(X37*52),IF(Y37="f/n",(X37*26),IF(Y37="mth",X37*12)))) -> 0 | AU56: 5 to 15 | AV56: =SUM(AV33:AV34) -> 0 | AW56: =IF(AV56>0,1,0) -> 0 | AX56: =IF($AY$54<Admin_FTP!D12,Admin_FTP!D12-$AY$54,0) -> 3883.6 | AY56: =SUM(AX56*AW56)/(365/14) -> 0 | BA56: Maintenance reduction req | BC56: =BD53-BD54 -> 0 | BF56: From | BG56: To | BH56: Marginal Rate | BI56: SD on Range | BJ56: SD on Base
D57: =IF(AND(CS6=1,Loan_req+F38>Admin_loan_variables!B26),"WARNING! LOAN IS GREATER THAN MAXIMUM ALLOWED OF $"&Admin_loan_variables!B26,IF(AND(CS6=2,Loan_req+F38>Admin_loan_variables!B27),"WARNING! LOAN IS GREATER THAN MAXIMUM ALLOWED OF $"&Admin_loan_variables!B27,IF(AND(CS6=3,Loan_req+F38>Admin_loan_variables!B28),"WARNING! LOAN IS GREATER THAN MAXIMUM ALLOWED OF $"&Admin_loan_variables!B28,IF(AND(CS6=4,Loan_req+F38>Admin_loan_variables!B29),"WARNING! LOAN IS GREATER THAN MAXIMUM ALLOWED OF $"&Admin_loan_variables!B29,IF(AND(CS6=5,Loan_req+F38>Admin_loan_variables!B30),"WARNING! LOAN IS GREATER THAN MAXIMUM ALLOWED OF $"&Admin_loan_variables!B30,""))))) ->  | V57: Current Age | Y57: =IF(G7="","",IF(AF58>AF57,AF58,AF57)) ->  | AB57: =IF(G8="","",IF(AF57<AF58,AF57,AF58)) ->  | AF57: =DATEDIF(G7,TODAY(),"y")&" Years, "&DATEDIF(G7,TODAY(),"YM")&" Months" -> 126 Years, 2 Months | AH57: =BA3/12 -> 0 | AI57: =AH57+(F40/12) -> 30 | AJ57: =Admin_LAM_variables!D26 -> 2000 | AK57: 3000 | AL57: 1000 | AP57: =IF(X38<1,0,IF(Y38="wkly",(X38*52),IF(Y38="f/n",(X38*26),IF(Y38="mth",X38*12)))) -> 0 | AQ57: =AP58/12 -> 0.05957135953 | AU57: 16 to 18 | AV57: =SUM(AV35) -> 0 | AW57: =IF(AV57>0,1,0) -> 0 | BF57: 0 | BG57: =Admin_Tax!B6 -> 18200 | BH57: =Admin_Tax!C5 -> 0 | BI57: =ROUND((BG57-BF57+1)*BH57,0) -> 0 | BJ57: 0 | BM57: Gross | BN57: Tax
D58: =IF(Admin_loan_variables!A1078>10," ",Admin_loan_variables!A1075&Admin_loan_variables!A1080&Admin_loan_variables!B1075) ->  | V58: Age at end of term | Y58: =IF(G7="","",IF(AF59>AF60,AF59,AF60)) ->  | AB58: =IF(G8="","",IF(AF59<AF60,AF59,AF60)) ->  | AF58: =DATEDIF(G8,TODAY(),"y")&" Years, "&DATEDIF(G8,TODAY(),"YM")&" Months" -> 126 Years, 2 Months | AH58: =BA4/12 -> 0 | AI58: =AH58+(F40/12) -> 30 | AJ58: yes | AP58: =SUM(AP50:AP57) -> 0.7148563144 | BF58: =BG57+1 -> 18201 | BG58: =Admin_Tax!B7 -> 45000 | BH58: =Admin_Tax!C6 -> 0.16 | BI58: =ROUND((BG58-BF58+1)*BH58,0) -> 4288 | BJ58: =SUM($BI$57:BI57) -> 0 | BL58: HOUSE PRICE | BM58: =B38 -> 0 | BN58: =VLOOKUP(BM58,BL45:BP54,BP43)+ROUND((BM58-VLOOKUP(BM58,BL45:BP54,BL43))*VLOOKUP(BM58,BL45:BP54,BN43),0) -> 0
D59: =(CK3&CK4&CK5&CK6) ->  | V59: Lesser10 yrs or remaining term | Y59: =MIN(AP21,AP23)*12/AM25 -> 0 | AB59: =IF(AM34>0,AP38,AP38) -> 0 | AF59: =INT(AI57) & " years / " &INT((A157-INT(A157))*12) & "months" -> 30 years / 0months | AJ59: =IF(B36>0,B36,B38+B40) -> 0 | AU59: =IF(Admin_loan_variables!B3>J2,IF(BB34=0,0,IF(AY55>AY56,AY55,AY56)),0) -> 0 | BF59: =BG58+1 -> 45001 | BG59: =Admin_Tax!B8 -> 135000 | BH59: =Admin_Tax!C7 -> 0.3 | BI59: 27000 | BJ59: =SUM($BI$57:BI58) -> 4288
D60: =IF(N17>0,"Applicant receives centrelink payments. Ensure updated centrelink statement showing declared income is included with submission"," ") ->  | AF60: =INT(AI58) & " years / " &INT((A158-INT(A158))*12) & "months" -> 30 years / 0months | AO60: Annualising calculator | BF60: =BG59+1 -> 135001 | BG60: =Admin_Tax!B9 -> 190000 | BH60: =Admin_Tax!C8 -> 0.37 | BI60: 20350 | BJ60: =SUM($BI$57:BI59) -> 31288
Y61: Assessed | AA61: Actual | AG61: Total Purch Price | AM61: =IF(AK65<400000,AK65*2%,AK65*5%) -> 0 | AO61: Primary | AR61: Other Applic. | AU61: month calculation | BF61: =BG60+1 -> 190001 | BH61: =Admin_Tax!C9 -> 0.45 | BI61: N/A | BJ61: =SUM($BI$57:BI60) -> 51638
D62: =IF(I4<2,IF(Y29>0,IF(4<1,"You have indicated that there is only one applicant yet you have income loaded for a second applicant")," ")) ->  | V62: Loan Repayment | Y62: =PMT(AK88/12,F40,-AK64,0,0) -> 0 | AA62: =PMT(AK87/12,F40,-AK64,0,0) -> 0 | AL62: Min deposit | AM62: =IF(AN65<=2000,2000,AN65) -> 2000 | AO62: =SUM(Y67-Y66) -> 0 | AR62: =SUM(AA67-AA66) -> 0
V63: LVR | Y63: =IF(AK64>0,SUM(AK64/AK65)," ") ->  | AL63: FHOG surplus | AM63: =7000-SUM(AM62+R76) -> 2077.65 | AO63: =AO62+1 -> 1 | AR63: =AR62+1 -> 1 | AU63: MONTHS FOR RATES | AY63: HECS CALCULATION | BF63: Gross | BG63: Tax | BH63: Medicare Levy
D64: =IF(AND(CS6=1, Loan_req>(B41*Admin_loan_variables!B50)),"WARNING! MINIMUM "&TEXT(Admin_loan_variables!B34,"0%")&" DEPOSIT IS REQUIRED",IF(AND(CS6=2, Loan_req>(B41*Admin_loan_variables!B51)),"WARNING! MINIMUM "&TEXT(Admin_loan_variables!B35,"0%")&" DEPOSIT IS REQUIRED",IF(AND(CS6=3, Loan_req>(B41*Admin_loan_variables!B52)),"WARNING! MINIMUM "&TEXT(Admin_loan_variables!B36,"0%")&" DEPOSIT IS REQUIRED",IF(AND(CS6=4, Loan_req>(B41*Admin_loan_variables!B53)),"WARNING! MINIMUM "&TEXT(Admin_loan_variables!B37,"0%")&" DEPOSIT IS REQUIRED",IF(AND(CS6=5, Loan_req>(B41*Admin_loan_variables!B38)),"WARNING! MINIMUM "&TEXT(Admin_loan_variables!B38,"0%")&" DEPOSIT IS REQUIRED",""))))) ->  | V64: Shortfall/Surplus | Y64: =SUM(M85-R85) -> -2922.35 | AH64: Loan Amount | AK64: =F34+F38 -> 0 | AO64: 365 | AR64: 365 | AU64: =Admin_Rates!B6 -> August | AV64: 8 | AW64: =Admin_Rates!C6 -> 9 | AY64: HECS | AZ64: =Admin_HELP!B4 -> 0 | BA64: =Admin_HELP!C4 -> 54434.99 | BB64: =Admin_HELP!D4 -> 0 | BC64: =IF(H$25="yes",IF($AY$66>$AZ64,IF($AY$66<$BA64,$AY$66*$BB64," "))) -> FALSE | BD64: =IF(V$25="yes",IF($AY$67>$AZ64,IF($AY$67<$BA64,$AY$67*$BB64," "))) -> FALSE | BF64: =AK74 -> 0 | BG64: =VLOOKUP(BF64,BF57:BJ61,BJ55)+ROUND((BF64-VLOOKUP(BF64,BF57:BJ61,BF55))*VLOOKUP(BF64,BF57:BJ61,BH55),0) -> 0 | BH64: =IF(BF64>Calculation___Medicare_Levy__Percentage,BF64*Calculation___Medicare_Levy__Percentage,0) -> 0
D65: =IF(AND(AH57>50,AI57>74.99),"Warning! A suitable exit strategy will be required for this customer.","") ->  | V65: Annualised: | Y65: Primary | AA65: Other Applic. | AH65: total price | AK65: =IF(B36>0,B36,B38+B40) -> 0 | AN65: =AK65*Admin_loan_variables!B34 -> 0 | AU65: =Admin_Rates!B7 -> September | AV65: 9 | AW65: =Admin_Rates!C7 -> 8 | AZ65: =Admin_HELP!B5 -> 54435 | BA65: =Admin_HELP!C5 -> 62850.99 | BB65: =Admin_HELP!D5 -> 0.01 | BC65: =IF(H$25="yes",IF($AY$66>$AZ65,IF($AY$66<$BA65,$AY$66*$BB65," "))) -> FALSE | BD65: =IF(V$25="yes",IF($AY$67>$AZ65,IF($AY$67<$BA65,$AY$67*$BB65," "))) -> FALSE
V66: Start date | AU66: =Admin_Rates!B8 -> October | AV66: 10 | AW66: =Admin_Rates!C8 -> 7 | AY66: =SUM(K10:K16) -> 0 | AZ66: =Admin_HELP!B6 -> 62851 | BA66: =Admin_HELP!C6 -> 66620.99 | BB66: =Admin_HELP!D6 -> 0.02 | BC66: =IF(H$25="yes",IF($AY$66>$AZ66,IF($AY$66<$BA66,$AY$66*$BB66," "))) -> FALSE | BD66: =IF(V$25="yes",IF($AY$67>$AZ66,IF($AY$67<$BA66,$AY$67*$BB66," "))) -> FALSE
D67: =IF(BC55>40.01%,"Assessable Child Maintenance income exceeds 40% of total assessable income. Suggest reducing the Child Maintenance income to " &TEXT(BD54,"$#,##,0.00"),"") ->  | V67: Last pay date | AH67: Single | AJ67: =Admin_HEM!C8 -> 0 | AK67: =I4*AJ67 -> 0 | AM67: =IF(F40>0,-PV(AK88/12,F40,AM70/12,,0)/1000,0) -> 0 | AU67: =Admin_Rates!B9 -> November | AV67: 11 | AW67: =Admin_Rates!C9 -> 6 | AY67: =SUM(Y10:Y16) -> 0 | AZ67: =Admin_HELP!B7 -> 66621 | BA67: =Admin_HELP!C7 -> 70618.99 | BB67: =Admin_HELP!D7 -> 0.025 | BC67: =IF(H$25="yes",IF($AY$66>$AZ67,IF($AY$66<$BA67,$AY$66*$BB67," "))) -> FALSE | BD67: =IF(V$25="yes",IF($AY$67>$AZ67,IF($AY$67<$BA67,$AY$67*$BB67," "))) -> FALSE
V68: Pay cycle | AH68: Couple | AJ68: =Admin_HEM!D8 -> 0 | AK68: =I5*AJ68 -> 0 | AU68: =Admin_Rates!B10 -> December | AV68: 12 | AW68: =Admin_Rates!C10 -> 5 | AZ68: =Admin_HELP!B8 -> 70619 | BA68: =Admin_HELP!C8 -> 74855.99 | BB68: =Admin_HELP!D8 -> 0.03 | BC68: =IF(H$25="yes",IF($AY$66>$AZ68,IF($AY$66<$BA68,$AY$66*$BB68," "))) -> FALSE | BD68: =IF(V$25="yes",IF($AY$67>$AZ68,IF($AY$67<$BA68,$AY$67*$BB68," "))) -> FALSE | BF68: INCOME TAX TABLE - APPLICANT 2
V69: Income YTD | AH69: Dependents | AJ69: =Admin_HEM!E8*T6 -> 0 | AK69: =I6*AJ69 -> 0 | AM69: =IF(AB34>0,AB34-#REF!,0) -> 0 | AU69: =Admin_Rates!B11 -> January | AV69: 1 | AW69: =Admin_Rates!C11 -> 4
B70: FEE TABLE | V70: Annualised | Y70: =SUM((Y69/AO63)*AO64) -> 0 | AA70: =SUM((AA69/AR63)*AR64) -> 0 | AH70: Total Living Expenses | AK70: ='Admin_Tiered Hems'!B17*52 ->  | AL70: =AB45/Total_Living_Expenses ->  | AM70: =AM69/12 -> 0 | AU70: =Admin_Rates!B12 -> February | AV70: 2 | AW70: =Admin_Rates!C12 -> 3 | AZ70: =Admin_HELP!B9 -> 74856 | BA70: =Admin_HELP!C9 -> 79346.99 | BB70: =Admin_HELP!D9 -> 0.035 | BC70: =IF(H$25="yes",IF($AY$66>$AZ70,IF($AY$66<$BA70,$AY$66*$BB70," "))) -> FALSE | BD70: =IF(V$25="yes",IF($AY$67>$AZ70,IF($AY$67<$BA70,$AY$67*$BB70," "))) -> FALSE | BF70: Stamp Duty Rate Table
B71: Application fee | G71: 600 | J71: FUNDING TABLE | AH71: Other commitments | AK71: =SUM(N28+AB28)+X41*12 -> 0.7148563144 | AU71: =Admin_Rates!B13 -> March | AV71: 3 | AW71: =Admin_Rates!C13 -> 2 | AZ71: =Admin_HELP!B10 -> 79347 | BA71: =Admin_HELP!C10 -> 84107.99 | BB71: =Admin_HELP!D10 -> 0.04 | BC71: =IF(H$25="yes",IF($AY$66>$AZ71,IF($AY$66<$BA71,$AY$66*$BB71," "))) -> FALSE | BD71: FALSE | BF71: 1 | BG71: 2 | BH71: 3 | BI71: 4 | BJ71: 5
B72: Valuation Fee | G72: 250 | J72: FUNDS | O72: COSTS | V72: INCOME LIMIT CHECK | AH72: Assessed Repayment | AK72: =IF(F34>0,INT(-PMT(AK88/12,F40,F34,0)+1),0) -> 0 | AU72: =Admin_Rates!B14 -> April | AV72: 4 | AW72: =Admin_Rates!C14 -> 12 | AZ72: =Admin_HELP!B11 -> 84108 | BA72: =Admin_HELP!C11 -> 89154.99 | BB72: =Admin_HELP!D11 -> 0.045 | BC72: =IF(H$25="yes",IF($AY$66>$AZ72,IF($AY$66<$BA72,$AY$66*$BB72," "))) -> FALSE | BD72: FALSE | BF72: From | BG72: To | BH72: Marginal Rate | BI72: SD on Range | BJ72: SD on Base
B73: Construction Val Fee | G73: =IF(B40>0,Admin_LAM_variables!D21,0) -> 0 | J73: Loan Keystart | N73: =F34 -> 0 | O73: Purchase Price | R73: =B36 -> 0 | V73: (Please enter the relevant suburb or postcode) | AH73: Proposed Ann Rpymts | AK73: =AK72*12 -> 0 | AU73: =Admin_Rates!B15 -> May | AV73: 5 | AW73: =Admin_Rates!C15 -> 12 | AZ73: =Admin_HELP!B12 -> 89155 | BA73: =Admin_HELP!C12 -> 94503.99 | BB73: =Admin_HELP!D12 -> 0.05 | BC73: =IF(H$25="yes",IF($AY$66>$AZ73,IF($AY$66<$BA73,$AY$66*$BB73," "))) -> FALSE | BD73: FALSE | BF73: 0 | BG73: =Admin_Tax!B6 -> 18200 | BH73: =Admin_Tax!C5 -> 0 | BI73: =ROUND((BG73-BF73+1)*BH73,0) -> 0 | BJ73: 0
B74: Legal | G74: 409.35 | J74: FHOG | N74: =IF(AND(F36="Yes")*AND(B34="Established"),Admin_LAM_variables!D28,IF(AND(F36="Yes")*AND(B34="Construction"),Admin_LAM_variables!D27,IF(AND(F36="Yes")*AND(B34="Construction"),Admin_LAM_variables!D27,IF(AND(F36="Yes")*AND(B34="Newly Built"),Admin_LAM_variables!D27,IF(AND(F36="Yes")*AND(B34="Newly Built"),Admin_LAM_variables!D27,0))))) -> 0 | O74: Land price | R74: =SUM(B38) -> 0 | AH74: Taxable Income - Applic 1 | AK74: =SUM(N10:O16) -> 0 | AL74: Non Taxable | AN74: =SUM(N17:N22) -> 0 | AU74: =Admin_Rates!B16 -> June | AV74: 6 | AW74: =Admin_Rates!C16 -> 11 | AZ74: =Admin_HELP!B13 -> 94504 | BA74: =Admin_HELP!C13 -> 100174.99 | BB74: =Admin_HELP!D13 -> 0.055 | BC74: =IF(H$25="yes",IF($AY$66>=$AZ74,IF($AY$66<$BA74,$AY$66*$BB74," "))) -> FALSE | BD74: FALSE | BF74: =BG73+1 -> 18201 | BG74: =Admin_Tax!B7 -> 45000 | BH74: =Admin_Tax!C6 -> 0.16 | BI74: =ROUND((BG74-BF74+1)*BH74,0) -> 4288 | BJ74: =SUM($BI$73:BI73) -> 0
B75: Stamp Duty on Mtg | G75: Not applicable | J75: Fee Assistance | N75: =F38 -> 0 | O75: Building costs | R75: =SUM(B40) -> 0 | W75: SUBURB | AA75: POSTCODE | AH75: Tax payable | AK75: =SUM(BG64:BH64) -> 0 | AU75: =Admin_Rates!B17 -> July | AV75: 7 | AW75: =Admin_Rates!C17 -> 10 | AZ75: =Admin_HELP!B14 -> 100175 | BA75: =Admin_HELP!C14 -> 106185.99 | BB75: =Admin_HELP!D14 -> 0.06 | BC75: FALSE | BD75: FALSE | BF75: =BG74+1 -> 45001 | BG75: =Admin_Tax!B8 -> 135000 | BH75: =Admin_Tax!C7 -> 0.3 | BI75: 27000 | BJ75: =SUM($BI$73:BI74) -> 4288
B76: Sub Total | G76: =SUM(G71:H75) -> 1259.35 | J76: Own Funds | N76: =I34 -> 0 | O76: Total Fees | R76: =G85 -> 2922.35 | AH76: Taxable Income - Applic 2 | AK76: =SUM(AB10:AB16) -> 0 | AL76: Non Taxable | AN76: =SUM(AB17:AC22) -> 0 | AZ76: =Admin_HELP!B15 -> 106186 | BA76: =Admin_HELP!C15 -> 112556.99 | BB76: =Admin_HELP!D15 -> 0.065 | BC76: FALSE | BD76: FALSE | BF76: =BG75+1 -> 135001 | BG76: =Admin_Tax!B9 -> 190000 | BH76: =Admin_Tax!C8 -> 0.37 | BI76: 20350 | BJ76: =SUM($BI$73:BI75) -> 31288
B77: Settlement Agent Fees | O77: Improvements | AH77: Tax payable | AK77: =SUM(BG80:BH80) -> 0 | AZ77: =Admin_HELP!B16 -> 112557 | BA77: =Admin_HELP!C16 -> 119309.99 | BB77: =Admin_HELP!D16 -> 0.07 | BC77: FALSE | BD77: FALSE | BF77: =BG76+1 -> 190001 | BH77: =Admin_Tax!C9 -> 0.45 | BI77: N/A | BJ77: =SUM($BI$73:BI76) -> 51638
B78: Miscellaneous | G78: 200 | V78: Limits* | X78: =IF(ISERROR(VLOOKUP('Online Assessment tool'!$W$76,Admin_Suburbs!$A$2:$J$1843,6,FALSE)),"",(VLOOKUP('Online Assessment tool'!$W$76,Admin_Suburbs!$A$2:$J$1843,6,FALSE))) ->  | AA78: =IF(ISERROR(VLOOKUP('Online Assessment tool'!$AA$76,Admin_Postcodes!$A$2:$J$1843,6,FALSE)),"",(VLOOKUP('Online Assessment tool'!$AA$76,Admin_Postcodes!$A$2:$J$1843,6,FALSE))) ->  | AH78: Total Tax Payable | AK78: =AK75+AK77 -> 0 | AZ78: =Admin_HELP!B17 -> 119310 | BA78: =Admin_HELP!C17 -> 126467.99 | BB78: =Admin_HELP!D17 -> 0.075 | BC78: FALSE | BD78: FALSE
B79: Settlement agents fee | G79: =IF(AX107<Admin_settlement_agent!D6,Admin_settlement_agent!D6,AX107) -> 963 | V79: Single | X79: =IF(ISERROR(VLOOKUP($X$78,Admin_lookup!$A$16:$D$20,2,FALSE)),"",(VLOOKUP($X$78,Admin_lookup!$A$16:$D$20,2,FALSE))) ->  | AA79: =IF(ISERROR(VLOOKUP($AA$78,Admin_lookup!$A$16:$D$20,2,FALSE)),"",(VLOOKUP($AA$78,Admin_lookup!$A$16:$D$20,2,FALSE))) ->  | AH79: Total Net Income | AK79: =SUM(AK74+AN74+AK76+AN76)-AK78 -> 0 | AZ79: =Admin_HELP!B18 -> 126468 | BA79: =Admin_HELP!C18 -> 134056.99 | BB79: =Admin_HELP!D18 -> 0.08 | BC79: FALSE | BD79: FALSE | BF79: Gross | BG79: Tax | BH79: Medicare Levy
B80: Stamp duty on land | G80: =IF(AND(UPPER(F36)="YES",UPPER(B37)="LAND PRICE"),IF(B38<=450000,BN58,IF(B38>450000,BH38)),BH38) -> 0 | V80: Couple | X80: =IF(ISERROR(VLOOKUP($X$78,Admin_lookup!$A$16:$D$20,3,FALSE)),"",(VLOOKUP($X$78,Admin_lookup!$A$16:$D$20,3,FALSE))) ->  | AA80: =IF(ISERROR(VLOOKUP($AA$78,Admin_lookup!$A$16:$D$20,3,FALSE)),"",(VLOOKUP($AA$78,Admin_lookup!$A$16:$D$20,3,FALSE))) ->  | AH80: Less Living Costs | AK80: =IF(AK70<AK101,AK101,AK70) ->  | AZ80: =Admin_HELP!B19 -> 134057 | BA80: =Admin_HELP!C19 -> 142100.99 | BB80: =Admin_HELP!D19 -> 0.085 | BC80: FALSE | BD80: FALSE | BF80: =AK76 -> 0 | BG80: =VLOOKUP(BF80,BF73:BJ77,BJ71)+ROUND((BF80-VLOOKUP(BF80,BF73:BJ77,BF71))*VLOOKUP(BF80,BF73:BJ77,BH71),0) -> 0 | BH80: =IF(BF80>Calculation___Medicare_Levy__Percentage,BF80*Calculation___Medicare_Levy__Percentage,0) -> 0
B81: Stamp Duty on est home | G81: =IF(AND(UPPER(F36)="YES",UPPER(B34)="ESTABLISHED"),IF(B36<=700000,BN36,IF(B36>700000,BJ14)),IF(AND(UPPER(F36)="YES",UPPER(B34)="Newly Built"),IF(B36<=700000,BN36,IF(B36>700000,BJ14)),BJ14)) -> 0 | J81: S/D Rebate | V81: Family | X81: =IF(ISERROR(VLOOKUP($X$78,Admin_lookup!$A$16:$D$20,4,FALSE)),"",(VLOOKUP($X$78,Admin_lookup!$A$16:$D$20,4,FALSE))) ->  | AA81: =IF(ISERROR(VLOOKUP($AA$78,Admin_lookup!$A$16:$D$20,4,FALSE)),"",(VLOOKUP($AA$78,Admin_lookup!$A$16:$D$20,4,FALSE))) ->  | AH81: Less other commitments | AK81: =Other_committments -> 0.7148563144 | AZ81: =Admin_HELP!B20 -> 142101 | BA81: =Admin_HELP!C20 -> 150626.99 | BB81: =Admin_HELP!D20 -> 0.09 | BC81: FALSE | BD81: FALSE
B82: Rates/Water | G82: =SUM(Admin_LAM_variables!D56/12*BA2) -> 500 | AH82: Dep Under 50% to 35% | AK82: =O6*(200*12) -> 0 | AZ82: =Admin_HELP!B21 -> 150627 | BA82: =Admin_HELP!C21 -> 159663.99 | BB82: =Admin_HELP!D21 -> 0.095 | BC82: FALSE | BD82: FALSE
B83: SUB TOTAL | G83: =SUM(G78:G82) -> 1663 | V83: *Disclaimer: These limits are a guide only and Keystart give no assurance that the results are correct. Keystart reserve the right to determine which income limits are applicable. | AH83: Dep 35% to 15% | AK83: =R6*(100*12) -> 0 | AZ83: =Admin_HELP!B22 -> 159664 | BA83: =Admin_HELP!C22 -> 999999.99 | BB83: =Admin_HELP!D22 -> 0.1 | BC83: FALSE | BD83: FALSE
AH84: NIS Buffer | AK84: 1200 | BC84: =SUM(BC64:BC83) -> 0 | BD84: =SUM(BD64:BD83) -> 0
B85: GRAND TOTAL | G85: =SUM(G76+G83) -> 2922.35 | M85: =SUM(M73:N84) -> 0 | R85: =SUM(R73:R83) -> 2922.35 | AH85: Net Disposable Income | AK85: =SUM(Total_net_income-Living_costs-AK81-AK84-AK82-AK83) -> 
B86: DISCLAIMER: The result you obtain from this Offline Assessment Tool are an estimate only and do not in any way confirm that the client will be eligible for a Keystart loan. All loan applications submitted to Keystart must be accompanied by a Finalised Loan Assessment using the Loan Assessment Tool (LAT) within LoanApp. We have taken reasonable care in creating this Offline Assessment Tool but can give no assurance that the criteria are accurate, or that the result you obtain from this tool is correct. We cannot therefore be held responsible for any loss arising from its use or from any reliance that you or any other person may place upon it. | AH86: Net monthly income | AK86: =AK85/12 -> 
AH87: Actual Rate | AK87: =Interest_Rate___Keystart_standard_variable -> 0.071 | AO87: 0
AH88: Assessed UMI Rate | AK88: =AK87+Calculation___Assessment_Rate_Buffer__Percentage____All_regions -> 0.091 | AO88: 1
AH89: Max loan at assessed rate | AK89: =IF(F40>0,-PV(AK88/12,F40,AK86,,0),0) ->  | AO89: 2
AH90: Max loan at actual rate | AK90: =IF(F40>0,-PV(AK87/12,F40,AK86,,0),0) ->  | AO90: 3
AH91: Assessed UMI repayment | AK91: =Y62 -> 0 | AO91: 4 | AU91: SETTLEMENT AGENTS FEES
AH92: Total Commitments | AK92: =AK91*12 -> 0
AH94: Rent/Board | AK94: =IF(Y47<1,0,IF(Z47=BY2,(Y47*4*13),IF(Z47=BY3,(Y47*2*12),IF(Z47=BY4,Y47*12,IF(Z47=BY5,Y47))))) -> 0
AH95: Min Mthly Const Rpymt | AK95: =Minimum_monthly_repayment___construction_loans*12 -> 2400 | AU95: Settlement Agent Fees
AH96: Total monthly outgoings | AK96: =SUM(AK94:AK95)/12 -> 200 | AU96: 1 | AV96: =+AU96+1 -> 2 | AW96: =+AV96+1 -> 3 | AX96: =+AW96+1 -> 4 | AY96: =+AX96+1 -> 5
AH97: CPPV | AK97: Pass | AU97: From | AV97: To | AW97: Rate % | AX97: Fixed Range | AY97: Fees on Base
AH98: Balance at end of construction period | AK98: =IF(ISERROR(VLOOKUP(Average_construction_period___block___build,Admin_Amortisation!$B$16:$H$39,7,FALSE)),0,VLOOKUP(Average_construction_period___block___build,Admin_Amortisation!$B$16:$H$39,7,FALSE)) -> 0 | AU98: =Admin_settlement_agent!B6 -> 0 | AV98: =Admin_settlement_agent!C6 -> 150000 | AX98: =Admin_settlement_agent!D6 -> 963 | AY98: =Admin_settlement_agent!D6 -> 963
AH99: PCRV | AJ99: ` | AK99: =IF(AK98<=AK90,"Pass","Fail") ->  | AU99: =Admin_settlement_agent!B7 -> 150001 | AV99: =Admin_settlement_agent!C7 -> 500000 | AW99: =Admin_settlement_agent!E7 -> 0.0022 | AX99: =ROUND((+AV99-AU99+1)*AW99,2) -> 770 | AY99: =SUM(AX$98:AX98) -> 963
AH100: CP Gap | AK100: =SUM(Z54-(AB47/12)) -> 0 | AU100: =Admin_settlement_agent!B8 -> 500001 | AV100: =Admin_settlement_agent!C8 -> 1000000 | AW100: =Admin_settlement_agent!E8 -> 0.00165 | AX100: =ROUND((+AV100-AU100+1)*AW100,2) -> 825 | AY100: =SUM(AX$98:AX99) -> 1733
AH101: Declared Living Expenses | AK101: =AB45 -> 0 | AU101: =Admin_settlement_agent!B9 -> 1000001 | AV101: =Admin_settlement_agent!C9 -> 10000000 | AW101: =Admin_settlement_agent!E9 -> 0.0011 | AX101: =ROUND((+AV101-AU101+1)*AW101,2) -> 9900 | AY101: =SUM(AX$98:AX100) -> 2558
AH103: Minimum monthly repayment | AK103: =AA62 -> 0 | AX103: N/A | AY103: =SUM(AX$98:AX102) -> 12458
AH104: Monthly rent/board | AK104: =AK94/12 -> 0
AH105: Minimum construction repayment | AK105: =AK103-AK104 -> 0
AV106: Gross | AW106: Fee inc. GST
AU107: HOUSE PRICE | AV107: =IF(B38>0,B38,B36) -> 0 | AW107: =VLOOKUP(AV107,AU98:AY103,AY96)+ROUND((AV107-VLOOKUP(AV107,AU98:AY103,AU96))*VLOOKUP(AV107,AU98:AY103,AW96),3) -> 963 | AX107: =AW107 -> 963
H115: total assessed income | O115: No. kids
G116: < | H116: 35001 | I116: With or without kids | N116: =IF(AO86<H116,AO86," ") -> 0 | O116: =BB34 -> 0 | S116: 0.36 | T116: 0.36
G117: > | H117: 35000 | I117: With kids | N117: =IF(AO86>35000,IF(BB34 >0,AO86," ")," ") ->  | O117: =BB34 -> 0 | S117: 0.39 | T117: 0.39
G118: > | H118: 35000 | I118: No kids | N118: =IF(AN86>35000,IF(BB34=0,AO86," ")," ") ->  | O118: =BB34 -> 0 | S118: 0.42 | T118: 0.42
N121: 0 | O121: 0.39 | S121: 0.39
N122: 1 | O122: 0.39 | S122: 0.39
N123: 2 | O123: 0.39 | S123: 0.39
N124: 3 | O124: 0.39 | S124: 0.39
N125: 4 | O125: 0.39 | S125: 0.39
N126: 5 | O126: 0.39 | S126: 0.39
N127: 6 | O127: 0.39 | S127: 0.39
N128: 7 | O128: 0.39 | S128: 0.39 | Z128: =IF(W128>T116,"outside policy"," ") ->  | AA128: =IF(P116>0," ",IF(W128>U128,"outside policy"," ")) ->  | AB128: =IF(Q116>0," ",IF(X128>V128,"outside policy"," ")) -> 
N129: 8 | O129: 0.39 | S129: 0.39 | Z129: =IF(W129>T117,"outside policy"," ") -> 
Z130: =IF(W130>T118,"outside policy"," ") -> 
Z132: =IF(Z128="outside policy","Outside policy",IF(Z129="outside policy","Outside policy",IF(Z130="outside policy","Outside policy"," "))) -> 
AB143: =IF(Q131>0," ",IF(X143>V143,"outside policy"," ")) -> 
AH150: Qualifying income 1 | AJ150: =SUM(N10:O19) -> 0
AH151: Qualifying income 2 | AJ151: =SUM(AB10:AC19) -> 0
AJ152: =SUM(AJ150:AJ151) -> 0
AM153: =SUM(AJ155/12) -> 0
AH154: Total income: Per An. Monthly | AM154: =SUM(AJ156/12) -> 0
AH155: Actual | AJ155: =SUM(K29+Y29) -> 0
AH156: Assessed | AJ156: =SUM(N29+AB29) -> 0 | AM156: =SUM(X32+X33+X36+X37)/SUM(O24+AC24) -> 
AH158: Monthly debt (excluding HECS)

Sheet Retirement age summary
B2: Loan Number: | D2: Assessment date: | E2: =NOW() -> 2026-03-15T22:47:06.810
B4: Applicant(s): | C4: =IF('Online Assessment tool'!V2="","",'Online Assessment tool'!V2) -> 
D5: Applicant 1 | E5: Applicant 2
B6: Date of Birth | D6: =IF('Online Assessment tool'!$G$7="","",'Online Assessment tool'!$G$7) ->  | E6: =IF('Online Assessment tool'!$G$8="","",'Online Assessment tool'!$G$8) -> 
B7: Gross wage/salary | D7: ='Online Assessment tool'!$N$10 -> 0 | E7: ='Online Assessment tool'!$AB$10 -> 0
B8: Shift allowance | D8: ='Online Assessment tool'!$N$11 -> 0 | E8: ='Online Assessment tool'!$AB$11 -> 0
B9: Overtime & bonus | D9: ='Online Assessment tool'!$N$12 -> 0 | E9: ='Online Assessment tool'!$AB$12 -> 0
B10: Commission | D10: ='Online Assessment tool'!$N$13 -> 0 | E10: ='Online Assessment tool'!$AB$13 -> 0
B11: Casual employment wages/salary | D11: ='Online Assessment tool'!$N$15 -> 0 | E11: ='Online Assessment tool'!$AB$15 -> 0
B12: Total assessable income | D12: =SUM(D7+D8+(D9*30%)+(D10*75%)+(D11*92%)) -> 0 | E12: =SUM(E7+E8+(E9*30%)+(E10*75%)+(E11*92%)) -> 0
B14: Loan Amount | D14: =Loan_req -> 0
B15: Interest Rate (per annum) | D15: ='Online Assessment tool'!$I$40 -> 0.071
B16: Loan Term (years) | D16: ='Online Assessment tool'!F40/12 -> 30
B17: Minimum monthly repayment | D17: =IFERROR(PMT(Interest_Rate/12,No_of_pymts,-Loan_Amount,0),0) -> 0
B18: Number of payments | D18: =Loan_term*12 -> 360
B19: Loan finalisation date | D19: =IF(OR(Applic1_DOB="",Loan_term=""),"",IF(Loan_start_date="","",EDATE(Loan_start_date,No_of_pymts))) -> 
B20: Estimated loan balance | D20: Applicant 1 | E20: Applicant 2
B21: Applicant age at loan assessment date | D21: =IF(Applic1_DOB="","",IFERROR(IF(AND(DAY(Applic1_DOB)=DAY(Loan_start_date),MONTH(Applic1_DOB)=MONTH(Loan_start_date)),ROUND(YEARFRAC(Applic1_DOB,Loan_start_date,1),0),ROUNDDOWN(YEARFRAC(Applic1_DOB,Loan_start_date,1),0)),"")) ->  | E21: =IF(Applic2_DOB="","",IFERROR(IF(AND(DAY(Applic2_DOB)=DAY(Loan_start_date),MONTH(Applic2_DOB)=MONTH(Loan_start_date)),ROUND(YEARFRAC(Applic2_DOB,Loan_start_date,1),0),ROUNDDOWN(YEARFRAC(Applic2_DOB,Loan_start_date,1),0)),"")) -> 
B22: Forecast retirement age
B23: Date of retirement | D23: =IFERROR(IF(ISBLANK(Forecast_retirement_age1),"",EDATE(Applic1_DOB,Forecast_retirement_age1*12)),"") ->  | E23: =IFERROR(IF(ISBLANK(Forecast_retirement_age2),"",EDATE(Applic2_DOB,Forecast_retirement_age2*12)),"") -> 
B24: ="Applicant age at the "&IF(Forecast_retirement_age2="","","earliest ")&"applicant's retirement" -> Applicant age at the applicant's retirement | D24: =IF(OR(Applic1_DOB="",Applic1_DOR=""),"",IF(OR(AND(DAY(Applic1_DOB)=DAY(MIN(D23:E23)),MONTH(Applic1_DOB)=MONTH(MIN(D23:E23))),AND(DAY(Applic1_DOB)=DAY(Loan_start_date),MONTH(Applic1_DOB)=MONTH(Loan_start_date)),AND(DAY(Applic1_DOB)=29,MONTH(Applic1_DOB)=2)),ROUND((MIN(D23:E23)-Applic1_DOB)/365.25,0),ROUNDDOWN((MIN(D23:E23)-Applic1_DOB)/365.25,0))) ->  | E24: =IF(OR(Applic2_DOB="",Applic2_DOR=""),"",IF(OR(AND(DAY(Applic2_DOB)=DAY(MIN(D23:E23)),MONTH(Applic2_DOB)=MONTH(MIN(D23:E23))),AND(DAY(Applic2_DOB)=DAY(Loan_start_date),MONTH(Applic2_DOB)=MONTH(Loan_start_date)),AND(DAY(Applic2_DOB)=29,MONTH(Applic2_DOB)=2)),ROUND((MIN(D23:E23)-Applic2_DOB)/365.25,0),ROUNDDOWN((MIN(D23:E23)-Applic2_DOB)/365.25,0))) -> 
B25: Age at loan finalisation date | D25: =IF(Applic1_DOB="","",IFERROR(IF(AND(DAY(Applic1_DOB)=DAY(Loan_start_date),MONTH(Applic1_DOB)=MONTH(Loan_start_date)),ROUND(YEARFRAC(Applic1_DOB,Loan_finalisation_date,1),0),ROUNDDOWN(YEARFRAC(Applic1_DOB,Loan_finalisation_date,1),0)),"")) ->  | E25: =IF(Applic2_DOB="","",IFERROR(IF(AND(DAY(Applic2_DOB)=DAY(Loan_start_date),MONTH(Applic2_DOB)=MONTH(Loan_start_date)),ROUND(YEARFRAC(Applic2_DOB,Loan_finalisation_date,1),0),ROUNDDOWN(YEARFRAC(Applic2_DOB,Loan_finalisation_date,1),0)),"")) ->  | F25: this will be hidden
B26: Remaining term (months) at retirement | D26: =IF(OR(ISBLANK(Applic1_DOB),ISBLANK(Forecast_retirement_age1)),"",IF(No_of_pymts-((EDATE(Applic1_DOB,Forecast_retirement_age1*12)-Loan_start_date)/365.25*12)<=0,0,No_of_pymts-IF(DAY(Applic1_DOB)=DAY(Loan_start_date),ROUND((EDATE(Applic1_DOB,Forecast_retirement_age1*12)-Loan_start_date)/365.25*12,0),ROUNDDOWN((EDATE(Applic1_DOB,Forecast_retirement_age1*12)-Loan_start_date)/365.25*12,0)))) ->  | E26: =IF(OR(ISBLANK(Applic2_DOB),ISBLANK(Forecast_retirement_age2)),"",IF(No_of_pymts-((EDATE(Applic2_DOB,Forecast_retirement_age2*12)-Loan_start_date)/365.25*12)<=0,0,No_of_pymts-IF(DAY(Applic2_DOB)=DAY(Loan_start_date),ROUND((EDATE(Applic2_DOB,Forecast_retirement_age2*12)-Loan_start_date)/365.25*12,0),ROUNDDOWN((EDATE(Applic2_DOB,Forecast_retirement_age2*12)-Loan_start_date)/365.25*12,0)))) ->  | F26: this will be hidden
B27: ="Remaining term (months) at "&IF(Forecast_retirement_age2="","","earliest ")&"applicant's retirement" -> Remaining term (months) at applicant's retirement | D27: =IFERROR(MAX(D26:E26),"") -> 0
B28: Estimated loan balance at retirement | D28: =IFERROR(VLOOKUP(No_of_pymts-Applic1_RT,C39:H400,6,0),0) -> 0 | E28: =IF(ISBLANK(Applic2_DOB),0,IFERROR(VLOOKUP(No_of_pymts-Applic2_RT,N39:S400,6,0),0)) -> 0 | F28: this will be hidden
B29: ="Estimated loan balance at "&IF(ISBLANK(Forecast_retirement_age2),"","earliest ")&"applicant's retirement" -> Estimated loan balance at applicant's retirement | D29: =MAX(D28:E28) -> 0
B30: Estimated superannuation balance
B31: Current superannuation balance | D31: ='Online Assessment tool'!$I$36 -> 0 | E31: ='Online Assessment tool'!$I$38 -> 0
B32: Estimated super balance at earliest applicant's retirement | D32: =IFERROR(IF(OR(App1_Age_At_Earliest_Retirement<65,ISBLANK(Applic1_DOB),ISBLANK(Forecast_retirement_age1)),0,VLOOKUP(No_of_pymts-MAX(D26:E26),$C$403:$J$763,8,1)),0) -> 0 | E32: =IFERROR(IF(OR(App2_Age_At_Earliest_Retirement<65,ISBLANK(Applic2_DOB),ISBLANK(Forecast_retirement_age2)),0,VLOOKUP(No_of_pymts-MAX(D26:E26),N403:U763,8,1)),0) -> 0
B33: Discounted super balance | D33: =SUM(Est_super_Applic1-Est_super_Applic1*20%) -> 0 | E33: =SUM(Est_super_Applic2-Est_super_Applic2*20%) -> 0
B34: Total available super balance at earliest retirement | D34: =SUM(D33:E33) -> 0
B35: Surplus/shortfall | D35: =IF(OR(ISBLANK(Loan_start_date),ISBLANK(Applic1_DOB),ISBLANK(Forecast_retirement_age1)),0,D34-Est_Loan_Bal) -> 0
B37: =IF(OR(ISBLANK(Applic1_DOB),ISBLANK(Forecast_retirement_age1),D33<0),"",IF(D35>=0,"Pass! Superannuation balance sufficient to pay out loan","Fail! Superannuation balance insufficient to pay out loan")) -> 
B39: Year | C39: Payment Number | D39: Last Payment Date | E39: Age of Applicant | F39: Starting Balance | G39: Required Repayment | H39: Ending Balance | I39: Principal | J39: Interest | K39: Cumulative Interest | M39: Year | N39: Payment Number | O39: Last Payment Date | P39: Age of Applicant | Q39: Starting Balance | R39: Required Repayment | S39: Ending Balance | T39: Principal | U39: Interest | V39: Cumulative Interest
B40: =IFERROR(INT((C40-1)/12)+1,"") -> 1 | C40: 1 | D40: =EDATE(Loan_start_date,C40) -> 2026-04-15 | E40: =IF(Applic1_DOB="",1,INT((D40-D6)/365.25)) -> 1 | F40: =$D$14 -> 0 | G40: =IF(C40="","",$D$17) -> 0 | H40: =IF(C40="","",F40-I40) -> 0 | I40: =IF(C40="","",G40-J40) -> 0 | J40: =IF(C40="","",($D$15/12)*F40) -> 0 | K40: =IF(C40="","",SUM($J$40:J40)) -> 0 | M40: =IFERROR(INT((N40-1)/12)+1,"") -> 1 | N40: 1 | O40: =EDATE(Loan_start_date,N40) -> 2026-04-15 | P40: =IF(E6="",1,INT((O40-E6)/365)) -> 1 | Q40: =$D$14 -> 0 | R40: =IF(N40="","",$D$17) -> 0 | S40: =IF(N40="","",Q40-T40) -> 0 | T40: =IF(N40="","",R40-U40) -> 0 | U40: =IF(N40="","",($D$15/12)*Q40) -> 0 | V40: =IF(N40="","",SUM($U$40:U40)) -> 0
B41: =IFERROR(INT((C41-1)/12)+1,"") -> 1 | C41: =IF(C40>=No_of_pymts,"",C40+1) -> 2 | D41: =IF(C41="","",EDATE(Loan_start_date,C41)) -> 2026-05-15 | E41: =IF($C41="","",IF($D$6="",$B41+1,INT(($D41-$D$6)/365.25))) -> 2 | F41: =IF(C41="","",H40) -> 0 | G41: 0 | H41: =IF(C41="","",IF(G41=F41,0,(F41-I41))) -> 0 | I41: =IF(C41="","",G41-J41) -> 0 | J41: 0 | K41: =IF(C41="","",SUM($J$40:J41)) -> 0 | M41: =IFERROR(INT((N41-1)/12)+1,"") -> 1 | N41: =IF(N40>=No_of_pymts,"",N40+1) -> 2 | O41: =IF(N41="","",EDATE(Loan_start_date,N41)) -> 2026-05-15 | P41: =IF($N41="","",IF($E$6="",$M41+1,INT(($O41-$E$6)/365))) -> 2 | Q41: =IF(N41="","",S40) -> 0 | R41: 0 | S41: =IF(N41="","",IF(R41=Q41,0,(Q41-T41))) -> 0 | T41: =IF(N41="","",R41-U41) -> 0 | U41: 0 | V41: =IF(N41="","",SUM($U$40:U41)) -> 0
B42: 1 | C42: 3 | D42: 2026-06-15 | E42: =IF($C42="","",IF($D$6="",$B42+1,INT(($D42-$D$6)/365.25))) -> 2 | F42: =IF(C42="","",H41) -> 0 | G42: 0 | H42: =IF(C42="","",IF(G42=F42,0,(F42-I42))) -> 0 | I42: =IF(C42="","",G42-J42) -> 0 | J42: 0 | K42: =IF(C42="","",SUM($J$40:J42)) -> 0 | M42: 1 | N42: 3 | O42: 2026-06-15 | P42: 2 | Q42: =IF(N42="","",S41) -> 0 | R42: 0 | S42: =IF(N42="","",IF(R42=Q42,0,(Q42-T42))) -> 0 | T42: =IF(N42="","",R42-U42) -> 0 | U42: 0 | V42: =IF(N42="","",SUM($U$40:U42)) -> 0
B43: 1 | C43: 4 | D43: 2026-07-15 | E43: 2 | F43: 0 | G43: 0 | H43: 0 | I43: 0 | J43: 0 | K43: =IF(C43="","",SUM($J$40:J43)) -> 0 | M43: 1 | N43: 4 | O43: 2026-07-15 | P43: 2 | Q43: 0 | R43: 0 | S43: 0 | T43: 0 | U43: 0 | V43: =IF(N43="","",SUM($U$40:U43)) -> 0
B44: 1 | C44: 5 | D44: 2026-08-15 | E44: 2 | F44: 0 | G44: 0 | H44: 0 | I44: 0 | J44: 0 | K44: =IF(C44="","",SUM($J$40:J44)) -> 0 | M44: 1 | N44: 5 | O44: 2026-08-15 | P44: 2 | Q44: 0 | R44: 0 | S44: 0 | T44: 0 | U44: 0 | V44: =IF(N44="","",SUM($U$40:U44)) -> 0
B45: 1 | C45: 6 | D45: 2026-09-15 | E45: 2 | F45: 0 | G45: 0 | H45: 0 | I45: 0 | J45: 0 | K45: =IF(C45="","",SUM($J$40:J45)) -> 0 | M45: 1 | N45: 6 | O45: 2026-09-15 | P45: 2 | Q45: 0 | R45: 0 | S45: 0 | T45: 0 | U45: 0 | V45: =IF(N45="","",SUM($U$40:U45)) -> 0
B46: 1 | C46: 7 | D46: 2026-10-15 | E46: 2 | F46: 0 | G46: 0 | H46: 0 | I46: 0 | J46: 0 | K46: =IF(C46="","",SUM($J$40:J46)) -> 0 | M46: 1 | N46: 7 | O46: 2026-10-15 | P46: 2 | Q46: 0 | R46: 0 | S46: 0 | T46: 0 | U46: 0 | V46: =IF(N46="","",SUM($U$40:U46)) -> 0
B47: 1 | C47: 8 | D47: 2026-11-15 | E47: 2 | F47: 0 | G47: 0 | H47: 0 | I47: 0 | J47: 0 | K47: =IF(C47="","",SUM($J$40:J47)) -> 0 | M47: 1 | N47: 8 | O47: 2026-11-15 | P47: 2 | Q47: 0 | R47: 0 | S47: 0 | T47: 0 | U47: 0 | V47: =IF(N47="","",SUM($U$40:U47)) -> 0
B48: 1 | C48: 9 | D48: 2026-12-15 | E48: 2 | F48: 0 | G48: 0 | H48: 0 | I48: 0 | J48: 0 | K48: =IF(C48="","",SUM($J$40:J48)) -> 0 | M48: 1 | N48: 9 | O48: 2026-12-15 | P48: 2 | Q48: 0 | R48: 0 | S48: 0 | T48: 0 | U48: 0 | V48: =IF(N48="","",SUM($U$40:U48)) -> 0
B49: 1 | C49: 10 | D49: 2027-01-15 | E49: 2 | F49: 0 | G49: 0 | H49: 0 | I49: 0 | J49: 0 | K49: =IF(C49="","",SUM($J$40:J49)) -> 0 | M49: 1 | N49: 10 | O49: 2027-01-15 | P49: 2 | Q49: 0 | R49: 0 | S49: 0 | T49: 0 | U49: 0 | V49: =IF(N49="","",SUM($U$40:U49)) -> 0
B50: 1 | C50: 11 | D50: 2027-02-15 | E50: 2 | F50: 0 | G50: 0 | H50: 0 | I50: 0 | J50: 0 | K50: =IF(C50="","",SUM($J$40:J50)) -> 0 | M50: 1 | N50: 11 | O50: 2027-02-15 | P50: 2 | Q50: 0 | R50: 0 | S50: 0 | T50: 0 | U50: 0 | V50: =IF(N50="","",SUM($U$40:U50)) -> 0
B51: 1 | C51: 12 | D51: 2027-03-15 | E51: 2 | F51: 0 | G51: 0 | H51: 0 | I51: 0 | J51: 0 | K51: =IF(C51="","",SUM($J$40:J51)) -> 0 | M51: 1 | N51: 12 | O51: 2027-03-15 | P51: 2 | Q51: 0 | R51: 0 | S51: 0 | T51: 0 | U51: 0 | V51: =IF(N51="","",SUM($U$40:U51)) -> 0
B52: 2 | C52: 13 | D52: 2027-04-15 | E52: 3 | F52: 0 | G52: 0 | H52: 0 | I52: 0 | J52: 0 | K52: =IF(C52="","",SUM($J$40:J52)) -> 0 | M52: 2 | N52: 13 | O52: 2027-04-15 | P52: 3 | Q52: 0 | R52: 0 | S52: 0 | T52: 0 | U52: 0 | V52: =IF(N52="","",SUM($U$40:U52)) -> 0
B53: 2 | C53: 14 | D53: 2027-05-15 | E53: 3 | F53: 0 | G53: 0 | H53: 0 | I53: 0 | J53: 0 | K53: =IF(C53="","",SUM($J$40:J53)) -> 0 | M53: 2 | N53: 14 | O53: 2027-05-15 | P53: 3 | Q53: 0 | R53: 0 | S53: 0 | T53: 0 | U53: 0 | V53: =IF(N53="","",SUM($U$40:U53)) -> 0
B54: 2 | C54: 15 | D54: 2027-06-15 | E54: 3 | F54: 0 | G54: 0 | H54: 0 | I54: 0 | J54: 0 | K54: =IF(C54="","",SUM($J$40:J54)) -> 0 | M54: 2 | N54: 15 | O54: 2027-06-15 | P54: 3 | Q54: 0 | R54: 0 | S54: 0 | T54: 0 | U54: 0 | V54: =IF(N54="","",SUM($U$40:U54)) -> 0
B55: 2 | C55: 16 | D55: 2027-07-15 | E55: 3 | F55: 0 | G55: 0 | H55: 0 | I55: 0 | J55: 0 | K55: =IF(C55="","",SUM($J$40:J55)) -> 0 | M55: 2 | N55: 16 | O55: 2027-07-15 | P55: 3 | Q55: 0 | R55: 0 | S55: 0 | T55: 0 | U55: 0 | V55: =IF(N55="","",SUM($U$40:U55)) -> 0
B56: 2 | C56: 17 | D56: 2027-08-15 | E56: 3 | F56: 0 | G56: 0 | H56: 0 | I56: 0 | J56: 0 | K56: =IF(C56="","",SUM($J$40:J56)) -> 0 | M56: 2 | N56: 17 | O56: 2027-08-15 | P56: 3 | Q56: 0 | R56: 0 | S56: 0 | T56: 0 | U56: 0 | V56: =IF(N56="","",SUM($U$40:U56)) -> 0
B57: 2 | C57: 18 | D57: 2027-09-15 | E57: 3 | F57: 0 | G57: 0 | H57: 0 | I57: 0 | J57: 0 | K57: =IF(C57="","",SUM($J$40:J57)) -> 0 | M57: 2 | N57: 18 | O57: 2027-09-15 | P57: 3 | Q57: 0 | R57: 0 | S57: 0 | T57: 0 | U57: 0 | V57: =IF(N57="","",SUM($U$40:U57)) -> 0
B58: 2 | C58: 19 | D58: 2027-10-15 | E58: 3 | F58: 0 | G58: 0 | H58: 0 | I58: 0 | J58: 0 | K58: =IF(C58="","",SUM($J$40:J58)) -> 0 | M58: 2 | N58: 19 | O58: 2027-10-15 | P58: 3 | Q58: 0 | R58: 0 | S58: 0 | T58: 0 | U58: 0 | V58: =IF(N58="","",SUM($U$40:U58)) -> 0
B59: 2 | C59: 20 | D59: 2027-11-15 | E59: 3 | F59: 0 | G59: 0 | H59: 0 | I59: 0 | J59: 0 | K59: =IF(C59="","",SUM($J$40:J59)) -> 0 | M59: 2 | N59: 20 | O59: 2027-11-15 | P59: 3 | Q59: 0 | R59: 0 | S59: 0 | T59: 0 | U59: 0 | V59: =IF(N59="","",SUM($U$40:U59)) -> 0
B60: 2 | C60: 21 | D60: 2027-12-15 | E60: 3 | F60: 0 | G60: 0 | H60: 0 | I60: 0 | J60: 0 | K60: =IF(C60="","",SUM($J$40:J60)) -> 0 | M60: 2 | N60: 21 | O60: 2027-12-15 | P60: 3 | Q60: 0 | R60: 0 | S60: 0 | T60: 0 | U60: 0 | V60: =IF(N60="","",SUM($U$40:U60)) -> 0
B61: 2 | C61: 22 | D61: 2028-01-15 | E61: 3 | F61: 0 | G61: 0 | H61: 0 | I61: 0 | J61: 0 | K61: =IF(C61="","",SUM($J$40:J61)) -> 0 | M61: 2 | N61: 22 | O61: 2028-01-15 | P61: 3 | Q61: 0 | R61: 0 | S61: 0 | T61: 0 | U61: 0 | V61: =IF(N61="","",SUM($U$40:U61)) -> 0
B62: 2 | C62: 23 | D62: 2028-02-15 | E62: 3 | F62: 0 | G62: 0 | H62: 0 | I62: 0 | J62: 0 | K62: =IF(C62="","",SUM($J$40:J62)) -> 0 | M62: 2 | N62: 23 | O62: 2028-02-15 | P62: 3 | Q62: 0 | R62: 0 | S62: 0 | T62: 0 | U62: 0 | V62: =IF(N62="","",SUM($U$40:U62)) -> 0
B63: 2 | C63: 24 | D63: 2028-03-15 | E63: 3 | F63: 0 | G63: 0 | H63: 0 | I63: 0 | J63: 0 | K63: =IF(C63="","",SUM($J$40:J63)) -> 0 | M63: 2 | N63: 24 | O63: 2028-03-15 | P63: 3 | Q63: 0 | R63: 0 | S63: 0 | T63: 0 | U63: 0 | V63: =IF(N63="","",SUM($U$40:U63)) -> 0
B64: 3 | C64: 25 | D64: 2028-04-15 | E64: 4 | F64: 0 | G64: 0 | H64: 0 | I64: 0 | J64: 0 | K64: =IF(C64="","",SUM($J$40:J64)) -> 0 | M64: 3 | N64: 25 | O64: 2028-04-15 | P64: 4 | Q64: 0 | R64: 0 | S64: 0 | T64: 0 | U64: 0 | V64: =IF(N64="","",SUM($U$40:U64)) -> 0
B65: 3 | C65: 26 | D65: 2028-05-15 | E65: 4 | F65: 0 | G65: 0 | H65: 0 | I65: 0 | J65: 0 | K65: =IF(C65="","",SUM($J$40:J65)) -> 0 | M65: 3 | N65: 26 | O65: 2028-05-15 | P65: 4 | Q65: 0 | R65: 0 | S65: 0 | T65: 0 | U65: 0 | V65: =IF(N65="","",SUM($U$40:U65)) -> 0
B66: 3 | C66: 27 | D66: 2028-06-15 | E66: 4 | F66: 0 | G66: 0 | H66: 0 | I66: 0 | J66: 0 | K66: =IF(C66="","",SUM($J$40:J66)) -> 0 | M66: 3 | N66: 27 | O66: 2028-06-15 | P66: 4 | Q66: 0 | R66: 0 | S66: 0 | T66: 0 | U66: 0 | V66: =IF(N66="","",SUM($U$40:U66)) -> 0
B67: 3 | C67: 28 | D67: 2028-07-15 | E67: 4 | F67: 0 | G67: 0 | H67: 0 | I67: 0 | J67: 0 | K67: =IF(C67="","",SUM($J$40:J67)) -> 0 | M67: 3 | N67: 28 | O67: 2028-07-15 | P67: 4 | Q67: 0 | R67: 0 | S67: 0 | T67: 0 | U67: 0 | V67: =IF(N67="","",SUM($U$40:U67)) -> 0
B68: 3 | C68: 29 | D68: 2028-08-15 | E68: 4 | F68: 0 | G68: 0 | H68: 0 | I68: 0 | J68: 0 | K68: =IF(C68="","",SUM($J$40:J68)) -> 0 | M68: 3 | N68: 29 | O68: 2028-08-15 | P68: 4 | Q68: 0 | R68: 0 | S68: 0 | T68: 0 | U68: 0 | V68: =IF(N68="","",SUM($U$40:U68)) -> 0
B69: 3 | C69: 30 | D69: 2028-09-15 | E69: 4 | F69: 0 | G69: 0 | H69: 0 | I69: 0 | J69: 0 | K69: =IF(C69="","",SUM($J$40:J69)) -> 0 | M69: 3 | N69: 30 | O69: 2028-09-15 | P69: 4 | Q69: 0 | R69: 0 | S69: 0 | T69: 0 | U69: 0 | V69: =IF(N69="","",SUM($U$40:U69)) -> 0
B70: 3 | C70: 31 | D70: 2028-10-15 | E70: 4 | F70: 0 | G70: 0 | H70: 0 | I70: 0 | J70: 0 | K70: =IF(C70="","",SUM($J$40:J70)) -> 0 | M70: 3 | N70: 31 | O70: 2028-10-15 | P70: 4 | Q70: 0 | R70: 0 | S70: 0 | T70: 0 | U70: 0 | V70: =IF(N70="","",SUM($U$40:U70)) -> 0
B71: 3 | C71: 32 | D71: 2028-11-15 | E71: 4 | F71: 0 | G71: 0 | H71: 0 | I71: 0 | J71: 0 | K71: =IF(C71="","",SUM($J$40:J71)) -> 0 | M71: 3 | N71: 32 | O71: 2028-11-15 | P71: 4 | Q71: 0 | R71: 0 | S71: 0 | T71: 0 | U71: 0 | V71: =IF(N71="","",SUM($U$40:U71)) -> 0
B72: 3 | C72: 33 | D72: 2028-12-15 | E72: 4 | F72: 0 | G72: 0 | H72: 0 | I72: 0 | J72: 0 | K72: =IF(C72="","",SUM($J$40:J72)) -> 0 | M72: 3 | N72: 33 | O72: 2028-12-15 | P72: 4 | Q72: 0 | R72: 0 | S72: 0 | T72: 0 | U72: 0 | V72: =IF(N72="","",SUM($U$40:U72)) -> 0
B73: 3 | C73: 34 | D73: 2029-01-15 | E73: 4 | F73: 0 | G73: 0 | H73: 0 | I73: 0 | J73: 0 | K73: =IF(C73="","",SUM($J$40:J73)) -> 0 | M73: 3 | N73: 34 | O73: 2029-01-15 | P73: 4 | Q73: 0 | R73: 0 | S73: 0 | T73: 0 | U73: 0 | V73: =IF(N73="","",SUM($U$40:U73)) -> 0
B74: 3 | C74: 35 | D74: 2029-02-15 | E74: 4 | F74: 0 | G74: 0 | H74: 0 | I74: 0 | J74: 0 | K74: =IF(C74="","",SUM($J$40:J74)) -> 0 | M74: 3 | N74: 35 | O74: 2029-02-15 | P74: 4 | Q74: 0 | R74: 0 | S74: 0 | T74: 0 | U74: 0 | V74: =IF(N74="","",SUM($U$40:U74)) -> 0
B75: 3 | C75: 36 | D75: 2029-03-15 | E75: 4 | F75: 0 | G75: 0 | H75: 0 | I75: 0 | J75: 0 | K75: =IF(C75="","",SUM($J$40:J75)) -> 0 | M75: 3 | N75: 36 | O75: 2029-03-15 | P75: 4 | Q75: 0 | R75: 0 | S75: 0 | T75: 0 | U75: 0 | V75: =IF(N75="","",SUM($U$40:U75)) -> 0
B76: 4 | C76: 37 | D76: 2029-04-15 | E76: 5 | F76: 0 | G76: 0 | H76: 0 | I76: 0 | J76: 0 | K76: =IF(C76="","",SUM($J$40:J76)) -> 0 | M76: 4 | N76: 37 | O76: 2029-04-15 | P76: 5 | Q76: 0 | R76: 0 | S76: 0 | T76: 0 | U76: 0 | V76: =IF(N76="","",SUM($U$40:U76)) -> 0
B77: 4 | C77: 38 | D77: 2029-05-15 | E77: 5 | F77: 0 | G77: 0 | H77: 0 | I77: 0 | J77: 0 | K77: =IF(C77="","",SUM($J$40:J77)) -> 0 | M77: 4 | N77: 38 | O77: 2029-05-15 | P77: 5 | Q77: 0 | R77: 0 | S77: 0 | T77: 0 | U77: 0 | V77: =IF(N77="","",SUM($U$40:U77)) -> 0
B78: 4 | C78: 39 | D78: 2029-06-15 | E78: 5 | F78: 0 | G78: 0 | H78: 0 | I78: 0 | J78: 0 | K78: =IF(C78="","",SUM($J$40:J78)) -> 0 | M78: 4 | N78: 39 | O78: 2029-06-15 | P78: 5 | Q78: 0 | R78: 0 | S78: 0 | T78: 0 | U78: 0 | V78: =IF(N78="","",SUM($U$40:U78)) -> 0
B79: 4 | C79: 40 | D79: 2029-07-15 | E79: 5 | F79: 0 | G79: 0 | H79: 0 | I79: 0 | J79: 0 | K79: =IF(C79="","",SUM($J$40:J79)) -> 0 | M79: 4 | N79: 40 | O79: 2029-07-15 | P79: 5 | Q79: 0 | R79: 0 | S79: 0 | T79: 0 | U79: 0 | V79: =IF(N79="","",SUM($U$40:U79)) -> 0
B80: 4 | C80: 41 | D80: 2029-08-15 | E80: 5 | F80: 0 | G80: 0 | H80: 0 | I80: 0 | J80: 0 | K80: =IF(C80="","",SUM($J$40:J80)) -> 0 | M80: 4 | N80: 41 | O80: 2029-08-15 | P80: 5 | Q80: 0 | R80: 0 | S80: 0 | T80: 0 | U80: 0 | V80: =IF(N80="","",SUM($U$40:U80)) -> 0
B81: 4 | C81: 42 | D81: 2029-09-15 | E81: 5 | F81: 0 | G81: 0 | H81: 0 | I81: 0 | J81: 0 | K81: =IF(C81="","",SUM($J$40:J81)) -> 0 | M81: 4 | N81: 42 | O81: 2029-09-15 | P81: 5 | Q81: 0 | R81: 0 | S81: 0 | T81: 0 | U81: 0 | V81: =IF(N81="","",SUM($U$40:U81)) -> 0
B82: 4 | C82: 43 | D82: 2029-10-15 | E82: 5 | F82: 0 | G82: 0 | H82: 0 | I82: 0 | J82: 0 | K82: =IF(C82="","",SUM($J$40:J82)) -> 0 | M82: 4 | N82: 43 | O82: 2029-10-15 | P82: 5 | Q82: 0 | R82: 0 | S82: 0 | T82: 0 | U82: 0 | V82: =IF(N82="","",SUM($U$40:U82)) -> 0
B83: 4 | C83: 44 | D83: 2029-11-15 | E83: 5 | F83: 0 | G83: 0 | H83: 0 | I83: 0 | J83: 0 | K83: =IF(C83="","",SUM($J$40:J83)) -> 0 | M83: 4 | N83: 44 | O83: 2029-11-15 | P83: 5 | Q83: 0 | R83: 0 | S83: 0 | T83: 0 | U83: 0 | V83: =IF(N83="","",SUM($U$40:U83)) -> 0
B84: 4 | C84: 45 | D84: 2029-12-15 | E84: 5 | F84: 0 | G84: 0 | H84: 0 | I84: 0 | J84: 0 | K84: =IF(C84="","",SUM($J$40:J84)) -> 0 | M84: 4 | N84: 45 | O84: 2029-12-15 | P84: 5 | Q84: 0 | R84: 0 | S84: 0 | T84: 0 | U84: 0 | V84: =IF(N84="","",SUM($U$40:U84)) -> 0
B85: 4 | C85: 46 | D85: 2030-01-15 | E85: 5 | F85: 0 | G85: 0 | H85: 0 | I85: 0 | J85: 0 | K85: =IF(C85="","",SUM($J$40:J85)) -> 0 | M85: 4 | N85: 46 | O85: 2030-01-15 | P85: 5 | Q85: 0 | R85: 0 | S85: 0 | T85: 0 | U85: 0 | V85: =IF(N85="","",SUM($U$40:U85)) -> 0
B86: 4 | C86: 47 | D86: 2030-02-15 | E86: 5 | F86: 0 | G86: 0 | H86: 0 | I86: 0 | J86: 0 | K86: =IF(C86="","",SUM($J$40:J86)) -> 0 | M86: 4 | N86: 47 | O86: 2030-02-15 | P86: 5 | Q86: 0 | R86: 0 | S86: 0 | T86: 0 | U86: 0 | V86: =IF(N86="","",SUM($U$40:U86)) -> 0
B87: 4 | C87: 48 | D87: 2030-03-15 | E87: 5 | F87: 0 | G87: 0 | H87: 0 | I87: 0 | J87: 0 | K87: =IF(C87="","",SUM($J$40:J87)) -> 0 | M87: 4 | N87: 48 | O87: 2030-03-15 | P87: 5 | Q87: 0 | R87: 0 | S87: 0 | T87: 0 | U87: 0 | V87: =IF(N87="","",SUM($U$40:U87)) -> 0
B88: 5 | C88: 49 | D88: 2030-04-15 | E88: 6 | F88: 0 | G88: 0 | H88: 0 | I88: 0 | J88: 0 | K88: =IF(C88="","",SUM($J$40:J88)) -> 0 | M88: 5 | N88: 49 | O88: 2030-04-15 | P88: 6 | Q88: 0 | R88: 0 | S88: 0 | T88: 0 | U88: 0 | V88: =IF(N88="","",SUM($U$40:U88)) -> 0
B89: 5 | C89: 50 | D89: 2030-05-15 | E89: 6 | F89: 0 | G89: 0 | H89: 0 | I89: 0 | J89: 0 | K89: =IF(C89="","",SUM($J$40:J89)) -> 0 | M89: 5 | N89: 50 | O89: 2030-05-15 | P89: 6 | Q89: 0 | R89: 0 | S89: 0 | T89: 0 | U89: 0 | V89: =IF(N89="","",SUM($U$40:U89)) -> 0
B90: 5 | C90: 51 | D90: 2030-06-15 | E90: 6 | F90: 0 | G90: 0 | H90: 0 | I90: 0 | J90: 0 | K90: =IF(C90="","",SUM($J$40:J90)) -> 0 | M90: 5 | N90: 51 | O90: 2030-06-15 | P90: 6 | Q90: 0 | R90: 0 | S90: 0 | T90: 0 | U90: 0 | V90: =IF(N90="","",SUM($U$40:U90)) -> 0
B91: 5 | C91: 52 | D91: 2030-07-15 | E91: 6 | F91: 0 | G91: 0 | H91: 0 | I91: 0 | J91: 0 | K91: =IF(C91="","",SUM($J$40:J91)) -> 0 | M91: 5 | N91: 52 | O91: 2030-07-15 | P91: 6 | Q91: 0 | R91: 0 | S91: 0 | T91: 0 | U91: 0 | V91: =IF(N91="","",SUM($U$40:U91)) -> 0
B92: 5 | C92: 53 | D92: 2030-08-15 | E92: 6 | F92: 0 | G92: 0 | H92: 0 | I92: 0 | J92: 0 | K92: =IF(C92="","",SUM($J$40:J92)) -> 0 | M92: 5 | N92: 53 | O92: 2030-08-15 | P92: 6 | Q92: 0 | R92: 0 | S92: 0 | T92: 0 | U92: 0 | V92: =IF(N92="","",SUM($U$40:U92)) -> 0
B93: 5 | C93: 54 | D93: 2030-09-15 | E93: 6 | F93: 0 | G93: 0 | H93: 0 | I93: 0 | J93: 0 | K93: =IF(C93="","",SUM($J$40:J93)) -> 0 | M93: 5 | N93: 54 | O93: 2030-09-15 | P93: 6 | Q93: 0 | R93: 0 | S93: 0 | T93: 0 | U93: 0 | V93: =IF(N93="","",SUM($U$40:U93)) -> 0
B94: 5 | C94: 55 | D94: 2030-10-15 | E94: 6 | F94: 0 | G94: 0 | H94: 0 | I94: 0 | J94: 0 | K94: =IF(C94="","",SUM($J$40:J94)) -> 0 | M94: 5 | N94: 55 | O94: 2030-10-15 | P94: 6 | Q94: 0 | R94: 0 | S94: 0 | T94: 0 | U94: 0 | V94: =IF(N94="","",SUM($U$40:U94)) -> 0
B95: 5 | C95: 56 | D95: 2030-11-15 | E95: 6 | F95: 0 | G95: 0 | H95: 0 | I95: 0 | J95: 0 | K95: =IF(C95="","",SUM($J$40:J95)) -> 0 | M95: 5 | N95: 56 | O95: 2030-11-15 | P95: 6 | Q95: 0 | R95: 0 | S95: 0 | T95: 0 | U95: 0 | V95: =IF(N95="","",SUM($U$40:U95)) -> 0
B96: 5 | C96: 57 | D96: 2030-12-15 | E96: 6 | F96: 0 | G96: 0 | H96: 0 | I96: 0 | J96: 0 | K96: =IF(C96="","",SUM($J$40:J96)) -> 0 | M96: 5 | N96: 57 | O96: 2030-12-15 | P96: 6 | Q96: 0 | R96: 0 | S96: 0 | T96: 0 | U96: 0 | V96: =IF(N96="","",SUM($U$40:U96)) -> 0
B97: 5 | C97: 58 | D97: 2031-01-15 | E97: 6 | F97: 0 | G97: 0 | H97: 0 | I97: 0 | J97: 0 | K97: =IF(C97="","",SUM($J$40:J97)) -> 0 | M97: 5 | N97: 58 | O97: 2031-01-15 | P97: 6 | Q97: 0 | R97: 0 | S97: 0 | T97: 0 | U97: 0 | V97: =IF(N97="","",SUM($U$40:U97)) -> 0
B98: 5 | C98: 59 | D98: 2031-02-15 | E98: 6 | F98: 0 | G98: 0 | H98: 0 | I98: 0 | J98: 0 | K98: =IF(C98="","",SUM($J$40:J98)) -> 0 | M98: 5 | N98: 59 | O98: 2031-02-15 | P98: 6 | Q98: 0 | R98: 0 | S98: 0 | T98: 0 | U98: 0 | V98: =IF(N98="","",SUM($U$40:U98)) -> 0
B99: 5 | C99: 60 | D99: 2031-03-15 | E99: 6 | F99: 0 | G99: 0 | H99: 0 | I99: 0 | J99: 0 | K99: =IF(C99="","",SUM($J$40:J99)) -> 0 | M99: 5 | N99: 60 | O99: 2031-03-15 | P99: 6 | Q99: 0 | R99: 0 | S99: 0 | T99: 0 | U99: 0 | V99: =IF(N99="","",SUM($U$40:U99)) -> 0
B100: 6 | C100: 61 | D100: 2031-04-15 | E100: 7 | F100: 0 | G100: 0 | H100: 0 | I100: 0 | J100: 0 | K100: =IF(C100="","",SUM($J$40:J100)) -> 0 | M100: 6 | N100: 61 | O100: 2031-04-15 | P100: 7 | Q100: 0 | R100: 0 | S100: 0 | T100: 0 | U100: 0 | V100: =IF(N100="","",SUM($U$40:U100)) -> 0
B101: 6 | C101: 62 | D101: 2031-05-15 | E101: 7 | F101: 0 | G101: 0 | H101: 0 | I101: 0 | J101: 0 | K101: =IF(C101="","",SUM($J$40:J101)) -> 0 | M101: 6 | N101: 62 | O101: 2031-05-15 | P101: 7 | Q101: 0 | R101: 0 | S101: 0 | T101: 0 | U101: 0 | V101: =IF(N101="","",SUM($U$40:U101)) -> 0
B102: 6 | C102: 63 | D102: 2031-06-15 | E102: 7 | F102: 0 | G102: 0 | H102: 0 | I102: 0 | J102: 0 | K102: =IF(C102="","",SUM($J$40:J102)) -> 0 | M102: 6 | N102: 63 | O102: 2031-06-15 | P102: 7 | Q102: 0 | R102: 0 | S102: 0 | T102: 0 | U102: 0 | V102: =IF(N102="","",SUM($U$40:U102)) -> 0
B103: 6 | C103: 64 | D103: 2031-07-15 | E103: 7 | F103: 0 | G103: 0 | H103: 0 | I103: 0 | J103: 0 | K103: =IF(C103="","",SUM($J$40:J103)) -> 0 | M103: 6 | N103: 64 | O103: 2031-07-15 | P103: 7 | Q103: 0 | R103: 0 | S103: 0 | T103: 0 | U103: 0 | V103: =IF(N103="","",SUM($U$40:U103)) -> 0
B104: 6 | C104: 65 | D104: 2031-08-15 | E104: 7 | F104: 0 | G104: =IF(C104="","",$D$17) -> 0 | H104: 0 | I104: 0 | J104: =IF(C104="","",($D$15/12)*F104) -> 0 | K104: =IF(C104="","",SUM($J$40:J104)) -> 0 | M104: 6 | N104: 65 | O104: 2031-08-15 | P104: 7 | Q104: 0 | R104: =IF(N104="","",$D$17) -> 0 | S104: 0 | T104: 0 | U104: =IF(N104="","",($D$15/12)*Q104) -> 0 | V104: =IF(N104="","",SUM($U$40:U104)) -> 0
B105: =IFERROR(INT((C105-1)/12)+1,"") -> 6 | C105: =IF(C104>=No_of_pymts,"",C104+1) -> 66 | D105: =IF(C105="","",EDATE(Loan_start_date,C105)) -> 2031-09-15 | E105: 7 | F105: 0 | G105: 0 | H105: 0 | I105: 0 | J105: 0 | K105: =IF(C105="","",SUM($J$40:J105)) -> 0 | M105: =IFERROR(INT((N105-1)/12)+1,"") -> 6 | N105: =IF(N104>=No_of_pymts,"",N104+1) -> 66 | O105: =IF(N105="","",EDATE(Loan_start_date,N105)) -> 2031-09-15 | P105: =IF($N105="","",IF($E$6="",$M105+1,INT(($O105-$E$6)/365))) -> 7 | Q105: 0 | R105: 0 | S105: 0 | T105: 0 | U105: 0 | V105: =IF(N105="","",SUM($U$40:U105)) -> 0
B106: 6 | C106: 67 | D106: 2031-10-15 | E106: =IF($C106="","",IF($D$6="",$B106+1,INT(($D106-$D$6)/365.25))) -> 7 | F106: =IF(C106="","",H105) -> 0 | G106: 0 | H106: =IF(C106="","",IF(G106=F106,0,(F106-I106))) -> 0 | I106: =IF(C106="","",G106-J106) -> 0 | J106: 0 | K106: =IF(C106="","",SUM($J$40:J106)) -> 0 | M106: 6 | N106: 67 | O106: 2031-10-15 | P106: 7 | Q106: =IF(N106="","",S105) -> 0 | R106: 0 | S106: =IF(N106="","",IF(R106=Q106,0,(Q106-T106))) -> 0 | T106: =IF(N106="","",R106-U106) -> 0 | U106: 0 | V106: =IF(N106="","",SUM($U$40:U106)) -> 0
B107: 6 | C107: 68 | D107: 2031-11-15 | E107: 7 | F107: 0 | G107: 0 | H107: 0 | I107: 0 | J107: 0 | K107: =IF(C107="","",SUM($J$40:J107)) -> 0 | M107: 6 | N107: 68 | O107: 2031-11-15 | P107: 7 | Q107: 0 | R107: 0 | S107: 0 | T107: 0 | U107: 0 | V107: =IF(N107="","",SUM($U$40:U107)) -> 0
B108: 6 | C108: 69 | D108: 2031-12-15 | E108: 7 | F108: 0 | G108: 0 | H108: 0 | I108: 0 | J108: 0 | K108: =IF(C108="","",SUM($J$40:J108)) -> 0 | M108: 6 | N108: 69 | O108: 2031-12-15 | P108: 7 | Q108: 0 | R108: 0 | S108: 0 | T108: 0 | U108: 0 | V108: =IF(N108="","",SUM($U$40:U108)) -> 0
B109: 6 | C109: 70 | D109: 2032-01-15 | E109: 7 | F109: 0 | G109: 0 | H109: 0 | I109: 0 | J109: 0 | K109: =IF(C109="","",SUM($J$40:J109)) -> 0 | M109: 6 | N109: 70 | O109: 2032-01-15 | P109: 7 | Q109: 0 | R109: 0 | S109: 0 | T109: 0 | U109: 0 | V109: =IF(N109="","",SUM($U$40:U109)) -> 0
B110: 6 | C110: 71 | D110: 2032-02-15 | E110: 7 | F110: 0 | G110: 0 | H110: 0 | I110: 0 | J110: 0 | K110: =IF(C110="","",SUM($J$40:J110)) -> 0 | M110: 6 | N110: 71 | O110: 2032-02-15 | P110: 7 | Q110: 0 | R110: 0 | S110: 0 | T110: 0 | U110: 0 | V110: =IF(N110="","",SUM($U$40:U110)) -> 0
B111: 6 | C111: 72 | D111: 2032-03-15 | E111: 7 | F111: 0 | G111: 0 | H111: 0 | I111: 0 | J111: 0 | K111: =IF(C111="","",SUM($J$40:J111)) -> 0 | M111: 6 | N111: 72 | O111: 2032-03-15 | P111: 7 | Q111: 0 | R111: 0 | S111: 0 | T111: 0 | U111: 0 | V111: =IF(N111="","",SUM($U$40:U111)) -> 0
B112: 7 | C112: 73 | D112: 2032-04-15 | E112: 8 | F112: 0 | G112: 0 | H112: 0 | I112: 0 | J112: 0 | K112: =IF(C112="","",SUM($J$40:J112)) -> 0 | M112: 7 | N112: 73 | O112: 2032-04-15 | P112: 8 | Q112: 0 | R112: 0 | S112: 0 | T112: 0 | U112: 0 | V112: =IF(N112="","",SUM($U$40:U112)) -> 0
B113: 7 | C113: 74 | D113: 2032-05-15 | E113: 8 | F113: 0 | G113: 0 | H113: 0 | I113: 0 | J113: 0 | K113: =IF(C113="","",SUM($J$40:J113)) -> 0 | M113: 7 | N113: 74 | O113: 2032-05-15 | P113: 8 | Q113: 0 | R113: 0 | S113: 0 | T113: 0 | U113: 0 | V113: =IF(N113="","",SUM($U$40:U113)) -> 0
B114: 7 | C114: 75 | D114: 2032-06-15 | E114: 8 | F114: 0 | G114: 0 | H114: 0 | I114: 0 | J114: 0 | K114: =IF(C114="","",SUM($J$40:J114)) -> 0 | M114: 7 | N114: 75 | O114: 2032-06-15 | P114: 8 | Q114: 0 | R114: 0 | S114: 0 | T114: 0 | U114: 0 | V114: =IF(N114="","",SUM($U$40:U114)) -> 0
B115: 7 | C115: 76 | D115: 2032-07-15 | E115: 8 | F115: 0 | G115: 0 | H115: 0 | I115: 0 | J115: 0 | K115: =IF(C115="","",SUM($J$40:J115)) -> 0 | M115: 7 | N115: 76 | O115: 2032-07-15 | P115: 8 | Q115: 0 | R115: 0 | S115: 0 | T115: 0 | U115: 0 | V115: =IF(N115="","",SUM($U$40:U115)) -> 0
B116: 7 | C116: 77 | D116: 2032-08-15 | E116: 8 | F116: 0 | G116: 0 | H116: 0 | I116: 0 | J116: 0 | K116: =IF(C116="","",SUM($J$40:J116)) -> 0 | M116: 7 | N116: 77 | O116: 2032-08-15 | P116: 8 | Q116: 0 | R116: 0 | S116: 0 | T116: 0 | U116: 0 | V116: =IF(N116="","",SUM($U$40:U116)) -> 0
B117: 7 | C117: 78 | D117: 2032-09-15 | E117: 8 | F117: 0 | G117: 0 | H117: 0 | I117: 0 | J117: 0 | K117: =IF(C117="","",SUM($J$40:J117)) -> 0 | M117: 7 | N117: 78 | O117: 2032-09-15 | P117: 8 | Q117: 0 | R117: 0 | S117: 0 | T117: 0 | U117: 0 | V117: =IF(N117="","",SUM($U$40:U117)) -> 0
B118: 7 | C118: 79 | D118: 2032-10-15 | E118: 8 | F118: 0 | G118: 0 | H118: 0 | I118: 0 | J118: 0 | K118: =IF(C118="","",SUM($J$40:J118)) -> 0 | M118: 7 | N118: 79 | O118: 2032-10-15 | P118: 8 | Q118: 0 | R118: 0 | S118: 0 | T118: 0 | U118: 0 | V118: =IF(N118="","",SUM($U$40:U118)) -> 0
B119: 7 | C119: 80 | D119: 2032-11-15 | E119: 8 | F119: 0 | G119: 0 | H119: 0 | I119: 0 | J119: 0 | K119: =IF(C119="","",SUM($J$40:J119)) -> 0 | M119: 7 | N119: 80 | O119: 2032-11-15 | P119: 8 | Q119: 0 | R119: 0 | S119: 0 | T119: 0 | U119: 0 | V119: =IF(N119="","",SUM($U$40:U119)) -> 0
B120: 7 | C120: 81 | D120: 2032-12-15 | E120: 8 | F120: 0 | G120: 0 | H120: 0 | I120: 0 | J120: 0 | K120: =IF(C120="","",SUM($J$40:J120)) -> 0 | M120: 7 | N120: 81 | O120: 2032-12-15 | P120: 8 | Q120: 0 | R120: 0 | S120: 0 | T120: 0 | U120: 0 | V120: =IF(N120="","",SUM($U$40:U120)) -> 0
B121: 7 | C121: 82 | D121: 2033-01-15 | E121: 8 | F121: 0 | G121: 0 | H121: 0 | I121: 0 | J121: 0 | K121: =IF(C121="","",SUM($J$40:J121)) -> 0 | M121: 7 | N121: 82 | O121: 2033-01-15 | P121: 8 | Q121: 0 | R121: 0 | S121: 0 | T121: 0 | U121: 0 | V121: =IF(N121="","",SUM($U$40:U121)) -> 0
B122: 7 | C122: 83 | D122: 2033-02-15 | E122: 8 | F122: 0 | G122: 0 | H122: 0 | I122: 0 | J122: 0 | K122: =IF(C122="","",SUM($J$40:J122)) -> 0 | M122: 7 | N122: 83 | O122: 2033-02-15 | P122: 8 | Q122: 0 | R122: 0 | S122: 0 | T122: 0 | U122: 0 | V122: =IF(N122="","",SUM($U$40:U122)) -> 0
B123: 7 | C123: 84 | D123: 2033-03-15 | E123: 8 | F123: 0 | G123: 0 | H123: 0 | I123: 0 | J123: 0 | K123: =IF(C123="","",SUM($J$40:J123)) -> 0 | M123: 7 | N123: 84 | O123: 2033-03-15 | P123: 8 | Q123: 0 | R123: 0 | S123: 0 | T123: 0 | U123: 0 | V123: =IF(N123="","",SUM($U$40:U123)) -> 0
B124: 8 | C124: 85 | D124: 2033-04-15 | E124: 9 | F124: 0 | G124: 0 | H124: 0 | I124: 0 | J124: 0 | K124: =IF(C124="","",SUM($J$40:J124)) -> 0 | M124: 8 | N124: 85 | O124: 2033-04-15 | P124: 9 | Q124: 0 | R124: 0 | S124: 0 | T124: 0 | U124: 0 | V124: =IF(N124="","",SUM($U$40:U124)) -> 0
B125: 8 | C125: 86 | D125: 2033-05-15 | E125: 9 | F125: 0 | G125: 0 | H125: 0 | I125: 0 | J125: 0 | K125: =IF(C125="","",SUM($J$40:J125)) -> 0 | M125: 8 | N125: 86 | O125: 2033-05-15 | P125: 9 | Q125: 0 | R125: 0 | S125: 0 | T125: 0 | U125: 0 | V125: =IF(N125="","",SUM($U$40:U125)) -> 0
B126: 8 | C126: 87 | D126: 2033-06-15 | E126: 9 | F126: 0 | G126: 0 | H126: 0 | I126: 0 | J126: 0 | K126: =IF(C126="","",SUM($J$40:J126)) -> 0 | M126: 8 | N126: 87 | O126: 2033-06-15 | P126: 9 | Q126: 0 | R126: 0 | S126: 0 | T126: 0 | U126: 0 | V126: =IF(N126="","",SUM($U$40:U126)) -> 0
B127: 8 | C127: 88 | D127: 2033-07-15 | E127: 9 | F127: 0 | G127: 0 | H127: 0 | I127: 0 | J127: 0 | K127: =IF(C127="","",SUM($J$40:J127)) -> 0 | M127: 8 | N127: 88 | O127: 2033-07-15 | P127: 9 | Q127: 0 | R127: 0 | S127: 0 | T127: 0 | U127: 0 | V127: =IF(N127="","",SUM($U$40:U127)) -> 0
B128: 8 | C128: 89 | D128: 2033-08-15 | E128: 9 | F128: 0 | G128: 0 | H128: 0 | I128: 0 | J128: 0 | K128: =IF(C128="","",SUM($J$40:J128)) -> 0 | M128: 8 | N128: 89 | O128: 2033-08-15 | P128: 9 | Q128: 0 | R128: 0 | S128: 0 | T128: 0 | U128: 0 | V128: =IF(N128="","",SUM($U$40:U128)) -> 0
B129: 8 | C129: 90 | D129: 2033-09-15 | E129: 9 | F129: 0 | G129: 0 | H129: 0 | I129: 0 | J129: 0 | K129: =IF(C129="","",SUM($J$40:J129)) -> 0 | M129: 8 | N129: 90 | O129: 2033-09-15 | P129: 9 | Q129: 0 | R129: 0 | S129: 0 | T129: 0 | U129: 0 | V129: =IF(N129="","",SUM($U$40:U129)) -> 0
B130: 8 | C130: 91 | D130: 2033-10-15 | E130: 9 | F130: 0 | G130: 0 | H130: 0 | I130: 0 | J130: 0 | K130: =IF(C130="","",SUM($J$40:J130)) -> 0 | M130: 8 | N130: 91 | O130: 2033-10-15 | P130: 9 | Q130: 0 | R130: 0 | S130: 0 | T130: 0 | U130: 0 | V130: =IF(N130="","",SUM($U$40:U130)) -> 0
B131: 8 | C131: 92 | D131: 2033-11-15 | E131: 9 | F131: 0 | G131: 0 | H131: 0 | I131: 0 | J131: 0 | K131: =IF(C131="","",SUM($J$40:J131)) -> 0 | M131: 8 | N131: 92 | O131: 2033-11-15 | P131: 9 | Q131: 0 | R131: 0 | S131: 0 | T131: 0 | U131: 0 | V131: =IF(N131="","",SUM($U$40:U131)) -> 0
B132: 8 | C132: 93 | D132: 2033-12-15 | E132: 9 | F132: 0 | G132: 0 | H132: 0 | I132: 0 | J132: 0 | K132: =IF(C132="","",SUM($J$40:J132)) -> 0 | M132: 8 | N132: 93 | O132: 2033-12-15 | P132: 9 | Q132: 0 | R132: 0 | S132: 0 | T132: 0 | U132: 0 | V132: =IF(N132="","",SUM($U$40:U132)) -> 0
B133: 8 | C133: 94 | D133: 2034-01-15 | E133: 9 | F133: 0 | G133: 0 | H133: 0 | I133: 0 | J133: 0 | K133: =IF(C133="","",SUM($J$40:J133)) -> 0 | M133: 8 | N133: 94 | O133: 2034-01-15 | P133: 9 | Q133: 0 | R133: 0 | S133: 0 | T133: 0 | U133: 0 | V133: =IF(N133="","",SUM($U$40:U133)) -> 0
B134: 8 | C134: 95 | D134: 2034-02-15 | E134: 9 | F134: 0 | G134: 0 | H134: 0 | I134: 0 | J134: 0 | K134: =IF(C134="","",SUM($J$40:J134)) -> 0 | M134: 8 | N134: 95 | O134: 2034-02-15 | P134: 9 | Q134: 0 | R134: 0 | S134: 0 | T134: 0 | U134: 0 | V134: =IF(N134="","",SUM($U$40:U134)) -> 0
B135: 8 | C135: 96 | D135: 2034-03-15 | E135: 9 | F135: 0 | G135: 0 | H135: 0 | I135: 0 | J135: 0 | K135: =IF(C135="","",SUM($J$40:J135)) -> 0 | M135: 8 | N135: 96 | O135: 2034-03-15 | P135: 9 | Q135: 0 | R135: 0 | S135: 0 | T135: 0 | U135: 0 | V135: =IF(N135="","",SUM($U$40:U135)) -> 0
B136: 9 | C136: 97 | D136: 2034-04-15 | E136: 10 | F136: 0 | G136: 0 | H136: 0 | I136: 0 | J136: 0 | K136: =IF(C136="","",SUM($J$40:J136)) -> 0 | M136: 9 | N136: 97 | O136: 2034-04-15 | P136: 10 | Q136: 0 | R136: 0 | S136: 0 | T136: 0 | U136: 0 | V136: =IF(N136="","",SUM($U$40:U136)) -> 0
B137: 9 | C137: 98 | D137: 2034-05-15 | E137: 10 | F137: 0 | G137: 0 | H137: 0 | I137: 0 | J137: 0 | K137: =IF(C137="","",SUM($J$40:J137)) -> 0 | M137: 9 | N137: 98 | O137: 2034-05-15 | P137: 10 | Q137: 0 | R137: 0 | S137: 0 | T137: 0 | U137: 0 | V137: =IF(N137="","",SUM($U$40:U137)) -> 0
B138: 9 | C138: 99 | D138: 2034-06-15 | E138: 10 | F138: 0 | G138: 0 | H138: 0 | I138: 0 | J138: 0 | K138: =IF(C138="","",SUM($J$40:J138)) -> 0 | M138: 9 | N138: 99 | O138: 2034-06-15 | P138: 10 | Q138: 0 | R138: 0 | S138: 0 | T138: 0 | U138: 0 | V138: =IF(N138="","",SUM($U$40:U138)) -> 0
B139: 9 | C139: 100 | D139: 2034-07-15 | E139: 10 | F139: 0 | G139: 0 | H139: 0 | I139: 0 | J139: 0 | K139: =IF(C139="","",SUM($J$40:J139)) -> 0 | M139: 9 | N139: 100 | O139: 2034-07-15 | P139: 10 | Q139: 0 | R139: 0 | S139: 0 | T139: 0 | U139: 0 | V139: =IF(N139="","",SUM($U$40:U139)) -> 0
B140: 9 | C140: 101 | D140: 2034-08-15 | E140: 10 | F140: 0 | G140: 0 | H140: 0 | I140: 0 | J140: 0 | K140: =IF(C140="","",SUM($J$40:J140)) -> 0 | M140: 9 | N140: 101 | O140: 2034-08-15 | P140: 10 | Q140: 0 | R140: 0 | S140: 0 | T140: 0 | U140: 0 | V140: =IF(N140="","",SUM($U$40:U140)) -> 0
B141: 9 | C141: 102 | D141: 2034-09-15 | E141: 10 | F141: 0 | G141: 0 | H141: 0 | I141: 0 | J141: 0 | K141: =IF(C141="","",SUM($J$40:J141)) -> 0 | M141: 9 | N141: 102 | O141: 2034-09-15 | P141: 10 | Q141: 0 | R141: 0 | S141: 0 | T141: 0 | U141: 0 | V141: =IF(N141="","",SUM($U$40:U141)) -> 0
B142: 9 | C142: 103 | D142: 2034-10-15 | E142: 10 | F142: 0 | G142: 0 | H142: 0 | I142: 0 | J142: 0 | K142: =IF(C142="","",SUM($J$40:J142)) -> 0 | M142: 9 | N142: 103 | O142: 2034-10-15 | P142: 10 | Q142: 0 | R142: 0 | S142: 0 | T142: 0 | U142: 0 | V142: =IF(N142="","",SUM($U$40:U142)) -> 0
B143: 9 | C143: 104 | D143: 2034-11-15 | E143: 10 | F143: 0 | G143: 0 | H143: 0 | I143: 0 | J143: 0 | K143: =IF(C143="","",SUM($J$40:J143)) -> 0 | M143: 9 | N143: 104 | O143: 2034-11-15 | P143: 10 | Q143: 0 | R143: 0 | S143: 0 | T143: 0 | U143: 0 | V143: =IF(N143="","",SUM($U$40:U143)) -> 0
B144: 9 | C144: 105 | D144: 2034-12-15 | E144: 10 | F144: 0 | G144: 0 | H144: 0 | I144: 0 | J144: 0 | K144: =IF(C144="","",SUM($J$40:J144)) -> 0 | M144: 9 | N144: 105 | O144: 2034-12-15 | P144: 10 | Q144: 0 | R144: 0 | S144: 0 | T144: 0 | U144: 0 | V144: =IF(N144="","",SUM($U$40:U144)) -> 0
B145: 9 | C145: 106 | D145: 2035-01-15 | E145: 10 | F145: 0 | G145: 0 | H145: 0 | I145: 0 | J145: 0 | K145: =IF(C145="","",SUM($J$40:J145)) -> 0 | M145: 9 | N145: 106 | O145: 2035-01-15 | P145: 10 | Q145: 0 | R145: 0 | S145: 0 | T145: 0 | U145: 0 | V145: =IF(N145="","",SUM($U$40:U145)) -> 0
B146: 9 | C146: 107 | D146: 2035-02-15 | E146: 10 | F146: 0 | G146: 0 | H146: 0 | I146: 0 | J146: 0 | K146: =IF(C146="","",SUM($J$40:J146)) -> 0 | M146: 9 | N146: 107 | O146: 2035-02-15 | P146: 10 | Q146: 0 | R146: 0 | S146: 0 | T146: 0 | U146: 0 | V146: =IF(N146="","",SUM($U$40:U146)) -> 0
B147: 9 | C147: 108 | D147: 2035-03-15 | E147: 10 | F147: 0 | G147: 0 | H147: 0 | I147: 0 | J147: 0 | K147: =IF(C147="","",SUM($J$40:J147)) -> 0 | M147: 9 | N147: 108 | O147: 2035-03-15 | P147: 10 | Q147: 0 | R147: 0 | S147: 0 | T147: 0 | U147: 0 | V147: =IF(N147="","",SUM($U$40:U147)) -> 0
B148: 10 | C148: 109 | D148: 2035-04-15 | E148: 11 | F148: 0 | G148: 0 | H148: 0 | I148: 0 | J148: 0 | K148: =IF(C148="","",SUM($J$40:J148)) -> 0 | M148: 10 | N148: 109 | O148: 2035-04-15 | P148: 11 | Q148: 0 | R148: 0 | S148: 0 | T148: 0 | U148: 0 | V148: =IF(N148="","",SUM($U$40:U148)) -> 0
B149: 10 | C149: 110 | D149: 2035-05-15 | E149: 11 | F149: 0 | G149: 0 | H149: 0 | I149: 0 | J149: 0 | K149: =IF(C149="","",SUM($J$40:J149)) -> 0 | M149: 10 | N149: 110 | O149: 2035-05-15 | P149: 11 | Q149: 0 | R149: 0 | S149: 0 | T149: 0 | U149: 0 | V149: =IF(N149="","",SUM($U$40:U149)) -> 0
B150: 10 | C150: 111 | D150: 2035-06-15 | E150: 11 | F150: 0 | G150: 0 | H150: 0 | I150: 0 | J150: 0 | K150: =IF(C150="","",SUM($J$40:J150)) -> 0 | M150: 10 | N150: 111 | O150: 2035-06-15 | P150: 11 | Q150: 0 | R150: 0 | S150: 0 | T150: 0 | U150: 0 | V150: =IF(N150="","",SUM($U$40:U150)) -> 0
B151: 10 | C151: 112 | D151: 2035-07-15 | E151: 11 | F151: 0 | G151: 0 | H151: 0 | I151: 0 | J151: 0 | K151: =IF(C151="","",SUM($J$40:J151)) -> 0 | M151: 10 | N151: 112 | O151: 2035-07-15 | P151: 11 | Q151: 0 | R151: 0 | S151: 0 | T151: 0 | U151: 0 | V151: =IF(N151="","",SUM($U$40:U151)) -> 0
B152: 10 | C152: 113 | D152: 2035-08-15 | E152: 11 | F152: 0 | G152: 0 | H152: 0 | I152: 0 | J152: 0 | K152: =IF(C152="","",SUM($J$40:J152)) -> 0 | M152: 10 | N152: 113 | O152: 2035-08-15 | P152: 11 | Q152: 0 | R152: 0 | S152: 0 | T152: 0 | U152: 0 | V152: =IF(N152="","",SUM($U$40:U152)) -> 0
B153: 10 | C153: 114 | D153: 2035-09-15 | E153: 11 | F153: 0 | G153: 0 | H153: 0 | I153: 0 | J153: 0 | K153: =IF(C153="","",SUM($J$40:J153)) -> 0 | M153: 10 | N153: 114 | O153: 2035-09-15 | P153: 11 | Q153: 0 | R153: 0 | S153: 0 | T153: 0 | U153: 0 | V153: =IF(N153="","",SUM($U$40:U153)) -> 0
B154: 10 | C154: 115 | D154: 2035-10-15 | E154: 11 | F154: 0 | G154: 0 | H154: 0 | I154: 0 | J154: 0 | K154: =IF(C154="","",SUM($J$40:J154)) -> 0 | M154: 10 | N154: 115 | O154: 2035-10-15 | P154: 11 | Q154: 0 | R154: 0 | S154: 0 | T154: 0 | U154: 0 | V154: =IF(N154="","",SUM($U$40:U154)) -> 0
B155: 10 | C155: 116 | D155: 2035-11-15 | E155: 11 | F155: 0 | G155: 0 | H155: 0 | I155: 0 | J155: 0 | K155: =IF(C155="","",SUM($J$40:J155)) -> 0 | M155: 10 | N155: 116 | O155: 2035-11-15 | P155: 11 | Q155: 0 | R155: 0 | S155: 0 | T155: 0 | U155: 0 | V155: =IF(N155="","",SUM($U$40:U155)) -> 0
B156: 10 | C156: 117 | D156: 2035-12-15 | E156: 11 | F156: 0 | G156: 0 | H156: 0 | I156: 0 | J156: 0 | K156: =IF(C156="","",SUM($J$40:J156)) -> 0 | M156: 10 | N156: 117 | O156: 2035-12-15 | P156: 11 | Q156: 0 | R156: 0 | S156: 0 | T156: 0 | U156: 0 | V156: =IF(N156="","",SUM($U$40:U156)) -> 0
B157: 10 | C157: 118 | D157: 2036-01-15 | E157: 11 | F157: 0 | G157: 0 | H157: 0 | I157: 0 | J157: 0 | K157: =IF(C157="","",SUM($J$40:J157)) -> 0 | M157: 10 | N157: 118 | O157: 2036-01-15 | P157: 11 | Q157: 0 | R157: 0 | S157: 0 | T157: 0 | U157: 0 | V157: =IF(N157="","",SUM($U$40:U157)) -> 0
B158: 10 | C158: 119 | D158: 2036-02-15 | E158: 11 | F158: 0 | G158: 0 | H158: 0 | I158: 0 | J158: 0 | K158: =IF(C158="","",SUM($J$40:J158)) -> 0 | M158: 10 | N158: 119 | O158: 2036-02-15 | P158: 11 | Q158: 0 | R158: 0 | S158: 0 | T158: 0 | U158: 0 | V158: =IF(N158="","",SUM($U$40:U158)) -> 0
B159: 10 | C159: 120 | D159: 2036-03-15 | E159: 11 | F159: 0 | G159: 0 | H159: 0 | I159: 0 | J159: 0 | K159: =IF(C159="","",SUM($J$40:J159)) -> 0 | M159: 10 | N159: 120 | O159: 2036-03-15 | P159: 11 | Q159: 0 | R159: 0 | S159: 0 | T159: 0 | U159: 0 | V159: =IF(N159="","",SUM($U$40:U159)) -> 0
B160: 11 | C160: 121 | D160: 2036-04-15 | E160: 12 | F160: 0 | G160: 0 | H160: 0 | I160: 0 | J160: 0 | K160: =IF(C160="","",SUM($J$40:J160)) -> 0 | M160: 11 | N160: 121 | O160: 2036-04-15 | P160: 12 | Q160: 0 | R160: 0 | S160: 0 | T160: 0 | U160: 0 | V160: =IF(N160="","",SUM($U$40:U160)) -> 0
B161: 11 | C161: 122 | D161: 2036-05-15 | E161: 12 | F161: 0 | G161: 0 | H161: 0 | I161: 0 | J161: 0 | K161: =IF(C161="","",SUM($J$40:J161)) -> 0 | M161: 11 | N161: 122 | O161: 2036-05-15 | P161: 12 | Q161: 0 | R161: 0 | S161: 0 | T161: 0 | U161: 0 | V161: =IF(N161="","",SUM($U$40:U161)) -> 0
B162: 11 | C162: 123 | D162: 2036-06-15 | E162: 12 | F162: 0 | G162: 0 | H162: 0 | I162: 0 | J162: 0 | K162: =IF(C162="","",SUM($J$40:J162)) -> 0 | M162: 11 | N162: 123 | O162: 2036-06-15 | P162: 12 | Q162: 0 | R162: 0 | S162: 0 | T162: 0 | U162: 0 | V162: =IF(N162="","",SUM($U$40:U162)) -> 0
B163: 11 | C163: 124 | D163: 2036-07-15 | E163: 12 | F163: 0 | G163: 0 | H163: 0 | I163: 0 | J163: 0 | K163: =IF(C163="","",SUM($J$40:J163)) -> 0 | M163: 11 | N163: 124 | O163: 2036-07-15 | P163: 12 | Q163: 0 | R163: 0 | S163: 0 | T163: 0 | U163: 0 | V163: =IF(N163="","",SUM($U$40:U163)) -> 0
B164: 11 | C164: 125 | D164: 2036-08-15 | E164: 12 | F164: 0 | G164: 0 | H164: 0 | I164: 0 | J164: 0 | K164: =IF(C164="","",SUM($J$40:J164)) -> 0 | M164: 11 | N164: 125 | O164: 2036-08-15 | P164: 12 | Q164: 0 | R164: 0 | S164: 0 | T164: 0 | U164: 0 | V164: =IF(N164="","",SUM($U$40:U164)) -> 0
B165: 11 | C165: 126 | D165: 2036-09-15 | E165: 12 | F165: 0 | G165: 0 | H165: 0 | I165: 0 | J165: 0 | K165: =IF(C165="","",SUM($J$40:J165)) -> 0 | M165: 11 | N165: 126 | O165: 2036-09-15 | P165: 12 | Q165: 0 | R165: 0 | S165: 0 | T165: 0 | U165: 0 | V165: =IF(N165="","",SUM($U$40:U165)) -> 0
B166: 11 | C166: 127 | D166: 2036-10-15 | E166: 12 | F166: 0 | G166: 0 | H166: 0 | I166: 0 | J166: 0 | K166: =IF(C166="","",SUM($J$40:J166)) -> 0 | M166: 11 | N166: 127 | O166: 2036-10-15 | P166: 12 | Q166: 0 | R166: 0 | S166: 0 | T166: 0 | U166: 0 | V166: =IF(N166="","",SUM($U$40:U166)) -> 0
B167: 11 | C167: 128 | D167: 2036-11-15 | E167: 12 | F167: 0 | G167: 0 | H167: 0 | I167: 0 | J167: 0 | K167: =IF(C167="","",SUM($J$40:J167)) -> 0 | M167: 11 | N167: 128 | O167: 2036-11-15 | P167: 12 | Q167: 0 | R167: 0 | S167: 0 | T167: 0 | U167: 0 | V167: =IF(N167="","",SUM($U$40:U167)) -> 0
B168: 11 | C168: 129 | D168: 2036-12-15 | E168: 12 | F168: 0 | G168: =IF(C168="","",$D$17) -> 0 | H168: 0 | I168: 0 | J168: =IF(C168="","",($D$15/12)*F168) -> 0 | K168: =IF(C168="","",SUM($J$40:J168)) -> 0 | M168: 11 | N168: 129 | O168: 2036-12-15 | P168: 12 | Q168: 0 | R168: =IF(N168="","",$D$17) -> 0 | S168: 0 | T168: 0 | U168: =IF(N168="","",($D$15/12)*Q168) -> 0 | V168: =IF(N168="","",SUM($U$40:U168)) -> 0
B169: =IFERROR(INT((C169-1)/12)+1,"") -> 11 | C169: =IF(C168>=No_of_pymts,"",C168+1) -> 130 | D169: =IF(C169="","",EDATE(Loan_start_date,C169)) -> 2037-01-15 | E169: 12 | F169: 0 | G169: 0 | H169: 0 | I169: 0 | J169: 0 | K169: =IF(C169="","",SUM($J$40:J169)) -> 0 | M169: =IFERROR(INT((N169-1)/12)+1,"") -> 11 | N169: =IF(N168>=No_of_pymts,"",N168+1) -> 130 | O169: =IF(N169="","",EDATE(Loan_start_date,N169)) -> 2037-01-15 | P169: =IF($N169="","",IF($E$6="",$M169+1,INT(($O169-$E$6)/365))) -> 12 | Q169: 0 | R169: 0 | S169: 0 | T169: 0 | U169: 0 | V169: =IF(N169="","",SUM($U$40:U169)) -> 0
B170: 11 | C170: 131 | D170: 2037-02-15 | E170: =IF($C170="","",IF($D$6="",$B170+1,INT(($D170-$D$6)/365.25))) -> 12 | F170: =IF(C170="","",H169) -> 0 | G170: 0 | H170: =IF(C170="","",IF(G170=F170,0,(F170-I170))) -> 0 | I170: =IF(C170="","",G170-J170) -> 0 | J170: 0 | K170: =IF(C170="","",SUM($J$40:J170)) -> 0 | M170: 11 | N170: 131 | O170: 2037-02-15 | P170: 12 | Q170: =IF(N170="","",S169) -> 0 | R170: 0 | S170: =IF(N170="","",IF(R170=Q170,0,(Q170-T170))) -> 0 | T170: =IF(N170="","",R170-U170) -> 0 | U170: 0 | V170: =IF(N170="","",SUM($U$40:U170)) -> 0
B171: 11 | C171: 132 | D171: 2037-03-15 | E171: 12 | F171: 0 | G171: 0 | H171: 0 | I171: 0 | J171: 0 | K171: =IF(C171="","",SUM($J$40:J171)) -> 0 | M171: 11 | N171: 132 | O171: 2037-03-15 | P171: 12 | Q171: 0 | R171: 0 | S171: 0 | T171: 0 | U171: 0 | V171: =IF(N171="","",SUM($U$40:U171)) -> 0
B172: 12 | C172: 133 | D172: 2037-04-15 | E172: 13 | F172: 0 | G172: 0 | H172: 0 | I172: 0 | J172: 0 | K172: =IF(C172="","",SUM($J$40:J172)) -> 0 | M172: 12 | N172: 133 | O172: 2037-04-15 | P172: 13 | Q172: 0 | R172: 0 | S172: 0 | T172: 0 | U172: 0 | V172: =IF(N172="","",SUM($U$40:U172)) -> 0
B173: 12 | C173: 134 | D173: 2037-05-15 | E173: 13 | F173: 0 | G173: 0 | H173: 0 | I173: 0 | J173: 0 | K173: =IF(C173="","",SUM($J$40:J173)) -> 0 | M173: 12 | N173: 134 | O173: 2037-05-15 | P173: 13 | Q173: 0 | R173: 0 | S173: 0 | T173: 0 | U173: 0 | V173: =IF(N173="","",SUM($U$40:U173)) -> 0
B174: 12 | C174: 135 | D174: 2037-06-15 | E174: 13 | F174: 0 | G174: 0 | H174: 0 | I174: 0 | J174: 0 | K174: =IF(C174="","",SUM($J$40:J174)) -> 0 | M174: 12 | N174: 135 | O174: 2037-06-15 | P174: 13 | Q174: 0 | R174: 0 | S174: 0 | T174: 0 | U174: 0 | V174: =IF(N174="","",SUM($U$40:U174)) -> 0
B175: 12 | C175: 136 | D175: 2037-07-15 | E175: 13 | F175: 0 | G175: 0 | H175: 0 | I175: 0 | J175: 0 | K175: =IF(C175="","",SUM($J$40:J175)) -> 0 | M175: 12 | N175: 136 | O175: 2037-07-15 | P175: 13 | Q175: 0 | R175: 0 | S175: 0 | T175: 0 | U175: 0 | V175: =IF(N175="","",SUM($U$40:U175)) -> 0
B176: 12 | C176: 137 | D176: 2037-08-15 | E176: 13 | F176: 0 | G176: 0 | H176: 0 | I176: 0 | J176: 0 | K176: =IF(C176="","",SUM($J$40:J176)) -> 0 | M176: 12 | N176: 137 | O176: 2037-08-15 | P176: 13 | Q176: 0 | R176: 0 | S176: 0 | T176: 0 | U176: 0 | V176: =IF(N176="","",SUM($U$40:U176)) -> 0
B177: 12 | C177: 138 | D177: 2037-09-15 | E177: 13 | F177: 0 | G177: 0 | H177: 0 | I177: 0 | J177: 0 | K177: =IF(C177="","",SUM($J$40:J177)) -> 0 | M177: 12 | N177: 138 | O177: 2037-09-15 | P177: 13 | Q177: 0 | R177: 0 | S177: 0 | T177: 0 | U177: 0 | V177: =IF(N177="","",SUM($U$40:U177)) -> 0
B178: 12 | C178: 139 | D178: 2037-10-15 | E178: 13 | F178: 0 | G178: 0 | H178: 0 | I178: 0 | J178: 0 | K178: =IF(C178="","",SUM($J$40:J178)) -> 0 | M178: 12 | N178: 139 | O178: 2037-10-15 | P178: 13 | Q178: 0 | R178: 0 | S178: 0 | T178: 0 | U178: 0 | V178: =IF(N178="","",SUM($U$40:U178)) -> 0
B179: 12 | C179: 140 | D179: 2037-11-15 | E179: 13 | F179: 0 | G179: 0 | H179: 0 | I179: 0 | J179: 0 | K179: =IF(C179="","",SUM($J$40:J179)) -> 0 | M179: 12 | N179: 140 | O179: 2037-11-15 | P179: 13 | Q179: 0 | R179: 0 | S179: 0 | T179: 0 | U179: 0 | V179: =IF(N179="","",SUM($U$40:U179)) -> 0
B180: 12 | C180: 141 | D180: 2037-12-15 | E180: 13 | F180: 0 | G180: 0 | H180: 0 | I180: 0 | J180: 0 | K180: =IF(C180="","",SUM($J$40:J180)) -> 0 | M180: 12 | N180: 141 | O180: 2037-12-15 | P180: 13 | Q180: 0 | R180: 0 | S180: 0 | T180: 0 | U180: 0 | V180: =IF(N180="","",SUM($U$40:U180)) -> 0
B181: 12 | C181: 142 | D181: 2038-01-15 | E181: 13 | F181: 0 | G181: 0 | H181: 0 | I181: 0 | J181: 0 | K181: =IF(C181="","",SUM($J$40:J181)) -> 0 | M181: 12 | N181: 142 | O181: 2038-01-15 | P181: 13 | Q181: 0 | R181: 0 | S181: 0 | T181: 0 | U181: 0 | V181: =IF(N181="","",SUM($U$40:U181)) -> 0
B182: 12 | C182: 143 | D182: 2038-02-15 | E182: 13 | F182: 0 | G182: 0 | H182: 0 | I182: 0 | J182: 0 | K182: =IF(C182="","",SUM($J$40:J182)) -> 0 | M182: 12 | N182: 143 | O182: 2038-02-15 | P182: 13 | Q182: 0 | R182: 0 | S182: 0 | T182: 0 | U182: 0 | V182: =IF(N182="","",SUM($U$40:U182)) -> 0
B183: 12 | C183: 144 | D183: 2038-03-15 | E183: 13 | F183: 0 | G183: 0 | H183: 0 | I183: 0 | J183: 0 | K183: =IF(C183="","",SUM($J$40:J183)) -> 0 | M183: 12 | N183: 144 | O183: 2038-03-15 | P183: 13 | Q183: 0 | R183: 0 | S183: 0 | T183: 0 | U183: 0 | V183: =IF(N183="","",SUM($U$40:U183)) -> 0
B184: 13 | C184: 145 | D184: 2038-04-15 | E184: 14 | F184: 0 | G184: 0 | H184: 0 | I184: 0 | J184: 0 | K184: =IF(C184="","",SUM($J$40:J184)) -> 0 | M184: 13 | N184: 145 | O184: 2038-04-15 | P184: 14 | Q184: 0 | R184: 0 | S184: 0 | T184: 0 | U184: 0 | V184: =IF(N184="","",SUM($U$40:U184)) -> 0
B185: 13 | C185: 146 | D185: 2038-05-15 | E185: 14 | F185: 0 | G185: 0 | H185: 0 | I185: 0 | J185: 0 | K185: =IF(C185="","",SUM($J$40:J185)) -> 0 | M185: 13 | N185: 146 | O185: 2038-05-15 | P185: 14 | Q185: 0 | R185: 0 | S185: 0 | T185: 0 | U185: 0 | V185: =IF(N185="","",SUM($U$40:U185)) -> 0
B186: 13 | C186: 147 | D186: 2038-06-15 | E186: 14 | F186: 0 | G186: 0 | H186: 0 | I186: 0 | J186: 0 | K186: =IF(C186="","",SUM($J$40:J186)) -> 0 | M186: 13 | N186: 147 | O186: 2038-06-15 | P186: 14 | Q186: 0 | R186: 0 | S186: 0 | T186: 0 | U186: 0 | V186: =IF(N186="","",SUM($U$40:U186)) -> 0
B187: 13 | C187: 148 | D187: 2038-07-15 | E187: 14 | F187: 0 | G187: 0 | H187: 0 | I187: 0 | J187: 0 | K187: =IF(C187="","",SUM($J$40:J187)) -> 0 | M187: 13 | N187: 148 | O187: 2038-07-15 | P187: 14 | Q187: 0 | R187: 0 | S187: 0 | T187: 0 | U187: 0 | V187: =IF(N187="","",SUM($U$40:U187)) -> 0
B188: 13 | C188: 149 | D188: 2038-08-15 | E188: 14 | F188: 0 | G188: 0 | H188: 0 | I188: 0 | J188: 0 | K188: =IF(C188="","",SUM($J$40:J188)) -> 0 | M188: 13 | N188: 149 | O188: 2038-08-15 | P188: 14 | Q188: 0 | R188: 0 | S188: 0 | T188: 0 | U188: 0 | V188: =IF(N188="","",SUM($U$40:U188)) -> 0
B189: 13 | C189: 150 | D189: 2038-09-15 | E189: 14 | F189: 0 | G189: 0 | H189: 0 | I189: 0 | J189: 0 | K189: =IF(C189="","",SUM($J$40:J189)) -> 0 | M189: 13 | N189: 150 | O189: 2038-09-15 | P189: 14 | Q189: 0 | R189: 0 | S189: 0 | T189: 0 | U189: 0 | V189: =IF(N189="","",SUM($U$40:U189)) -> 0
B190: 13 | C190: 151 | D190: 2038-10-15 | E190: 14 | F190: 0 | G190: 0 | H190: 0 | I190: 0 | J190: 0 | K190: =IF(C190="","",SUM($J$40:J190)) -> 0 | M190: 13 | N190: 151 | O190: 2038-10-15 | P190: 14 | Q190: 0 | R190: 0 | S190: 0 | T190: 0 | U190: 0 | V190: =IF(N190="","",SUM($U$40:U190)) -> 0
B191: 13 | C191: 152 | D191: 2038-11-15 | E191: 14 | F191: 0 | G191: 0 | H191: 0 | I191: 0 | J191: 0 | K191: =IF(C191="","",SUM($J$40:J191)) -> 0 | M191: 13 | N191: 152 | O191: 2038-11-15 | P191: 14 | Q191: 0 | R191: 0 | S191: 0 | T191: 0 | U191: 0 | V191: =IF(N191="","",SUM($U$40:U191)) -> 0
B192: 13 | C192: 153 | D192: 2038-12-15 | E192: 14 | F192: 0 | G192: 0 | H192: 0 | I192: 0 | J192: 0 | K192: =IF(C192="","",SUM($J$40:J192)) -> 0 | M192: 13 | N192: 153 | O192: 2038-12-15 | P192: 14 | Q192: 0 | R192: 0 | S192: 0 | T192: 0 | U192: 0 | V192: =IF(N192="","",SUM($U$40:U192)) -> 0
B193: 13 | C193: 154 | D193: 2039-01-15 | E193: 14 | F193: 0 | G193: 0 | H193: 0 | I193: 0 | J193: 0 | K193: =IF(C193="","",SUM($J$40:J193)) -> 0 | M193: 13 | N193: 154 | O193: 2039-01-15 | P193: 14 | Q193: 0 | R193: 0 | S193: 0 | T193: 0 | U193: 0 | V193: =IF(N193="","",SUM($U$40:U193)) -> 0
B194: 13 | C194: 155 | D194: 2039-02-15 | E194: 14 | F194: 0 | G194: 0 | H194: 0 | I194: 0 | J194: 0 | K194: =IF(C194="","",SUM($J$40:J194)) -> 0 | M194: 13 | N194: 155 | O194: 2039-02-15 | P194: 14 | Q194: 0 | R194: 0 | S194: 0 | T194: 0 | U194: 0 | V194: =IF(N194="","",SUM($U$40:U194)) -> 0
B195: 13 | C195: 156 | D195: 2039-03-15 | E195: 14 | F195: 0 | G195: 0 | H195: 0 | I195: 0 | J195: 0 | K195: =IF(C195="","",SUM($J$40:J195)) -> 0 | M195: 13 | N195: 156 | O195: 2039-03-15 | P195: 14 | Q195: 0 | R195: 0 | S195: 0 | T195: 0 | U195: 0 | V195: =IF(N195="","",SUM($U$40:U195)) -> 0
B196: 14 | C196: 157 | D196: 2039-04-15 | E196: 15 | F196: 0 | G196: 0 | H196: 0 | I196: 0 | J196: 0 | K196: =IF(C196="","",SUM($J$40:J196)) -> 0 | M196: 14 | N196: 157 | O196: 2039-04-15 | P196: 15 | Q196: 0 | R196: 0 | S196: 0 | T196: 0 | U196: 0 | V196: =IF(N196="","",SUM($U$40:U196)) -> 0
B197: 14 | C197: 158 | D197: 2039-05-15 | E197: 15 | F197: 0 | G197: 0 | H197: 0 | I197: 0 | J197: 0 | K197: =IF(C197="","",SUM($J$40:J197)) -> 0 | M197: 14 | N197: 158 | O197: 2039-05-15 | P197: 15 | Q197: 0 | R197: 0 | S197: 0 | T197: 0 | U197: 0 | V197: =IF(N197="","",SUM($U$40:U197)) -> 0
B198: 14 | C198: 159 | D198: 2039-06-15 | E198: 15 | F198: 0 | G198: 0 | H198: 0 | I198: 0 | J198: 0 | K198: =IF(C198="","",SUM($J$40:J198)) -> 0 | M198: 14 | N198: 159 | O198: 2039-06-15 | P198: 15 | Q198: 0 | R198: 0 | S198: 0 | T198: 0 | U198: 0 | V198: =IF(N198="","",SUM($U$40:U198)) -> 0
B199: 14 | C199: 160 | D199: 2039-07-15 | E199: 15 | F199: 0 | G199: 0 | H199: 0 | I199: 0 | J199: 0 | K199: =IF(C199="","",SUM($J$40:J199)) -> 0 | M199: 14 | N199: 160 | O199: 2039-07-15 | P199: 15 | Q199: 0 | R199: 0 | S199: 0 | T199: 0 | U199: 0 | V199: =IF(N199="","",SUM($U$40:U199)) -> 0
B200: 14 | C200: 161 | D200: 2039-08-15 | E200: 15 | F200: 0 | G200: 0 | H200: 0 | I200: 0 | J200: 0 | K200: =IF(C200="","",SUM($J$40:J200)) -> 0 | M200: 14 | N200: 161 | O200: 2039-08-15 | P200: 15 | Q200: 0 | R200: 0 | S200: 0 | T200: 0 | U200: 0 | V200: =IF(N200="","",SUM($U$40:U200)) -> 0
B201: 14 | C201: 162 | D201: 2039-09-15 | E201: 15 | F201: 0 | G201: 0 | H201: 0 | I201: 0 | J201: 0 | K201: =IF(C201="","",SUM($J$40:J201)) -> 0 | M201: 14 | N201: 162 | O201: 2039-09-15 | P201: 15 | Q201: 0 | R201: 0 | S201: 0 | T201: 0 | U201: 0 | V201: =IF(N201="","",SUM($U$40:U201)) -> 0
B202: 14 | C202: 163 | D202: 2039-10-15 | E202: 15 | F202: 0 | G202: 0 | H202: 0 | I202: 0 | J202: 0 | K202: =IF(C202="","",SUM($J$40:J202)) -> 0 | M202: 14 | N202: 163 | O202: 2039-10-15 | P202: 15 | Q202: 0 | R202: 0 | S202: 0 | T202: 0 | U202: 0 | V202: =IF(N202="","",SUM($U$40:U202)) -> 0
B203: 14 | C203: 164 | D203: 2039-11-15 | E203: 15 | F203: 0 | G203: 0 | H203: 0 | I203: 0 | J203: 0 | K203: =IF(C203="","",SUM($J$40:J203)) -> 0 | M203: 14 | N203: 164 | O203: 2039-11-15 | P203: 15 | Q203: 0 | R203: 0 | S203: 0 | T203: 0 | U203: 0 | V203: =IF(N203="","",SUM($U$40:U203)) -> 0
B204: 14 | C204: 165 | D204: 2039-12-15 | E204: 15 | F204: 0 | G204: 0 | H204: 0 | I204: 0 | J204: 0 | K204: =IF(C204="","",SUM($J$40:J204)) -> 0 | M204: 14 | N204: 165 | O204: 2039-12-15 | P204: 15 | Q204: 0 | R204: 0 | S204: 0 | T204: 0 | U204: 0 | V204: =IF(N204="","",SUM($U$40:U204)) -> 0
B205: 14 | C205: 166 | D205: 2040-01-15 | E205: 15 | F205: 0 | G205: 0 | H205: 0 | I205: 0 | J205: 0 | K205: =IF(C205="","",SUM($J$40:J205)) -> 0 | M205: 14 | N205: 166 | O205: 2040-01-15 | P205: 15 | Q205: 0 | R205: 0 | S205: 0 | T205: 0 | U205: 0 | V205: =IF(N205="","",SUM($U$40:U205)) -> 0
... 556 more rows

Sheet Downsizing strategy
B2: Downsizing property calculation (based upon oldest applicant retiring)
B3: Valuation (proposed security) | C3: ='Online Assessment tool'!$B$41 -> 0
B4: Less
B5: Sales commission | C5: 0.025
B6: Net sale proceeds | C6: =C3-(C3*C5) -> 0
B7: Less
B8: ='Retirement age summary'!B29 -> Estimated loan balance at applicant's retirement | C8: ='Retirement age summary'!$D$29 -> 0
B9: Proceeds from sale of property | C9: =Net_proceeds-C8 -> 0
B10: Add
B11: Forecast discounted superannuation balance | C11: ='Retirement age summary'!$D$34 -> 0
B12: Total available funds | C12: =SUM(C9:C11) -> 0
B13: Less
B14: Conservative minimum median house price | C14: =Admin_LAM_variables!D39 -> 510000
B15: Surplus/shortfall | C15: =IF(ISBLANK(Security_property_value),"",C12-C14) -> -510000
B17: =IF(Security_property_value=0,"",IF('Downsizing strategy'!C15<0,"Fail! Downsizing strategy not acceptable","Pass! Downsizing strategy is suitable")) -> 
C20: House
C21: Unit
C22: =IF(#REF!=C20,"H",IF(#REF!=C21,"U")) -> 

Sheet Admin_RAC_Lookup (hidden)
A1: Field | B1: Parameter
A2: Super contribution tax | B2: 0.15
A3: Employer super contribution | B3: 0.115
A4: Minimum equity | B4: 425000
A5: Sales Commission | B5: 0.035
A6: Policy Retirement Age | B6: 75

Sheet Admin_Amortisation (hidden)
B2: Loan Repayment Calculator
E4: Enter values
B5: Loan amount | E5: =Loan_req -> 0
B6: Annual interest rate | E6: ='Online Assessment tool'!I40 -> 0.071
B7: Loan period in years | E7: ='Online Assessment tool'!F40/12 -> 30
B8: Start date of loan | E8: ='Online Assessment tool'!J2 -> 2026-03-15T22:47:06.820
B10: Scheduled monthly payment | E10: 400
B11: Scheduled number of payments | E11: =IF(Values_Entered,Loan_Years*12,"") -> 
B12: Actual number of payments | E12: =IF(Values_Entered,Number_of_Payments,"") -> 
B13: Total interest | E13: =IF(Values_Entered,SUMIF(Beg_Bal,">0",Int),"") -> 
B15: No. | C15: Payment Date | D15: Beginning Balance | E15: Scheduled Payment | F15: Principal | G15: Interest | H15: Ending Balance
B16: =IF(Values_Entered,1,"") ->  | C16: =IF(Pay_Num<>"",Loan_Start,"") ->  | D16: =IF(Values_Entered,Loan_Amount,"") ->  | E16: =IF(Pay_Num<>"",Scheduled_Monthly_Payment,"") ->  | F16: =IF(Pay_Num<>"",Sched_Pay-Int,"") ->  | G16: =IF(Pay_Num<>"",Beg_Bal*Interest_Rate/12,"") ->  | H16: =IF(Pay_Num<>"",Beg_Bal-Princ,"") -> 
B17: =IF(Values_Entered,B16+1,"") ->  | C17: =IF(Pay_Num<>"",DATE(YEAR(C16),MONTH(C16)+1,DAY(C16)),"") ->  | D17: =IF(Pay_Num<>"",H16,"") ->  | E17: =IF(Pay_Num<>"",Scheduled_Monthly_Payment,"") ->  | G17: =IF(Pay_Num<>"",Beg_Bal*Interest_Rate/12,"") ->  | H17: =IF(Pay_Num<>"",Beg_Bal-Princ,"") -> 
D18: =IF(Pay_Num<>"",H17,"") ->  | E18: =IF(Pay_Num<>"",Scheduled_Monthly_Payment,"") ->  | G18: =IF(Pay_Num<>"",Beg_Bal*Interest_Rate/12,"") -> 
D21: =IF(Pay_Num<>"",H20,"") -> 
D23: =IF(Pay_Num<>"",H22,"") -> 
B28: =IF(Values_Entered,B27+1,"") ->  | C28: =IF(Pay_Num<>"",DATE(YEAR(C27),MONTH(C27)+1,DAY(C27)),"") ->  | D28: =IF(Pay_Num<>"",H27,"") -> 
B40: =IF(Values_Entered,B39+1,"") ->  | C40: =IF(Pay_Num<>"",DATE(YEAR(C39),MONTH(C39)+1,DAY(C39)),"") ->  | D40: =IF(Pay_Num<>"",H39,"") -> 
B52: =IF(Values_Entered,B51+1,"") ->  | C52: =IF(Pay_Num<>"",DATE(YEAR(C51),MONTH(C51)+1,DAY(C51)),"") ->  | D52: =IF(Pay_Num<>"",H51,"") -> 
F80: =IF(Pay_Num<>"",Sched_Pay-Int,"") -> 
B81: =IF(Values_Entered,B80+1,"") ->  | C81: =IF(Pay_Num<>"",DATE(YEAR(C80),MONTH(C80)+1,DAY(C80)),"") ->  | H81: =IF(Pay_Num<>"",Beg_Bal-Princ,"") -> 
D82: =IF(Pay_Num<>"",H81,"") ->  | E82: =IF(Pay_Num<>"",Scheduled_Monthly_Payment,"") ->  | G82: =IF(Pay_Num<>"",Beg_Bal*Interest_Rate/12,"") -> 
F144: =IF(Pay_Num<>"",Sched_Pay-Int,"") -> 
B145: =IF(Values_Entered,B144+1,"") ->  | C145: =IF(Pay_Num<>"",DATE(YEAR(C144),MONTH(C144)+1,DAY(C144)),"") ->  | H145: =IF(Pay_Num<>"",Beg_Bal-Princ,"") -> 
D146: =IF(Pay_Num<>"",H145,"") ->  | E146: =IF(Pay_Num<>"",Scheduled_Monthly_Payment,"") ->  | G146: =IF(Pay_Num<>"",Beg_Bal*Interest_Rate/12,"") -> 
F208: =IF(Pay_Num<>"",Sched_Pay-Int,"") -> 
B209: =IF(Values_Entered,B208+1,"") ->  | C209: =IF(Pay_Num<>"",DATE(YEAR(C208),MONTH(C208)+1,DAY(C208)),"") ->  | H209: =IF(Pay_Num<>"",Beg_Bal-Princ,"") -> 
D210: =IF(Pay_Num<>"",H209,"") ->  | E210: =IF(Pay_Num<>"",Scheduled_Monthly_Payment,"") ->  | G210: =IF(Pay_Num<>"",Beg_Bal*Interest_Rate/12,"") -> 
F272: =IF(Pay_Num<>"",Sched_Pay-Int,"") -> 
B273: =IF(Values_Entered,B272+1,"") ->  | C273: =IF(Pay_Num<>"",DATE(YEAR(C272),MONTH(C272)+1,DAY(C272)),"") ->  | H273: =IF(Pay_Num<>"",Beg_Bal-Princ,"") -> 
D274: =IF(Pay_Num<>"",H273,"") ->  | E274: =IF(Pay_Num<>"",Scheduled_Monthly_Payment,"") ->  | G274: =IF(Pay_Num<>"",Beg_Bal*Interest_Rate/12,"") -> 
F336: =IF(Pay_Num<>"",Sched_Pay-Int,"") -> 
B337: =IF(Values_Entered,B336+1,"") ->  | C337: =IF(Pay_Num<>"",DATE(YEAR(C336),MONTH(C336)+1,DAY(C336)),"") ->  | H337: =IF(Pay_Num<>"",Beg_Bal-Princ,"") -> 
D338: =IF(Pay_Num<>"",H337,"") ->  | E338: =IF(Pay_Num<>"",Scheduled_Monthly_Payment,"") ->  | G338: =IF(Pay_Num<>"",Beg_Bal*Interest_Rate/12,"") -> 

Sheet Admin_Suburbs (hidden)
A1: SuburbUpperCase | B1: Postcode | C1: Type | D1: Council | E1: Region | F1: Income region
A2: ABBA RIVER | B2: 6280 | C2: SHIRE OF | D2: BUSSELTON | E2: South West | F2: =VLOOKUP(E2,Admin_lookup!$A$2:$B$14,2,FALSE) -> Regional
A3: ABBEY | B3: 6280 | C3: SHIRE OF | D3: BUSSELTON | E3: South West | F3: =VLOOKUP(E3,Admin_lookup!$A$2:$B$14,2,FALSE) -> Regional
A4: ACTON PARK | B4: 6280 | C4: SHIRE OF | D4: BUSSELTON | E4: South West | F4: =VLOOKUP(E4,Admin_lookup!$A$2:$B$14,2,FALSE) -> Regional
A5: ADAMSVALE | B5: 6375 | C5: SHIRE OF | D5: CORRIGIN | E5: Wheatbelt | F5: =VLOOKUP(E5,Admin_lookup!$A$2:$B$14,2,FALSE) -> Regional
A6: AJANA | B6: 6532 | C6: SHIRE OF | D6: CHAPMAN VALLEY | E6: Mid-West | F6: =VLOOKUP(E6,Admin_lookup!$A$2:$B$14,2,FALSE) -> Regional
A7: ALBANY | B7: 6330 | C7: CITY OF | D7: ALBANY | E7: Great Southern | F7: =VLOOKUP(E7,Admin_lookup!$A$2:$B$14,2,FALSE) -> Regional
A8: ALBANY DC | B8: 6331 | C8: CITY OF | D8: ALBANY | E8: Great Southern | F8: =VLOOKUP(E8,Admin_lookup!$A$2:$B$14,2,FALSE) -> Regional
A9: ALBANY PO BOXES 5000-6000 | B9: 6332 | C9: CITY OF | D9: ALBANY | E9: Great Southern | F9: =VLOOKUP(E9,Admin_lookup!$A$2:$B$14,2,FALSE) -> Regional
A10: ALDERSYDE | B10: 6306 | C10: SHIRE OF | D10: BROOKTON | E10: Wheatbelt | F10: =VLOOKUP(E10,Admin_lookup!$A$2:$B$14,2,FALSE) -> Regional
A11: ALEXANDER HEIGHTS | B11: 6064 | C11: CITY OF | D11: WANNEROO | E11: Perth | F11: =VLOOKUP(E11,Admin_lookup!$A$2:$B$14,2,FALSE) -> Metro
A12: ALEXANDRA BRIDGE | B12: 6288 | C12: SHIRE OF | D12: AUGUSTA-MARGARET RIVER | E12: South West | F12: =VLOOKUP(E12,Admin_lookup!$A$2:$B$14,2,FALSE) -> Regional
A13: ALFRED COVE | B13: 6154 | C13: CITY OF | D13: MELVILLE | E13: Perth | F13: =VLOOKUP(E13,Admin_lookup!$A$2:$B$14,2,FALSE) -> Metro
A14: ALKIMOS | B14: 6038 | C14: CITY OF | D14: WANNEROO | E14: Perth | F14: =VLOOKUP(E14,Admin_lookup!$A$2:$B$14,2,FALSE) -> Metro
A15: ALLANOOKA | B15: 6525 | C15: SHIRE OF | D15: IRWIN | E15: Mid-West | F15: =VLOOKUP(E15,Admin_lookup!$A$2:$B$14,2,FALSE) -> Regional
A16: ALLANSON | B16: 6225 | C16: SHIRE OF | D16: COLLIE | E16: South West | F16: =VLOOKUP(E16,Admin_lookup!$A$2:$B$14,2,FALSE) -> Regional
A17: ALMA | B17: 6535 | C17: SHIRE OF | D17: NORTHAMPTON | E17: Mid-West | F17: =VLOOKUP(E17,Admin_lookup!$A$2:$B$14,2,FALSE) -> Regional
A18: AMBANIA | B18: 6632 | C18: SHIRE OF | D18: MULLEWA | E18: Mid-West | F18: =VLOOKUP(E18,Admin_lookup!$A$2:$B$14,2,FALSE) -> Regional
A19: AMBERGATE | B19: 6280 | C19: SHIRE OF | D19: BUSSELTON | E19: South West | F19: =VLOOKUP(E19,Admin_lookup!$A$2:$B$14,2,FALSE) -> Regional
A20: AMELUP | B20: 6338 | C20: SHIRE OF | D20: GNOWANGERUP | E20: Great Southern | F20: =VLOOKUP(E20,Admin_lookup!$A$2:$B$14,2,FALSE) -> Regional
A21: ANGELO RIVER | B21: 6642 | C21: SHIRE OF | D21: MEEKATHARRA | E21: Mid-West | F21: =VLOOKUP(E21,Admin_lookup!$A$2:$B$14,2,FALSE) -> Regional
A22: ANKETELL | B22: 6167 | C22: TOWN OF | D22: KWINANA | E22: Perth | F22: =VLOOKUP(E22,Admin_lookup!$A$2:$B$14,2,FALSE) -> Metro
A23: ANNIEBROOK | B23: 6280 | C23: SHIRE OF | D23: BUSSELTON | E23: South West | F23: =VLOOKUP(E23,Admin_lookup!$A$2:$B$14,2,FALSE) -> Regional
A24: ANTONYMYRE | B24: 6714 | C24: SHIRE OF | D24: ROEBOURNE | E24: Pilbara | F24: =VLOOKUP(E24,Admin_lookup!$A$2:$B$14,2,FALSE) -> Pilbara
A25: APPLECROSS | B25: 6153 | C25: CITY OF | D25: MELVILLE | E25: Perth | F25: =VLOOKUP(E25,Admin_lookup!$A$2:$B$14,2,FALSE) -> Metro
A26: APPLECROSS NORTH | B26: 6153 | C26: CITY OF | D26: MELVILLE | E26: Perth | F26: =VLOOKUP(E26,Admin_lookup!$A$2:$B$14,2,FALSE) -> Metro
A27: APPLECROSS PO BOXES | B27: 6953 | C27: CITY OF | D27: PERTH | E27: Perth | F27: =VLOOKUP(E27,Admin_lookup!$A$2:$B$14,2,FALSE) -> Metro
A28: ARDATH | B28: 6419 | C28: SHIRE OF | D28: BRUCE ROCK | E28: Wheatbelt | F28: =VLOOKUP(E28,Admin_lookup!$A$2:$B$14,2,FALSE) -> Regional
A29: ARDROSS | B29: 6153 | C29: CITY OF | D29: MELVILLE | E29: Perth | F29: =VLOOKUP(E29,Admin_lookup!$A$2:$B$14,2,FALSE) -> Metro
A30: ARGYLE | B30: 6239 | C30: SHIRE OF | D30: DONNYBROOK-BALINGUP | E30: South West | F30: =VLOOKUP(E30,Admin_lookup!$A$2:$B$14,2,FALSE) -> Regional
A31: ARMADALE | B31: 6112 | C31: CITY OF | D31: ARMADALE | E31: Perth | F31: =VLOOKUP(E31,Admin_lookup!$A$2:$B$14,2,FALSE) -> Metro
A32: ARMADALE PO BOXES | B32: 6992 | C32: CITY OF | D32: PERTH | E32: Perth | F32: =VLOOKUP(E32,Admin_lookup!$A$2:$B$14,2,FALSE) -> Metro
A33: ARRINO | B33: 6519 | C33: SHIRE OF | D33: THREE SPRINGS | E33: Mid-West | F33: =VLOOKUP(E33,Admin_lookup!$A$2:$B$14,2,FALSE) -> Regional
A34: ARROWSMITH | B34: 6525 | C34: SHIRE OF | D34: IRWIN | E34: Mid-West | F34: =VLOOKUP(E34,Admin_lookup!$A$2:$B$14,2,FALSE) -> Regional
A35: ARROWSMITH EAST | B35: 6519 | C35: SHIRE OF | D35: THREE SPRINGS | E35: Mid-West | F35: =VLOOKUP(E35,Admin_lookup!$A$2:$B$14,2,FALSE) -> Regional
A36: ARTHUR RIVER | B36: 6315 | C36: SHIRE OF | D36: WAGIN | E36: Wheatbelt | F36: =VLOOKUP(E36,Admin_lookup!$A$2:$B$14,2,FALSE) -> Regional
A37: ASCOT | B37: 6104 | C37: CITY OF | D37: BELMONT | E37: Perth | F37: =VLOOKUP(E37,Admin_lookup!$A$2:$B$14,2,FALSE) -> Metro
A38: ASHBY | B38: 6065 | C38: CITY OF | D38: WANNEROO | E38: Perth | F38: =VLOOKUP(E38,Admin_lookup!$A$2:$B$14,2,FALSE) -> Metro
A39: ASHENDON | B39: 6111 | C39: CITY OF | D39: ARMADALE | E39: Perth | F39: =VLOOKUP(E39,Admin_lookup!$A$2:$B$14,2,FALSE) -> Metro
A40: ASHFIELD | B40: 6054 | C40: CITY OF | D40: SWAN | E40: Perth | F40: =VLOOKUP(E40,Admin_lookup!$A$2:$B$14,2,FALSE) -> Metro
A41: ATTADALE | B41: 6156 | C41: CITY OF | D41: MELVILLE | E41: Perth | F41: =VLOOKUP(E41,Admin_lookup!$A$2:$B$14,2,FALSE) -> Metro
A42: ATWELL | B42: 6164 | C42: CITY OF | D42: COCKBURN | E42: Perth | F42: =VLOOKUP(E42,Admin_lookup!$A$2:$B$14,2,FALSE) -> Metro
A43: AUBIN GROVE | B43: 6164 | C43: CITY OF | D43: COCKBURN | E43: Perth | F43: =VLOOKUP(E43,Admin_lookup!$A$2:$B$14,2,FALSE) -> Metro
A44: AUGUSTA | B44: 6290 | C44: SHIRE OF | D44: AUGUSTA-MARGARET RIVER | E44: South West | F44: =VLOOKUP(E44,Admin_lookup!$A$2:$B$14,2,FALSE) -> Regional
A45: AUSTRALIND | B45: 6233 | C45: SHIRE OF | D45: HARVEY | E45: South West | F45: =VLOOKUP(E45,Admin_lookup!$A$2:$B$14,2,FALSE) -> Regional
A46: AVELEY | B46: 6069 | C46: CITY OF | D46: SWAN | E46: Perth | F46: =VLOOKUP(E46,Admin_lookup!$A$2:$B$14,2,FALSE) -> Metro
A47: AVON VALLEY NATIONAL PARK | B47: 6084 | C47: CITY OF | D47: SWAN | E47: Perth | F47: =VLOOKUP(E47,Admin_lookup!$A$2:$B$14,2,FALSE) -> Metro
A48: BAANDEE | B48: 6412 | C48: SHIRE OF | D48: KELLERBERRIN | E48: Wheatbelt | F48: =VLOOKUP(E48,Admin_lookup!$A$2:$B$14,2,FALSE) -> Regional
A49: BABAKIN | B49: 6428 | C49: SHIRE OF | D49: BRUCE ROCK | E49: Wheatbelt | F49: =VLOOKUP(E49,Admin_lookup!$A$2:$B$14,2,FALSE) -> Regional
A50: BABBAGE ISLAND | B50: 6701 | C50: SHIRE OF | D50: CARNARVON | E50: Gascoyne | F50: =VLOOKUP(E50,Admin_lookup!$A$2:$B$14,2,FALSE) -> Regional
A51: BADGEBUP | B51: 6317 | C51: SHIRE OF | D51: KATANNING | E51: Great Southern | F51: =VLOOKUP(E51,Admin_lookup!$A$2:$B$14,2,FALSE) -> Regional
A52: BADGERIN ROCK | B52: 6475 | C52: SHIRE OF | D52: KOORDA | E52: Wheatbelt | F52: =VLOOKUP(E52,Admin_lookup!$A$2:$B$14,2,FALSE) -> Regional
A53: BADGIN | B53: 6302 | C53: SHIRE OF | D53: YORK | E53: Wheatbelt | F53: =VLOOKUP(E53,Admin_lookup!$A$2:$B$14,2,FALSE) -> Regional
A54: BADGINGARRA | B54: 6521 | C54: SHIRE OF | D54: DANDARAGAN | E54: Wheatbelt | F54: =VLOOKUP(E54,Admin_lookup!$A$2:$B$14,2,FALSE) -> Regional
A55: BADJALING | B55: 6383 | C55: SHIRE OF | D55: QUAIRADING | E55: Wheatbelt | F55: =VLOOKUP(E55,Admin_lookup!$A$2:$B$14,2,FALSE) -> Regional
A56: BAILUP | B56: 6082 | C56: SHIRE OF | D56: MUNDARING | E56: Perth | F56: =VLOOKUP(E56,Admin_lookup!$A$2:$B$14,2,FALSE) -> Metro
A57: BAKERS HILL | B57: 6562 | C57: SHIRE OF | D57: NORTHAM | E57: Wheatbelt | F57: =VLOOKUP(E57,Admin_lookup!$A$2:$B$14,2,FALSE) -> Regional
A58: BALBARRUP | B58: 6258 | C58: SHIRE OF | D58: MANJIMUP | E58: South West | F58: =VLOOKUP(E58,Admin_lookup!$A$2:$B$14,2,FALSE) -> Regional
A59: BALCATTA | B59: 6021 | C59: CITY OF | D59: STIRLING | E59: Perth | F59: =VLOOKUP(E59,Admin_lookup!$A$2:$B$14,2,FALSE) -> Metro
A60: BALCATTA PO BOXES | B60: 6914 | C60: CITY OF | D60: PERTH | E60: Perth | F60: =VLOOKUP(E60,Admin_lookup!$A$2:$B$14,2,FALSE) -> Metro
A61: BALDIVIS | B61: 6171 | C61: CITY OF | D61: ROCKINGHAM | E61: Perth | F61: =VLOOKUP(E61,Admin_lookup!$A$2:$B$14,2,FALSE) -> Metro
A62: BALGA | B62: 6061 | C62: CITY OF | D62: STIRLING | E62: Perth | F62: =VLOOKUP(E62,Admin_lookup!$A$2:$B$14,2,FALSE) -> Metro
A63: BALINGUP | B63: 6253 | C63: SHIRE OF | D63: DONNYBROOK-BALINGUP | E63: South West | F63: =VLOOKUP(E63,Admin_lookup!$A$2:$B$14,2,FALSE) -> Regional
A64: BALKULING | B64: 6383 | C64: SHIRE OF | D64: QUAIRADING | E64: Wheatbelt | F64: =VLOOKUP(E64,Admin_lookup!$A$2:$B$14,2,FALSE) -> Regional
A65: BALLA BALLA | B65: 6714 | C65: SHIRE OF | D65: ROEBOURNE | E65: Pilbara | F65: =VLOOKUP(E65,Admin_lookup!$A$2:$B$14,2,FALSE) -> Pilbara
A66: BALLADONG | B66: 6302 | C66: SHIRE OF | D66: YORK | E66: Wheatbelt | F66: =VLOOKUP(E66,Admin_lookup!$A$2:$B$14,2,FALSE) -> Regional
A67: BALLADONIA | B67: 6443 | C67: SHIRE OF | D67: COOLGARDIE | E67: Goldfields-Esperance | F67: =VLOOKUP(E67,Admin_lookup!$A$2:$B$14,2,FALSE) -> Regional
A68: BALLAJURA | B68: 6066 | C68: CITY OF | D68: SWAN | E68: Perth | F68: =VLOOKUP(E68,Admin_lookup!$A$2:$B$14,2,FALSE) -> Metro
A69: BALLAYING | B69: 6315 | C69: SHIRE OF | D69: WAGIN | E69: Wheatbelt | F69: =VLOOKUP(E69,Admin_lookup!$A$2:$B$14,2,FALSE) -> Regional
A70: BALLIDU | B70: 6606 | C70: SHIRE OF | D70: WONGAN-BALLIDU | E70: Wheatbelt | F70: =VLOOKUP(E70,Admin_lookup!$A$2:$B$14,2,FALSE) -> Regional
A71: BALLY BALLY | B71: 6304 | C71: SHIRE OF | D71: BEVERLEY | E71: Wheatbelt | F71: =VLOOKUP(E71,Admin_lookup!$A$2:$B$14,2,FALSE) -> Regional
A72: BAMBUN | B72: 6503 | C72: SHIRE OF | D72: GINGIN | E72: Wheatbelt | F72: =VLOOKUP(E72,Admin_lookup!$A$2:$B$14,2,FALSE) -> Regional
A73: BANDY CREEK | B73: 6450 | C73: SHIRE OF | D73: ESPERANCE | E73: Goldfields-Esperance | F73: =VLOOKUP(E73,Admin_lookup!$A$2:$B$14,2,FALSE) -> Regional
A74: BANDYA | B74: 6440 | C74: SHIRE OF | D74: LAVERTON | E74: Goldfields-Esperance | F74: =VLOOKUP(E74,Admin_lookup!$A$2:$B$14,2,FALSE) -> Regional
A75: BANJUP | B75: 6164 | C75: CITY OF | D75: COCKBURN | E75: Perth | F75: =VLOOKUP(E75,Admin_lookup!$A$2:$B$14,2,FALSE) -> Metro
A76: BANKSIA GROVE | B76: 6031 | C76: CITY OF | D76: WANNEROO | E76: Perth | F76: =VLOOKUP(E76,Admin_lookup!$A$2:$B$14,2,FALSE) -> Metro
A77: BANKSIADALE | B77: 6213 | C77: SHIRE OF | D77: MURRAY | E77: Peel | F77: =VLOOKUP(E77,Admin_lookup!$A$2:$B$14,2,FALSE) -> Regional
A78: BANNISTER | B78: 6390 | C78: SHIRE OF | D78: Wandering | E78: Wheatbelt | F78: =VLOOKUP(E78,Admin_lookup!$A$2:$B$14,2,FALSE) -> Regional
A79: BARBALIN | B79: 6479 | C79: SHIRE OF | D79: MUKINBUDIN | E79: Wheatbelt | F79: =VLOOKUP(E79,Admin_lookup!$A$2:$B$14,2,FALSE) -> Regional
A80: BARBERTON | B80: 6510 | C80: SHIRE OF | D80: MOORA | E80: Wheatbelt | F80: =VLOOKUP(E80,Admin_lookup!$A$2:$B$14,2,FALSE) -> Regional
A81: BARRABUP | B81: 6275 | C81: SHIRE OF | D81: BUSSELTON | E81: South West | F81: =VLOOKUP(E81,Admin_lookup!$A$2:$B$14,2,FALSE) -> Regional
A82: BARRAGUP | B82: 6209 | C82: SHIRE OF | D82: MURRAY | E82: Peel | F82: =VLOOKUP(E82,Admin_lookup!$A$2:$B$14,2,FALSE) -> Regional
A83: BARROW ISLAND | B83: 6712 | C83: SHIRE OF | D83: ASHBURTON | E83: Pilbara | F83: =VLOOKUP(E83,Admin_lookup!$A$2:$B$14,2,FALSE) -> Pilbara
A84: BASKERVILLE | B84: 6056 | C84: CITY OF | D84: SWAN | E84: Perth | F84: =VLOOKUP(E84,Admin_lookup!$A$2:$B$14,2,FALSE) -> Metro
A85: BASSENDEAN | B85: 6054 | C85: CITY OF | D85: SWAN | E85: Perth | F85: =VLOOKUP(E85,Admin_lookup!$A$2:$B$14,2,FALSE) -> Metro
A86: BASSENDEAN DC | B86: 6054 | C86: CITY OF | D86: SWAN | E86: Perth | F86: =VLOOKUP(E86,Admin_lookup!$A$2:$B$14,2,FALSE) -> Metro
A87: BASSENDEAN DC PO BOXES | B87: 6942 | C87: CITY OF | D87: PERTH | E87: Perth | F87: =VLOOKUP(E87,Admin_lookup!$A$2:$B$14,2,FALSE) -> Metro
A88: BASSENDEAN PO BOXES | B88: 6934 | C88: CITY OF | D88: PERTH | E88: Perth | F88: =VLOOKUP(E88,Admin_lookup!$A$2:$B$14,2,FALSE) -> Metro
A89: BATEMAN | B89: 6150 | C89: CITY OF | D89: MELVILLE | E89: Perth | F89: =VLOOKUP(E89,Admin_lookup!$A$2:$B$14,2,FALSE) -> Metro
A90: BAUDIN | B90: 6284 | C90: SHIRE OF | D90: AUGUSTA-MARGARET RIVER | E90: South West | F90: =VLOOKUP(E90,Admin_lookup!$A$2:$B$14,2,FALSE) -> Regional
A91: BAYNTON | B91: 6714 | C91: SHIRE OF | D91: ROEBOURNE | E91: Pilbara | F91: =VLOOKUP(E91,Admin_lookup!$A$2:$B$14,2,FALSE) -> Pilbara
A92: BAYONET HEAD | B92: 6330 | C92: CITY OF | D92: ALBANY | E92: Great Southern | F92: =VLOOKUP(E92,Admin_lookup!$A$2:$B$14,2,FALSE) -> Regional
A93: BAYSWATER | B93: 6053 | C93: CITY OF | D93: BAYSWATER | E93: Perth | F93: =VLOOKUP(E93,Admin_lookup!$A$2:$B$14,2,FALSE) -> Metro
A94: BAYSWATER PO BOXES | B94: 6933 | C94: CITY OF | D94: PERTH | E94: Perth | F94: =VLOOKUP(E94,Admin_lookup!$A$2:$B$14,2,FALSE) -> Metro
A95: BEACHLANDS | B95: 6530 | C95: CITY OF | D95: GERALDTON-GREENOUGH | E95: Mid-West | F95: =VLOOKUP(E95,Admin_lookup!$A$2:$B$14,2,FALSE) -> Regional
A96: BEACON | B96: 6472 | C96: SHIRE OF | D96: MOUNT MARSHALL | E96: Wheatbelt | F96: =VLOOKUP(E96,Admin_lookup!$A$2:$B$14,2,FALSE) -> Regional
A97: BEACONSFIELD | B97: 6162 | C97: CITY OF | D97: FREMANTLE | E97: Perth | F97: =VLOOKUP(E97,Admin_lookup!$A$2:$B$14,2,FALSE) -> Metro
A98: BEADELL | B98: 6440 | C98: SHIRE OF | D98: LAVERTON | E98: Goldfields-Esperance | F98: =VLOOKUP(E98,Admin_lookup!$A$2:$B$14,2,FALSE) -> Regional
A99: BEAUFORT RIVER | B99: 6394 | C99: SHIRE OF | D99: KOJONUP | E99: Great Southern | F99: =VLOOKUP(E99,Admin_lookup!$A$2:$B$14,2,FALSE) -> Regional
A100: BEAUMONT | B100: 6450 | C100: SHIRE OF | D100: ESPERANCE | E100: Goldfields-Esperance | F100: =VLOOKUP(E100,Admin_lookup!$A$2:$B$14,2,FALSE) -> Regional
A101: BECKENHAM | B101: 6107 | C101: CITY OF | D101: CANNING | E101: Perth | F101: =VLOOKUP(E101,Admin_lookup!$A$2:$B$14,2,FALSE) -> Metro
A102: BEDFORD | B102: 6052 | C102: CITY OF | D102: STIRLING | E102: Perth | F102: =VLOOKUP(E102,Admin_lookup!$A$2:$B$14,2,FALSE) -> Metro
A103: BEDFORDALE | B103: 6112 | C103: CITY OF | D103: ARMADALE | E103: Perth | F103: =VLOOKUP(E103,Admin_lookup!$A$2:$B$14,2,FALSE) -> Metro
A104: BEECHBORO | B104: 6063 | C104: CITY OF | D104: SWAN | E104: Perth | F104: =VLOOKUP(E104,Admin_lookup!$A$2:$B$14,2,FALSE) -> Metro
A105: BEECHINA | B105: 6556 | C105: CITY OF | D105: SWAN | E105: Perth | F105: =VLOOKUP(E105,Admin_lookup!$A$2:$B$14,2,FALSE) -> Metro
A106: BEEDELUP | B106: 6260 | C106: SHIRE OF | D106: MANJIMUP | E106: South West | F106: =VLOOKUP(E106,Admin_lookup!$A$2:$B$14,2,FALSE) -> Regional
A107: BEELA | B107: 6224 | C107: SHIRE OF | D107: HARVEY | E107: South West | F107: =VLOOKUP(E107,Admin_lookup!$A$2:$B$14,2,FALSE) -> Regional
A108: BEELERUP | B108: 6239 | C108: SHIRE OF | D108: DONNYBROOK-BALINGUP | E108: South West | F108: =VLOOKUP(E108,Admin_lookup!$A$2:$B$14,2,FALSE) -> Regional
A109: BEELIAR | B109: 6164 | C109: CITY OF | D109: COCKBURN | E109: Perth | F109: =VLOOKUP(E109,Admin_lookup!$A$2:$B$14,2,FALSE) -> Metro
A110: BEENONG | B110: 6353 | C110: SHIRE OF | D110: DUMBLEYUNG | E110: Wheatbelt | F110: =VLOOKUP(E110,Admin_lookup!$A$2:$B$14,2,FALSE) -> Regional
A111: BEERMULLAH | B111: 6503 | C111: SHIRE OF | D111: GINGIN | E111: Wheatbelt | F111: =VLOOKUP(E111,Admin_lookup!$A$2:$B$14,2,FALSE) -> Regional
A112: BEJOORDING | B112: 6566 | C112: SHIRE OF | D112: TOODYAY | E112: Wheatbelt | F112: =VLOOKUP(E112,Admin_lookup!$A$2:$B$14,2,FALSE) -> Regional
A113: BELDON | B113: 6027 | C113: CITY OF | D113: JOONDALUP | E113: Perth | F113: =VLOOKUP(E113,Admin_lookup!$A$2:$B$14,2,FALSE) -> Metro
A114: BELHUS | B114: 6069 | C114: CITY OF | D114: SWAN | E114: Perth | F114: =VLOOKUP(E114,Admin_lookup!$A$2:$B$14,2,FALSE) -> Metro
A115: BELLEVUE | B115: 6056 | C115: CITY OF | D115: SWAN | E115: Perth | F115: =VLOOKUP(E115,Admin_lookup!$A$2:$B$14,2,FALSE) -> Metro
A116: BELMONT | B116: 6104 | C116: CITY OF | D116: BELMONT | E116: Perth | F116: =VLOOKUP(E116,Admin_lookup!$A$2:$B$14,2,FALSE) -> Metro
A117: BELMONT PO BOXES | B117: 6984 | C117: CITY OF | D117: PERTH | E117: Perth | F117: =VLOOKUP(E117,Admin_lookup!$A$2:$B$14,2,FALSE) -> Metro
A118: BENCUBBIN | B118: 6477 | C118: SHIRE OF | D118: MOUNT MARSHALL | E118: Wheatbelt | F118: =VLOOKUP(E118,Admin_lookup!$A$2:$B$14,2,FALSE) -> Regional
A119: BENGER | B119: 6223 | C119: SHIRE OF | D119: HARVEY | E119: South West | F119: =VLOOKUP(E119,Admin_lookup!$A$2:$B$14,2,FALSE) -> Regional
A120: BENJABERRING | B120: 6463 | C120: SHIRE OF | D120: WYALKATCHEM | E120: Wheatbelt | F120: =VLOOKUP(E120,Admin_lookup!$A$2:$B$14,2,FALSE) -> Regional
A121: BENJINUP | B121: 6255 | C121: SHIRE OF | D121: BRIDGETOWN-GREENBUSHES | E121: South West | F121: =VLOOKUP(E121,Admin_lookup!$A$2:$B$14,2,FALSE) -> Regional
A122: BENTLEY | B122: 6102 | C122: TOWN OF | D122: VICTORIA PARK | E122: Perth | F122: =VLOOKUP(E122,Admin_lookup!$A$2:$B$14,2,FALSE) -> Metro
A123: BENTLEY DC | B123: 6102 | C123: TOWN OF | D123: VICTORIA PARK | E123: Perth | F123: =VLOOKUP(E123,Admin_lookup!$A$2:$B$14,2,FALSE) -> Metro
A124: BENTLEY DC PO BOXES 1001-1316 | B124: 6983 | C124: CITY OF | D124: PERTH | E124: Perth | F124: =VLOOKUP(E124,Admin_lookup!$A$2:$B$14,2,FALSE) -> Metro
A125: BENTLEY PO BOXES 1-772 | B125: 6982 | C125: CITY OF | D125: PERTH | E125: Perth | F125: =VLOOKUP(E125,Admin_lookup!$A$2:$B$14,2,FALSE) -> Metro
A126: BENTLEY SOUTH | B126: 6102 | C126: TOWN OF | D126: VICTORIA PARK | E126: Perth | F126: =VLOOKUP(E126,Admin_lookup!$A$2:$B$14,2,FALSE) -> Metro
A127: BERESFORD | B127: 6530 | C127: CITY OF | D127: GERALDTON-GREENOUGH | E127: Mid-West | F127: =VLOOKUP(E127,Admin_lookup!$A$2:$B$14,2,FALSE) -> Regional
A128: BERKSHIRE VALLEY | B128: 6510 | C128: SHIRE OF | D128: MOORA | E128: Wheatbelt | F128: =VLOOKUP(E128,Admin_lookup!$A$2:$B$14,2,FALSE) -> Regional
A129: BERNIER ISLAND | B129: 6701 | C129: SHIRE OF | D129: CARNARVON | E129: Gascoyne | F129: =VLOOKUP(E129,Admin_lookup!$A$2:$B$14,2,FALSE) -> Regional
A130: BERTRAM | B130: 6167 | C130: TOWN OF | D130: KWINANA | E130: Perth | F130: =VLOOKUP(E130,Admin_lookup!$A$2:$B$14,2,FALSE) -> Metro
A131: BEVERLEY | B131: 6304 | C131: SHIRE OF | D131: BEVERLEY | E131: Wheatbelt | F131: =VLOOKUP(E131,Admin_lookup!$A$2:$B$14,2,FALSE) -> Regional
A132: BIBRA LAKE | B132: 6163 | C132: CITY OF | D132: COCKBURN | E132: Perth | F132: =VLOOKUP(E132,Admin_lookup!$A$2:$B$14,2,FALSE) -> Metro
A133: BIBRA LAKE DC | B133: 6163 | C133: CITY OF | D133: COCKBURN | E133: Perth | F133: =VLOOKUP(E133,Admin_lookup!$A$2:$B$14,2,FALSE) -> Metro
A134: BIBRA LAKE DC PO BOXES | B134: 6965 | C134: CITY OF | D134: PERTH | E134: Perth | F134: =VLOOKUP(E134,Admin_lookup!$A$2:$B$14,2,FALSE) -> Metro
A135: BICKLEY | B135: 6076 | C135: SHIRE OF | D135: KALAMUNDA | E135: Perth | F135: =VLOOKUP(E135,Admin_lookup!$A$2:$B$14,2,FALSE) -> Metro
A136: BICTON | B136: 6157 | C136: CITY OF | D136: MELVILLE | E136: Perth | F136: =VLOOKUP(E136,Admin_lookup!$A$2:$B$14,2,FALSE) -> Metro
A137: BIDDELIA | B137: 6260 | C137: SHIRE OF | D137: MANJIMUP | E137: South West | F137: =VLOOKUP(E137,Admin_lookup!$A$2:$B$14,2,FALSE) -> Regional
A138: BIG GROVE | B138: 6330 | C138: CITY OF | D138: ALBANY | E138: Great Southern | F138: =VLOOKUP(E138,Admin_lookup!$A$2:$B$14,2,FALSE) -> Regional
A139: BILBARIN | B139: 6375 | C139: SHIRE OF | D139: CORRIGIN | E139: Wheatbelt | F139: =VLOOKUP(E139,Admin_lookup!$A$2:$B$14,2,FALSE) -> Regional
A140: BILINGURR | B140: 6725 | C140: SHIRE OF | D140: BROOME | E140: Kimberley | F140: =VLOOKUP(E140,Admin_lookup!$A$2:$B$14,2,FALSE) -> Kimberley
A141: BIMBIJY | B141: 6472 | C141: SHIRE OF | D141: MOUNT MARSHALL | E141: Wheatbelt | F141: =VLOOKUP(E141,Admin_lookup!$A$2:$B$14,2,FALSE) -> Regional
A142: BINDI BINDI | B142: 6574 | C142: SHIRE OF | D142: MOORA | E142: Wheatbelt | F142: =VLOOKUP(E142,Admin_lookup!$A$2:$B$14,2,FALSE) -> Regional
A143: BINDOON | B143: 6502 | C143: SHIRE OF | D143: TOODYAY | E143: Wheatbelt | F143: =VLOOKUP(E143,Admin_lookup!$A$2:$B$14,2,FALSE) -> Regional
A144: BINDOON TRAINING AREA | B144: 6502 | C144: SHIRE OF | D144: TOODYAY | E144: Wheatbelt | F144: =VLOOKUP(E144,Admin_lookup!$A$2:$B$14,2,FALSE) -> Regional
A145: BINDULI | B145: 6430 | C145: CITY OF | D145: KALGOORLIE-BOULDER | E145: Goldfields-Esperance | F145: =VLOOKUP(E145,Admin_lookup!$A$2:$B$14,2,FALSE) -> Regional
A146: BINNINGUP | B146: 6233 | C146: SHIRE OF | D146: HARVEY | E146: South West | F146: =VLOOKUP(E146,Admin_lookup!$A$2:$B$14,2,FALSE) -> Regional
A147: BINNU | B147: 6532 | C147: SHIRE OF | D147: CHAPMAN VALLEY | E147: Mid-West | F147: =VLOOKUP(E147,Admin_lookup!$A$2:$B$14,2,FALSE) -> Regional
A148: BIRCHMONT | B148: 6214 | C148: SHIRE OF | D148: MURRAY | E148: Peel | F148: =VLOOKUP(E148,Admin_lookup!$A$2:$B$14,2,FALSE) -> Regional
A149: BLUFF POINT | B149: 6530 | C149: CITY OF | D149: GERALDTON-GREENOUGH | E149: Mid-West | F149: =VLOOKUP(E149,Admin_lookup!$A$2:$B$14,2,FALSE) -> Regional
A150: BLYTHEWOOD | B150: 6208 | C150: SHIRE OF | D150: MURRAY | E150: Peel | F150: =VLOOKUP(E150,Admin_lookup!$A$2:$B$14,2,FALSE) -> Regional
A151: BOALLIA | B151: 6280 | C151: SHIRE OF | D151: BUSSELTON | E151: South West | F151: =VLOOKUP(E151,Admin_lookup!$A$2:$B$14,2,FALSE) -> Regional
A152: BOBALONG | B152: 6320 | C152: SHIRE OF | D152: BROOMEHILL-TAMBELLUP | E152: Great Southern | F152: =VLOOKUP(E152,Admin_lookup!$A$2:$B$14,2,FALSE) -> Regional
A153: BODALLIN | B153: 6424 | C153: SHIRE OF | D153: YILGARN | E153: Wheatbelt | F153: =VLOOKUP(E153,Admin_lookup!$A$2:$B$14,2,FALSE) -> Regional
A154: BODDINGTON | B154: 6390 | C154: SHIRE OF | D154: BODDINGTON | E154: Peel | F154: =VLOOKUP(E154,Admin_lookup!$A$2:$B$14,2,FALSE) -> Regional
A155: BOILUP | B155: 6394 | C155: SHIRE OF | D155: KOJONUP | E155: Great Southern | F155: =VLOOKUP(E155,Admin_lookup!$A$2:$B$14,2,FALSE) -> Regional
A156: BOKAL | B156: 6392 | C156: SHIRE OF | D156: WILLIAMS | E156: Wheatbelt | F156: =VLOOKUP(E156,Admin_lookup!$A$2:$B$14,2,FALSE) -> Regional
A157: BOLGART | B157: 6568 | C157: SHIRE OF | D157: VICTORIA PLAINS | E157: Wheatbelt | F157: =VLOOKUP(E157,Admin_lookup!$A$2:$B$14,2,FALSE) -> Regional
A158: BONNIE ROCK | B158: 6479 | C158: SHIRE OF | D158: MUKINBUDIN | E158: Wheatbelt | F158: =VLOOKUP(E158,Admin_lookup!$A$2:$B$14,2,FALSE) -> Regional
A159: BONNIEFIELD | B159: 6525 | C159: SHIRE OF | D159: IRWIN | E159: Mid-West | F159: =VLOOKUP(E159,Admin_lookup!$A$2:$B$14,2,FALSE) -> Regional
A160: BOODARIE | B160: 6722 | C160: TOWN OF | D160: PORT HEDLAND | E160: Pilbara | F160: =VLOOKUP(E160,Admin_lookup!$A$2:$B$14,2,FALSE) -> Pilbara
A161: BOODAROCKIN | B161: 6423 | C161: SHIRE OF | D161: WESTONIA | E161: Wheatbelt | F161: =VLOOKUP(E161,Admin_lookup!$A$2:$B$14,2,FALSE) -> Regional
A162: BOOKARA | B162: 6525 | C162: SHIRE OF | D162: IRWIN | E162: Mid-West | F162: =VLOOKUP(E162,Admin_lookup!$A$2:$B$14,2,FALSE) -> Regional
A163: BOOLADING | B163: 6392 | C163: SHIRE OF | D163: WILLIAMS | E163: Wheatbelt | F163: =VLOOKUP(E163,Admin_lookup!$A$2:$B$14,2,FALSE) -> Regional
A164: BOONANARRING | B164: 6503 | C164: SHIRE OF | D164: GINGIN | E164: Wheatbelt | F164: =VLOOKUP(E164,Admin_lookup!$A$2:$B$14,2,FALSE) -> Regional
A165: BOORABBIN | B165: 6429 | C165: SHIRE OF | D165: COOLGARDIE | E165: Goldfields-Esperance | F165: =VLOOKUP(E165,Admin_lookup!$A$2:$B$14,2,FALSE) -> Regional
A166: BOORAGOON | B166: 6154 | C166: CITY OF | D166: MELVILLE | E166: Perth | F166: =VLOOKUP(E166,Admin_lookup!$A$2:$B$14,2,FALSE) -> Metro
A167: BOORAGOON PO BOXES | B167: 6954 | C167: CITY OF | D167: PERTH | E167: Perth | F167: =VLOOKUP(E167,Admin_lookup!$A$2:$B$14,2,FALSE) -> Metro
A168: BOORALAMING | B168: 6475 | C168: SHIRE OF | D168: KOORDA | E168: Wheatbelt | F168: =VLOOKUP(E168,Admin_lookup!$A$2:$B$14,2,FALSE) -> Regional
A169: BOORARA | B169: 6431 | C169: SHIRE OF | D169: NGAANYATJARRAKU | E169: Goldfields-Esperance | F169: =VLOOKUP(E169,Admin_lookup!$A$2:$B$14,2,FALSE) -> Regional
A170: BOORARA BROOK | B170: 6262 | C170: SHIRE OF | D170: MANJIMUP | E170: South West | F170: =VLOOKUP(E170,Admin_lookup!$A$2:$B$14,2,FALSE) -> Regional
A171: BOOTENAL | B171: 6532 | C171: SHIRE OF | D171: CHAPMAN VALLEY | E171: Mid-West | F171: =VLOOKUP(E171,Admin_lookup!$A$2:$B$14,2,FALSE) -> Regional
A172: BOOTHENDARRA | B172: 6521 | C172: SHIRE OF | D172: DANDARAGAN | E172: Wheatbelt | F172: =VLOOKUP(E172,Admin_lookup!$A$2:$B$14,2,FALSE) -> Regional
A173: BORANUP | B173: 6286 | C173: SHIRE OF | D173: AUGUSTA-MARGARET RIVER | E173: South West | F173: =VLOOKUP(E173,Admin_lookup!$A$2:$B$14,2,FALSE) -> Regional
A174: BORDEN | B174: 6338 | C174: SHIRE OF | D174: GNOWANGERUP | E174: Great Southern | F174: =VLOOKUP(E174,Admin_lookup!$A$2:$B$14,2,FALSE) -> Regional
A175: BORDERDALE | B175: 6320 | C175: SHIRE OF | D175: BROOMEHILL-TAMBELLUP | E175: Great Southern | F175: =VLOOKUP(E175,Admin_lookup!$A$2:$B$14,2,FALSE) -> Regional
A176: BORNHOLM | B176: 6330 | C176: CITY OF | D176: ALBANY | E176: Great Southern | F176: =VLOOKUP(E176,Admin_lookup!$A$2:$B$14,2,FALSE) -> Regional
A177: BOSCABEL | B177: 6394 | C177: SHIRE OF | D177: KOJONUP | E177: Great Southern | F177: =VLOOKUP(E177,Admin_lookup!$A$2:$B$14,2,FALSE) -> Regional
A178: BOULDER | B178: 6432 | C178: CITY OF | D178: KALGOORLIE-BOULDER | E178: Goldfields-Esperance | F178: =VLOOKUP(E178,Admin_lookup!$A$2:$B$14,2,FALSE) -> Regional
A179: BOUNDAIN | B179: 6312 | C179: SHIRE OF | D179: NARROGIN | E179: Wheatbelt | F179: =VLOOKUP(E179,Admin_lookup!$A$2:$B$14,2,FALSE) -> Regional
A180: BOUVARD | B180: 6211 | C180: CITY OF | D180: MANDURAH | E180: Peel | F180: =VLOOKUP(E180,Admin_lookup!$A$2:$B$14,2,FALSE) -> Regional
A181: BOVELL | B181: 6280 | C181: SHIRE OF | D181: BUSSELTON | E181: South West | F181: =VLOOKUP(E181,Admin_lookup!$A$2:$B$14,2,FALSE) -> Regional
A182: BOW BRIDGE | B182: 6333 | C182: SHIRE OF | D182: DENMARK | E182: Great Southern | F182: =VLOOKUP(E182,Admin_lookup!$A$2:$B$14,2,FALSE) -> Regional
A183: BOWELLING | B183: 6225 | C183: SHIRE OF | D183: WEST ARTHUR | E183: Wheatbelt | F183: =VLOOKUP(E183,Admin_lookup!$A$2:$B$14,2,FALSE) -> Regional
A184: BOWES | B184: 6535 | C184: SHIRE OF | D184: NORTHAMPTON | E184: Mid-West | F184: =VLOOKUP(E184,Admin_lookup!$A$2:$B$14,2,FALSE) -> Regional
A185: BOWGADA | B185: 6623 | C185: SHIRE OF | D185: MORAWA | E185: Mid-West | F185: =VLOOKUP(E185,Admin_lookup!$A$2:$B$14,2,FALSE) -> Regional
A186: BOXWOOD HILL | B186: 6338 | C186: SHIRE OF | D186: GNOWANGERUP | E186: Great Southern | F186: =VLOOKUP(E186,Admin_lookup!$A$2:$B$14,2,FALSE) -> Regional
A187: BOYA | B187: 6056 | C187: CITY OF | D187: SWAN | E187: Perth | F187: =VLOOKUP(E187,Admin_lookup!$A$2:$B$14,2,FALSE) -> Metro
A188: BOYANUP | B188: 6237 | C188: SHIRE OF | D188: CAPEL | E188: South West | F188: =VLOOKUP(E188,Admin_lookup!$A$2:$B$14,2,FALSE) -> Regional
A189: BOYATUP | B189: 6450 | C189: SHIRE OF | D189: ESPERANCE | E189: Goldfields-Esperance | F189: =VLOOKUP(E189,Admin_lookup!$A$2:$B$14,2,FALSE) -> Regional
A190: BOYERINE | B190: 6316 | C190: SHIRE OF | D190: WOODANILLING | E190: Great Southern | F190: =VLOOKUP(E190,Admin_lookup!$A$2:$B$14,2,FALSE) -> Regional
A191: BOYUP BROOK | B191: 6244 | C191: SHIRE OF | D191: Boyup Brook | E191: South West | F191: =VLOOKUP(E191,Admin_lookup!$A$2:$B$14,2,FALSE) -> Regional
A192: BRABHAM | B192: 6055 | C192: CITY OF | D192: SWAN | E192: Perth | F192: =VLOOKUP(E192,Admin_lookup!$A$2:$B$14,2,FALSE) -> Metro
A193: BRAMLEY | B193: 6285 | C193: SHIRE OF | D193: AUGUSTA-MARGARET RIVER | E193: South West | F193: =VLOOKUP(E193,Admin_lookup!$A$2:$B$14,2,FALSE) -> Regional
A194: BRAZIER | B194: 6251 | C194: SHIRE OF | D194: DONNYBROOK-BALINGUP | E194: South West | F194: =VLOOKUP(E194,Admin_lookup!$A$2:$B$14,2,FALSE) -> Regional
A195: BREERA | B195: 6503 | C195: SHIRE OF | D195: GINGIN | E195: Wheatbelt | F195: =VLOOKUP(E195,Admin_lookup!$A$2:$B$14,2,FALSE) -> Regional
A196: BREMER BAY | B196: 6338 | C196: SHIRE OF | D196: GNOWANGERUP | E196: Great Southern | F196: =VLOOKUP(E196,Admin_lookup!$A$2:$B$14,2,FALSE) -> Regional
A197: BRENTWOOD | B197: 6153 | C197: CITY OF | D197: MELVILLE | E197: Perth | F197: =VLOOKUP(E197,Admin_lookup!$A$2:$B$14,2,FALSE) -> Metro
A198: BRETON BAY | B198: 6043 | C198: SHIRE OF | D198: GINGIN | E198: Wheatbelt | F198: =VLOOKUP(E198,Admin_lookup!$A$2:$B$14,2,FALSE) -> Regional
A199: BRIDGETOWN | B199: 6255 | C199: SHIRE OF | D199: BRIDGETOWN-GREENBUSHES | E199: South West | F199: =VLOOKUP(E199,Admin_lookup!$A$2:$B$14,2,FALSE) -> Regional
A200: BRIGADOON | B200: 6069 | C200: CITY OF | D200: SWAN | E200: Perth | F200: =VLOOKUP(E200,Admin_lookup!$A$2:$B$14,2,FALSE) -> Metro
... 1648 more rows

Sheet Admin_Postcodes (hidden)
A1: Postcode | B1: SuburbUpperCase | C1: Type | D1: Council | E1: Region | F1: Income region
A2: 872 | B2: GIBSON DESERT NORTH | C2: SHIRE OF | D2: EAST PILBARA | E2: Pilbara | F2: =VLOOKUP(E2,Admin_lookup!$A$2:$B$14,2,FALSE) -> Pilbara
A3: 872 | B3: GIBSON DESERT SOUTH | C3: Shire of | D3: NGAANYATJARRAKU | E3: Goldfields-Esperance | F3: =VLOOKUP(E3,Admin_lookup!$A$2:$B$14,2,FALSE) -> Regional
A4: 872 | B4: NGAANYATJARRA-GILES | C4: Shire of | D4: NGAANYATJARRAKU | E4: Goldfields-Esperance | F4: =VLOOKUP(E4,Admin_lookup!$A$2:$B$14,2,FALSE) -> Regional
A5: 6000 | B5: CITY DELIVERY CENTRE | C5: CITY OF | D5: PERTH | E5: Perth | F5: =VLOOKUP(E5,Admin_lookup!$A$2:$B$14,2,FALSE) -> Metro
A6: 6000 | B6: PERTH | C6: CITY OF | D6: PERTH | E6: Perth | F6: =VLOOKUP(E6,Admin_lookup!$A$2:$B$14,2,FALSE) -> Metro
A7: 6000 | B7: PERTH GPO | C7: CITY OF | D7: PERTH | E7: Perth | F7: =VLOOKUP(E7,Admin_lookup!$A$2:$B$14,2,FALSE) -> Metro
A8: 6001 | B8: PERTH GPO LOCKED BAGS | C8: CITY OF | D8: PERTH | E8: Perth | F8: =VLOOKUP(E8,Admin_lookup!$A$2:$B$14,2,FALSE) -> Metro
A9: 6003 | B9: HIGHGATE | C9: CITY OF | D9: PERTH | E9: Perth | F9: =VLOOKUP(E9,Admin_lookup!$A$2:$B$14,2,FALSE) -> Metro
A10: 6003 | B10: NORTHBRIDGE | C10: CITY OF | D10: PERTH | E10: Perth | F10: =VLOOKUP(E10,Admin_lookup!$A$2:$B$14,2,FALSE) -> Metro
A11: 6004 | B11: EAST PERTH | C11: CITY OF | D11: PERTH | E11: Perth | F11: =VLOOKUP(E11,Admin_lookup!$A$2:$B$14,2,FALSE) -> Metro
A12: 6005 | B12: KINGS PARK | C12: CITY OF | D12: PERTH | E12: Perth | F12: =VLOOKUP(E12,Admin_lookup!$A$2:$B$14,2,FALSE) -> Metro
A13: 6005 | B13: WEST PERTH | C13: CITY OF | D13: PERTH | E13: Perth | F13: =VLOOKUP(E13,Admin_lookup!$A$2:$B$14,2,FALSE) -> Metro
A14: 6006 | B14: NORTH PERTH | C14: TOWN OF | D14: VINCENT | E14: Perth | F14: =VLOOKUP(E14,Admin_lookup!$A$2:$B$14,2,FALSE) -> Metro
A15: 6007 | B15: LEEDERVILLE | C15: TOWN OF | D15: CAMBRIDGE | E15: Perth | F15: =VLOOKUP(E15,Admin_lookup!$A$2:$B$14,2,FALSE) -> Metro
A16: 6007 | B16: WEST LEEDERVILLE | C16: TOWN OF | D16: CAMBRIDGE | E16: Perth | F16: =VLOOKUP(E16,Admin_lookup!$A$2:$B$14,2,FALSE) -> Metro
A17: 6008 | B17: DAGLISH | C17: CITY OF | D17: SUBIACO | E17: Perth | F17: =VLOOKUP(E17,Admin_lookup!$A$2:$B$14,2,FALSE) -> Metro
A18: 6008 | B18: SHENTON PARK | C18: CITY OF | D18: SUBIACO | E18: Perth | F18: =VLOOKUP(E18,Admin_lookup!$A$2:$B$14,2,FALSE) -> Metro
A19: 6008 | B19: SUBIACO | C19: CITY OF | D19: SUBIACO | E19: Perth | F19: =VLOOKUP(E19,Admin_lookup!$A$2:$B$14,2,FALSE) -> Metro
A20: 6008 | B20: SUBIACO EAST | C20: CITY OF | D20: SUBIACO | E20: Perth | F20: =VLOOKUP(E20,Admin_lookup!$A$2:$B$14,2,FALSE) -> Metro
A21: 6009 | B21: BROADWAY NEDLANDS | C21: CITY OF | D21: NEDLANDS | E21: Perth | F21: =VLOOKUP(E21,Admin_lookup!$A$2:$B$14,2,FALSE) -> Metro
A22: 6009 | B22: CRAWLEY | C22: CITY OF | D22: NEDLANDS | E22: Perth | F22: =VLOOKUP(E22,Admin_lookup!$A$2:$B$14,2,FALSE) -> Metro
A23: 6009 | B23: DALKEITH | C23: CITY OF | D23: NEDLANDS | E23: Perth | F23: =VLOOKUP(E23,Admin_lookup!$A$2:$B$14,2,FALSE) -> Metro
A24: 6009 | B24: NEDLANDS | C24: CITY OF | D24: NEDLANDS | E24: Perth | F24: =VLOOKUP(E24,Admin_lookup!$A$2:$B$14,2,FALSE) -> Metro
A25: 6009 | B25: NEDLANDS DC | C25: CITY OF | D25: NEDLANDS | E25: Perth | F25: =VLOOKUP(E25,Admin_lookup!$A$2:$B$14,2,FALSE) -> Metro
A26: 6010 | B26: CLAREMONT | C26: CITY OF | D26: NEDLANDS | E26: Perth | F26: =VLOOKUP(E26,Admin_lookup!$A$2:$B$14,2,FALSE) -> Metro
A27: 6010 | B27: CLAREMONT NORTH | C27: CITY OF | D27: NEDLANDS | E27: Perth | F27: =VLOOKUP(E27,Admin_lookup!$A$2:$B$14,2,FALSE) -> Metro
A28: 6010 | B28: KARRAKATTA | C28: CITY OF | D28: NEDLANDS | E28: Perth | F28: =VLOOKUP(E28,Admin_lookup!$A$2:$B$14,2,FALSE) -> Metro
A29: 6010 | B29: MOUNT CLAREMONT | C29: CITY OF | D29: NEDLANDS | E29: Perth | F29: =VLOOKUP(E29,Admin_lookup!$A$2:$B$14,2,FALSE) -> Metro
A30: 6010 | B30: SWANBOURNE | C30: CITY OF | D30: NEDLANDS | E30: Perth | F30: =VLOOKUP(E30,Admin_lookup!$A$2:$B$14,2,FALSE) -> Metro
A31: 6011 | B31: COTTESLOE | C31: SHIRE OF | D31: PEPPERMINT GROVE | E31: Perth | F31: =VLOOKUP(E31,Admin_lookup!$A$2:$B$14,2,FALSE) -> Metro
A32: 6011 | B32: PEPPERMINT GROVE | C32: SHIRE OF | D32: PEPPERMINT GROVE | E32: Perth | F32: =VLOOKUP(E32,Admin_lookup!$A$2:$B$14,2,FALSE) -> Metro
A33: 6012 | B33: MOSMAN PARK | C33: TOWN OF | D33: MOSMAN PARK | E33: Perth | F33: =VLOOKUP(E33,Admin_lookup!$A$2:$B$14,2,FALSE) -> Metro
A34: 6014 | B34: FLOREAT | C34: TOWN OF | D34: CAMBRIDGE | E34: Perth | F34: =VLOOKUP(E34,Admin_lookup!$A$2:$B$14,2,FALSE) -> Metro
A35: 6014 | B35: FLOREAT FORUM | C35: TOWN OF | D35: CAMBRIDGE | E35: Perth | F35: =VLOOKUP(E35,Admin_lookup!$A$2:$B$14,2,FALSE) -> Metro
A36: 6014 | B36: JOLIMONT | C36: TOWN OF | D36: CAMBRIDGE | E36: Perth | F36: =VLOOKUP(E36,Admin_lookup!$A$2:$B$14,2,FALSE) -> Metro
A37: 6014 | B37: WEMBLEY | C37: TOWN OF | D37: CAMBRIDGE | E37: Perth | F37: =VLOOKUP(E37,Admin_lookup!$A$2:$B$14,2,FALSE) -> Metro
A38: 6015 | B38: CITY BEACH | C38: TOWN OF | D38: CAMBRIDGE | E38: Perth | F38: =VLOOKUP(E38,Admin_lookup!$A$2:$B$14,2,FALSE) -> Metro
A39: 6016 | B39: GLENDALOUGH | C39: TOWN OF | D39: VINCENT | E39: Perth | F39: =VLOOKUP(E39,Admin_lookup!$A$2:$B$14,2,FALSE) -> Metro
A40: 6016 | B40: MOUNT HAWTHORN | C40: TOWN OF | D40: VINCENT | E40: Perth | F40: =VLOOKUP(E40,Admin_lookup!$A$2:$B$14,2,FALSE) -> Metro
A41: 6017 | B41: HERDSMAN | C41: CITY OF | D41: STIRLING | E41: Perth | F41: =VLOOKUP(E41,Admin_lookup!$A$2:$B$14,2,FALSE) -> Metro
A42: 6017 | B42: OSBORNE PARK | C42: CITY OF | D42: STIRLING | E42: Perth | F42: =VLOOKUP(E42,Admin_lookup!$A$2:$B$14,2,FALSE) -> Metro
A43: 6017 | B43: OSBORNE PARK DC | C43: CITY OF | D43: STIRLING | E43: Perth | F43: =VLOOKUP(E43,Admin_lookup!$A$2:$B$14,2,FALSE) -> Metro
A44: 6018 | B44: CHURCHLANDS | C44: CITY OF | D44: STIRLING | E44: Perth | F44: =VLOOKUP(E44,Admin_lookup!$A$2:$B$14,2,FALSE) -> Metro
A45: 6018 | B45: DOUBLEVIEW | C45: CITY OF | D45: STIRLING | E45: Perth | F45: =VLOOKUP(E45,Admin_lookup!$A$2:$B$14,2,FALSE) -> Metro
A46: 6018 | B46: GWELUP | C46: CITY OF | D46: STIRLING | E46: Perth | F46: =VLOOKUP(E46,Admin_lookup!$A$2:$B$14,2,FALSE) -> Metro
A47: 6018 | B47: GWELUP DC | C47: CITY OF | D47: STIRLING | E47: Perth | F47: =VLOOKUP(E47,Admin_lookup!$A$2:$B$14,2,FALSE) -> Metro
A48: 6018 | B48: INNALOO | C48: CITY OF | D48: STIRLING | E48: Perth | F48: =VLOOKUP(E48,Admin_lookup!$A$2:$B$14,2,FALSE) -> Metro
A49: 6018 | B49: KARRINYUP | C49: CITY OF | D49: STIRLING | E49: Perth | F49: =VLOOKUP(E49,Admin_lookup!$A$2:$B$14,2,FALSE) -> Metro
A50: 6018 | B50: WOODLANDS | C50: CITY OF | D50: STIRLING | E50: Perth | F50: =VLOOKUP(E50,Admin_lookup!$A$2:$B$14,2,FALSE) -> Metro
A51: 6019 | B51: SCARBOROUGH | C51: CITY OF | D51: STIRLING | E51: Perth | F51: =VLOOKUP(E51,Admin_lookup!$A$2:$B$14,2,FALSE) -> Metro
A52: 6019 | B52: WEMBLEY DOWNS | C52: CITY OF | D52: STIRLING | E52: Perth | F52: =VLOOKUP(E52,Admin_lookup!$A$2:$B$14,2,FALSE) -> Metro
A53: 6020 | B53: CARINE | C53: CITY OF | D53: STIRLING | E53: Perth | F53: =VLOOKUP(E53,Admin_lookup!$A$2:$B$14,2,FALSE) -> Metro
A54: 6020 | B54: MARMION | C54: CITY OF | D54: STIRLING | E54: Perth | F54: =VLOOKUP(E54,Admin_lookup!$A$2:$B$14,2,FALSE) -> Metro
A55: 6020 | B55: NORTH BEACH | C55: CITY OF | D55: STIRLING | E55: Perth | F55: =VLOOKUP(E55,Admin_lookup!$A$2:$B$14,2,FALSE) -> Metro
A56: 6020 | B56: SORRENTO | C56: CITY OF | D56: STIRLING | E56: Perth | F56: =VLOOKUP(E56,Admin_lookup!$A$2:$B$14,2,FALSE) -> Metro
A57: 6020 | B57: WATERMANS BAY | C57: CITY OF | D57: STIRLING | E57: Perth | F57: =VLOOKUP(E57,Admin_lookup!$A$2:$B$14,2,FALSE) -> Metro
A58: 6021 | B58: BALCATTA | C58: CITY OF | D58: STIRLING | E58: Perth | F58: =VLOOKUP(E58,Admin_lookup!$A$2:$B$14,2,FALSE) -> Metro
A59: 6021 | B59: STIRLING | C59: CITY OF | D59: STIRLING | E59: Perth | F59: =VLOOKUP(E59,Admin_lookup!$A$2:$B$14,2,FALSE) -> Metro
A60: 6022 | B60: HAMERSLEY | C60: CITY OF | D60: STIRLING | E60: Perth | F60: =VLOOKUP(E60,Admin_lookup!$A$2:$B$14,2,FALSE) -> Metro
A61: 6023 | B61: DUNCRAIG | C61: CITY OF | D61: JOONDALUP | E61: Perth | F61: =VLOOKUP(E61,Admin_lookup!$A$2:$B$14,2,FALSE) -> Metro
A62: 6024 | B62: GREENWOOD | C62: CITY OF | D62: JOONDALUP | E62: Perth | F62: =VLOOKUP(E62,Admin_lookup!$A$2:$B$14,2,FALSE) -> Metro
A63: 6024 | B63: WARWICK | C63: CITY OF | D63: JOONDALUP | E63: Perth | F63: =VLOOKUP(E63,Admin_lookup!$A$2:$B$14,2,FALSE) -> Metro
A64: 6025 | B64: CRAIGIE | C64: CITY OF | D64: JOONDALUP | E64: Perth | F64: =VLOOKUP(E64,Admin_lookup!$A$2:$B$14,2,FALSE) -> Metro
A65: 6025 | B65: HILLARYS | C65: CITY OF | D65: JOONDALUP | E65: Perth | F65: =VLOOKUP(E65,Admin_lookup!$A$2:$B$14,2,FALSE) -> Metro
A66: 6025 | B66: KALLAROO | C66: CITY OF | D66: JOONDALUP | E66: Perth | F66: =VLOOKUP(E66,Admin_lookup!$A$2:$B$14,2,FALSE) -> Metro
A67: 6025 | B67: PADBURY | C67: CITY OF | D67: JOONDALUP | E67: Perth | F67: =VLOOKUP(E67,Admin_lookup!$A$2:$B$14,2,FALSE) -> Metro
A68: 6026 | B68: KINGSLEY | C68: CITY OF | D68: JOONDALUP | E68: Perth | F68: =VLOOKUP(E68,Admin_lookup!$A$2:$B$14,2,FALSE) -> Metro
A69: 6026 | B69: WOODVALE | C69: CITY OF | D69: JOONDALUP | E69: Perth | F69: =VLOOKUP(E69,Admin_lookup!$A$2:$B$14,2,FALSE) -> Metro
A70: 6027 | B70: BELDON | C70: CITY OF | D70: JOONDALUP | E70: Perth | F70: =VLOOKUP(E70,Admin_lookup!$A$2:$B$14,2,FALSE) -> Metro
A71: 6027 | B71: CONNOLLY | C71: CITY OF | D71: JOONDALUP | E71: Perth | F71: =VLOOKUP(E71,Admin_lookup!$A$2:$B$14,2,FALSE) -> Metro
A72: 6027 | B72: EDGEWATER | C72: CITY OF | D72: JOONDALUP | E72: Perth | F72: =VLOOKUP(E72,Admin_lookup!$A$2:$B$14,2,FALSE) -> Metro
A73: 6027 | B73: HEATHRIDGE | C73: CITY OF | D73: JOONDALUP | E73: Perth | F73: =VLOOKUP(E73,Admin_lookup!$A$2:$B$14,2,FALSE) -> Metro
A74: 6027 | B74: JOONDALUP | C74: CITY OF | D74: JOONDALUP | E74: Perth | F74: =VLOOKUP(E74,Admin_lookup!$A$2:$B$14,2,FALSE) -> Metro
A75: 6027 | B75: JOONDALUP DC | C75: CITY OF | D75: JOONDALUP | E75: Perth | F75: =VLOOKUP(E75,Admin_lookup!$A$2:$B$14,2,FALSE) -> Metro
A76: 6027 | B76: MULLALOO | C76: CITY OF | D76: JOONDALUP | E76: Perth | F76: =VLOOKUP(E76,Admin_lookup!$A$2:$B$14,2,FALSE) -> Metro
A77: 6027 | B77: OCEAN REEF | C77: CITY OF | D77: JOONDALUP | E77: Perth | F77: =VLOOKUP(E77,Admin_lookup!$A$2:$B$14,2,FALSE) -> Metro
A78: 6028 | B78: BURNS BEACH | C78: CITY OF | D78: JOONDALUP | E78: Perth | F78: =VLOOKUP(E78,Admin_lookup!$A$2:$B$14,2,FALSE) -> Metro
A79: 6028 | B79: CURRAMBINE | C79: CITY OF | D79: JOONDALUP | E79: Perth | F79: =VLOOKUP(E79,Admin_lookup!$A$2:$B$14,2,FALSE) -> Metro
A80: 6028 | B80: ILUKA | C80: CITY OF | D80: JOONDALUP | E80: Perth | F80: =VLOOKUP(E80,Admin_lookup!$A$2:$B$14,2,FALSE) -> Metro
A81: 6028 | B81: KINROSS | C81: CITY OF | D81: JOONDALUP | E81: Perth | F81: =VLOOKUP(E81,Admin_lookup!$A$2:$B$14,2,FALSE) -> Metro
A82: 6029 | B82: TRIGG | C82: CITY OF | D82: STIRLING | E82: Perth | F82: =VLOOKUP(E82,Admin_lookup!$A$2:$B$14,2,FALSE) -> Metro
A83: 6030 | B83: CLARKSON | C83: CITY OF | D83: WANNEROO | E83: Perth | F83: =VLOOKUP(E83,Admin_lookup!$A$2:$B$14,2,FALSE) -> Metro
A84: 6030 | B84: MERRIWA | C84: CITY OF | D84: WANNEROO | E84: Perth | F84: =VLOOKUP(E84,Admin_lookup!$A$2:$B$14,2,FALSE) -> Metro
A85: 6030 | B85: MINDARIE | C85: CITY OF | D85: WANNEROO | E85: Perth | F85: =VLOOKUP(E85,Admin_lookup!$A$2:$B$14,2,FALSE) -> Metro
A86: 6030 | B86: QUINNS ROCKS | C86: CITY OF | D86: WANNEROO | E86: Perth | F86: =VLOOKUP(E86,Admin_lookup!$A$2:$B$14,2,FALSE) -> Metro
A87: 6030 | B87: RIDGEWOOD | C87: CITY OF | D87: WANNEROO | E87: Perth | F87: =VLOOKUP(E87,Admin_lookup!$A$2:$B$14,2,FALSE) -> Metro
A88: 6030 | B88: TAMALA PARK | C88: CITY OF | D88: WANNEROO | E88: Perth | F88: =VLOOKUP(E88,Admin_lookup!$A$2:$B$14,2,FALSE) -> Metro
A89: 6031 | B89: BANKSIA GROVE | C89: CITY OF | D89: WANNEROO | E89: Perth | F89: =VLOOKUP(E89,Admin_lookup!$A$2:$B$14,2,FALSE) -> Metro
A90: 6031 | B90: CARRAMAR | C90: CITY OF | D90: WANNEROO | E90: Perth | F90: =VLOOKUP(E90,Admin_lookup!$A$2:$B$14,2,FALSE) -> Metro
A91: 6031 | B91: NEERABUP | C91: CITY OF | D91: WANNEROO | E91: Perth | F91: =VLOOKUP(E91,Admin_lookup!$A$2:$B$14,2,FALSE) -> Metro
A92: 6032 | B92: NOWERGUP | C92: CITY OF | D92: WANNEROO | E92: Perth | F92: =VLOOKUP(E92,Admin_lookup!$A$2:$B$14,2,FALSE) -> Metro
A93: 6033 | B93: CARABOODA | C93: CITY OF | D93: WANNEROO | E93: Perth | F93: =VLOOKUP(E93,Admin_lookup!$A$2:$B$14,2,FALSE) -> Metro
A94: 6034 | B94: EGLINTON | C94: CITY OF | D94: WANNEROO | E94: Perth | F94: =VLOOKUP(E94,Admin_lookup!$A$2:$B$14,2,FALSE) -> Metro
A95: 6035 | B95: YANCHEP | C95: CITY OF | D95: WANNEROO | E95: Perth | F95: =VLOOKUP(E95,Admin_lookup!$A$2:$B$14,2,FALSE) -> Metro
A96: 6036 | B96: BUTLER | C96: CITY OF | D96: WANNEROO | E96: Perth | F96: =VLOOKUP(E96,Admin_lookup!$A$2:$B$14,2,FALSE) -> Metro
A97: 6036 | B97: JINDALEE | C97: CITY OF | D97: WANNEROO | E97: Perth | F97: =VLOOKUP(E97,Admin_lookup!$A$2:$B$14,2,FALSE) -> Metro
A98: 6037 | B98: TWO ROCKS | C98: CITY OF | D98: WANNEROO | E98: Perth | F98: =VLOOKUP(E98,Admin_lookup!$A$2:$B$14,2,FALSE) -> Metro
A99: 6038 | B99: ALKIMOS | C99: CITY OF | D99: WANNEROO | E99: Perth | F99: =VLOOKUP(E99,Admin_lookup!$A$2:$B$14,2,FALSE) -> Metro
A100: 6041 | B100: CARABAN | C100: SHIRE OF | D100: GINGIN | E100: Wheatbelt | F100: =VLOOKUP(E100,Admin_lookup!$A$2:$B$14,2,FALSE) -> Regional
A101: 6041 | B101: GABBADAH | C101: SHIRE OF | D101: GINGIN | E101: Wheatbelt | F101: =VLOOKUP(E101,Admin_lookup!$A$2:$B$14,2,FALSE) -> Regional
A102: 6041 | B102: GUILDERTON | C102: SHIRE OF | D102: GINGIN | E102: Wheatbelt | F102: =VLOOKUP(E102,Admin_lookup!$A$2:$B$14,2,FALSE) -> Regional
A103: 6041 | B103: WILBINGA | C103: SHIRE OF | D103: GINGIN | E103: Wheatbelt | F103: =VLOOKUP(E103,Admin_lookup!$A$2:$B$14,2,FALSE) -> Regional
A104: 6041 | B104: WOODRIDGE | C104: SHIRE OF | D104: GINGIN | E104: Wheatbelt | F104: =VLOOKUP(E104,Admin_lookup!$A$2:$B$14,2,FALSE) -> Regional
A105: 6042 | B105: SEABIRD | C105: SHIRE OF | D105: GINGIN | E105: Wheatbelt | F105: =VLOOKUP(E105,Admin_lookup!$A$2:$B$14,2,FALSE) -> Regional
A106: 6043 | B106: BRETON BAY | C106: SHIRE OF | D106: GINGIN | E106: Wheatbelt | F106: =VLOOKUP(E106,Admin_lookup!$A$2:$B$14,2,FALSE) -> Regional
A107: 6043 | B107: LEDGE POINT | C107: SHIRE OF | D107: GINGIN | E107: Wheatbelt | F107: =VLOOKUP(E107,Admin_lookup!$A$2:$B$14,2,FALSE) -> Regional
A108: 6044 | B108: KARAKIN | C108: SHIRE OF | D108: DANDARAGAN | E108: Wheatbelt | F108: =VLOOKUP(E108,Admin_lookup!$A$2:$B$14,2,FALSE) -> Regional
A109: 6044 | B109: LANCELIN | C109: SHIRE OF | D109: DANDARAGAN | E109: Wheatbelt | F109: =VLOOKUP(E109,Admin_lookup!$A$2:$B$14,2,FALSE) -> Regional
A110: 6044 | B110: NILGEN | C110: SHIRE OF | D110: DANDARAGAN | E110: Wheatbelt | F110: =VLOOKUP(E110,Admin_lookup!$A$2:$B$14,2,FALSE) -> Regional
A111: 6044 | B111: WEDGE ISLAND | C111: SHIRE OF | D111: DANDARAGAN | E111: Wheatbelt | F111: =VLOOKUP(E111,Admin_lookup!$A$2:$B$14,2,FALSE) -> Regional
A112: 6050 | B112: COOLBINIA | C112: CITY OF | D112: STIRLING | E112: Perth | F112: =VLOOKUP(E112,Admin_lookup!$A$2:$B$14,2,FALSE) -> Metro
A113: 6050 | B113: MENORA | C113: CITY OF | D113: STIRLING | E113: Perth | F113: =VLOOKUP(E113,Admin_lookup!$A$2:$B$14,2,FALSE) -> Metro
A114: 6050 | B114: MOUNT LAWLEY | C114: CITY OF | D114: STIRLING | E114: Perth | F114: =VLOOKUP(E114,Admin_lookup!$A$2:$B$14,2,FALSE) -> Metro
A115: 6051 | B115: MAYLANDS | C115: CITY OF | D115: BAYSWATER | E115: Perth | F115: =VLOOKUP(E115,Admin_lookup!$A$2:$B$14,2,FALSE) -> Metro
A116: 6052 | B116: BEDFORD | C116: CITY OF | D116: STIRLING | E116: Perth | F116: =VLOOKUP(E116,Admin_lookup!$A$2:$B$14,2,FALSE) -> Metro
A117: 6052 | B117: INGLEWOOD | C117: CITY OF | D117: STIRLING | E117: Perth | F117: =VLOOKUP(E117,Admin_lookup!$A$2:$B$14,2,FALSE) -> Metro
A118: 6053 | B118: BAYSWATER | C118: CITY OF | D118: BAYSWATER | E118: Perth | F118: =VLOOKUP(E118,Admin_lookup!$A$2:$B$14,2,FALSE) -> Metro
A119: 6054 | B119: ASHFIELD | C119: CITY OF | D119: SWAN | E119: Perth | F119: =VLOOKUP(E119,Admin_lookup!$A$2:$B$14,2,FALSE) -> Metro
A120: 6054 | B120: BASSENDEAN | C120: CITY OF | D120: SWAN | E120: Perth | F120: =VLOOKUP(E120,Admin_lookup!$A$2:$B$14,2,FALSE) -> Metro
A121: 6054 | B121: BASSENDEAN DC | C121: CITY OF | D121: SWAN | E121: Perth | F121: =VLOOKUP(E121,Admin_lookup!$A$2:$B$14,2,FALSE) -> Metro
A122: 6054 | B122: EDEN HILL | C122: CITY OF | D122: SWAN | E122: Perth | F122: =VLOOKUP(E122,Admin_lookup!$A$2:$B$14,2,FALSE) -> Metro
A123: 6054 | B123: KIARA | C123: CITY OF | D123: SWAN | E123: Perth | F123: =VLOOKUP(E123,Admin_lookup!$A$2:$B$14,2,FALSE) -> Metro
A124: 6054 | B124: LOCKRIDGE | C124: CITY OF | D124: SWAN | E124: Perth | F124: =VLOOKUP(E124,Admin_lookup!$A$2:$B$14,2,FALSE) -> Metro
A125: 6055 | B125: BRABHAM | C125: CITY OF | D125: SWAN | E125: Perth | F125: =VLOOKUP(E125,Admin_lookup!$A$2:$B$14,2,FALSE) -> Metro
A126: 6055 | B126: CAVERSHAM | C126: CITY OF | D126: SWAN | E126: Perth | F126: =VLOOKUP(E126,Admin_lookup!$A$2:$B$14,2,FALSE) -> Metro
A127: 6055 | B127: DAYTON | C127: CITY OF | D127: SWAN | E127: Perth | F127: =VLOOKUP(E127,Admin_lookup!$A$2:$B$14,2,FALSE) -> Metro
A128: 6055 | B128: GUILDFORD | C128: CITY OF | D128: SWAN | E128: Perth | F128: =VLOOKUP(E128,Admin_lookup!$A$2:$B$14,2,FALSE) -> Metro
A129: 6055 | B129: HAZELMERE | C129: CITY OF | D129: SWAN | E129: Perth | F129: =VLOOKUP(E129,Admin_lookup!$A$2:$B$14,2,FALSE) -> Metro
A130: 6055 | B130: HENLEY BROOK | C130: CITY OF | D130: SWAN | E130: Perth | F130: =VLOOKUP(E130,Admin_lookup!$A$2:$B$14,2,FALSE) -> Metro
A131: 6055 | B131: SOUTH GUILDFORD | C131: CITY OF | D131: SWAN | E131: Perth | F131: =VLOOKUP(E131,Admin_lookup!$A$2:$B$14,2,FALSE) -> Metro
A132: 6055 | B132: WEST SWAN | C132: CITY OF | D132: SWAN | E132: Perth | F132: =VLOOKUP(E132,Admin_lookup!$A$2:$B$14,2,FALSE) -> Metro
A133: 6056 | B133: BASKERVILLE | C133: CITY OF | D133: SWAN | E133: Perth | F133: =VLOOKUP(E133,Admin_lookup!$A$2:$B$14,2,FALSE) -> Metro
A134: 6056 | B134: BELLEVUE | C134: CITY OF | D134: SWAN | E134: Perth | F134: =VLOOKUP(E134,Admin_lookup!$A$2:$B$14,2,FALSE) -> Metro
A135: 6056 | B135: BOYA | C135: CITY OF | D135: SWAN | E135: Perth | F135: =VLOOKUP(E135,Admin_lookup!$A$2:$B$14,2,FALSE) -> Metro
A136: 6056 | B136: GREENMOUNT | C136: CITY OF | D136: SWAN | E136: Perth | F136: =VLOOKUP(E136,Admin_lookup!$A$2:$B$14,2,FALSE) -> Metro
A137: 6056 | B137: HELENA VALLEY | C137: CITY OF | D137: SWAN | E137: Perth | F137: =VLOOKUP(E137,Admin_lookup!$A$2:$B$14,2,FALSE) -> Metro
A138: 6056 | B138: HERNE HILL | C138: CITY OF | D138: SWAN | E138: Perth | F138: =VLOOKUP(E138,Admin_lookup!$A$2:$B$14,2,FALSE) -> Metro
A139: 6056 | B139: JANE BROOK | C139: CITY OF | D139: SWAN | E139: Perth | F139: =VLOOKUP(E139,Admin_lookup!$A$2:$B$14,2,FALSE) -> Metro
A140: 6056 | B140: KOONGAMIA | C140: CITY OF | D140: SWAN | E140: Perth | F140: =VLOOKUP(E140,Admin_lookup!$A$2:$B$14,2,FALSE) -> Metro
A141: 6056 | B141: MIDDLE SWAN | C141: CITY OF | D141: SWAN | E141: Perth | F141: =VLOOKUP(E141,Admin_lookup!$A$2:$B$14,2,FALSE) -> Metro
A142: 6056 | B142: MIDLAND | C142: CITY OF | D142: SWAN | E142: Perth | F142: =VLOOKUP(E142,Admin_lookup!$A$2:$B$14,2,FALSE) -> Metro
A143: 6056 | B143: MIDVALE | C143: CITY OF | D143: SWAN | E143: Perth | F143: =VLOOKUP(E143,Admin_lookup!$A$2:$B$14,2,FALSE) -> Metro
A144: 6056 | B144: MILLENDON | C144: CITY OF | D144: SWAN | E144: Perth | F144: =VLOOKUP(E144,Admin_lookup!$A$2:$B$14,2,FALSE) -> Metro
A145: 6056 | B145: RED HILL | C145: CITY OF | D145: SWAN | E145: Perth | F145: =VLOOKUP(E145,Admin_lookup!$A$2:$B$14,2,FALSE) -> Metro
A146: 6056 | B146: STRATTON | C146: CITY OF | D146: SWAN | E146: Perth | F146: =VLOOKUP(E146,Admin_lookup!$A$2:$B$14,2,FALSE) -> Metro
A147: 6056 | B147: SWAN VIEW | C147: CITY OF | D147: SWAN | E147: Perth | F147: =VLOOKUP(E147,Admin_lookup!$A$2:$B$14,2,FALSE) -> Metro
A148: 6056 | B148: VIVEASH | C148: CITY OF | D148: SWAN | E148: Perth | F148: =VLOOKUP(E148,Admin_lookup!$A$2:$B$14,2,FALSE) -> Metro
A149: 6056 | B149: WOODBRIDGE | C149: CITY OF | D149: SWAN | E149: Perth | F149: =VLOOKUP(E149,Admin_lookup!$A$2:$B$14,2,FALSE) -> Metro
A150: 6057 | B150: HIGH WYCOMBE | C150: SHIRE OF | D150: KALAMUNDA | E150: Perth | F150: =VLOOKUP(E150,Admin_lookup!$A$2:$B$14,2,FALSE) -> Metro
A151: 6057 | B151: MAIDA VALE | C151: SHIRE OF | D151: KALAMUNDA | E151: Perth | F151: =VLOOKUP(E151,Admin_lookup!$A$2:$B$14,2,FALSE) -> Metro
A152: 6058 | B152: FORRESTFIELD | C152: SHIRE OF | D152: KALAMUNDA | E152: Perth | F152: =VLOOKUP(E152,Admin_lookup!$A$2:$B$14,2,FALSE) -> Metro
A153: 6059 | B153: DIANELLA | C153: CITY OF | D153: STIRLING | E153: Perth | F153: =VLOOKUP(E153,Admin_lookup!$A$2:$B$14,2,FALSE) -> Metro
A154: 6060 | B154: DOG SWAMP | C154: CITY OF | D154: STIRLING | E154: Perth | F154: =VLOOKUP(E154,Admin_lookup!$A$2:$B$14,2,FALSE) -> Metro
A155: 6060 | B155: JOONDANNA | C155: CITY OF | D155: STIRLING | E155: Perth | F155: =VLOOKUP(E155,Admin_lookup!$A$2:$B$14,2,FALSE) -> Metro
A156: 6060 | B156: TUART HILL | C156: CITY OF | D156: STIRLING | E156: Perth | F156: =VLOOKUP(E156,Admin_lookup!$A$2:$B$14,2,FALSE) -> Metro
A157: 6060 | B157: YOKINE | C157: CITY OF | D157: STIRLING | E157: Perth | F157: =VLOOKUP(E157,Admin_lookup!$A$2:$B$14,2,FALSE) -> Metro
A158: 6061 | B158: BALGA | C158: CITY OF | D158: STIRLING | E158: Perth | F158: =VLOOKUP(E158,Admin_lookup!$A$2:$B$14,2,FALSE) -> Metro
A159: 6061 | B159: MIRRABOOKA | C159: CITY OF | D159: STIRLING | E159: Perth | F159: =VLOOKUP(E159,Admin_lookup!$A$2:$B$14,2,FALSE) -> Metro
A160: 6061 | B160: NOLLAMARA | C160: CITY OF | D160: STIRLING | E160: Perth | F160: =VLOOKUP(E160,Admin_lookup!$A$2:$B$14,2,FALSE) -> Metro
A161: 6061 | B161: WESTMINSTER | C161: CITY OF | D161: STIRLING | E161: Perth | F161: =VLOOKUP(E161,Admin_lookup!$A$2:$B$14,2,FALSE) -> Metro
A162: 6062 | B162: EMBLETON | C162: CITY OF | D162: BAYSWATER | E162: Perth | F162: =VLOOKUP(E162,Admin_lookup!$A$2:$B$14,2,FALSE) -> Metro
A163: 6062 | B163: MORLEY | C163: CITY OF | D163: BAYSWATER | E163: Perth | F163: =VLOOKUP(E163,Admin_lookup!$A$2:$B$14,2,FALSE) -> Metro
A164: 6062 | B164: NORANDA | C164: CITY OF | D164: BAYSWATER | E164: Perth | F164: =VLOOKUP(E164,Admin_lookup!$A$2:$B$14,2,FALSE) -> Metro
A165: 6063 | B165: BEECHBORO | C165: CITY OF | D165: SWAN | E165: Perth | F165: =VLOOKUP(E165,Admin_lookup!$A$2:$B$14,2,FALSE) -> Metro
A166: 6064 | B166: ALEXANDER HEIGHTS | C166: CITY OF | D166: WANNEROO | E166: Perth | F166: =VLOOKUP(E166,Admin_lookup!$A$2:$B$14,2,FALSE) -> Metro
A167: 6064 | B167: GIRRAWHEEN | C167: CITY OF | D167: WANNEROO | E167: Perth | F167: =VLOOKUP(E167,Admin_lookup!$A$2:$B$14,2,FALSE) -> Metro
A168: 6064 | B168: KOONDOOLA | C168: CITY OF | D168: WANNEROO | E168: Perth | F168: =VLOOKUP(E168,Admin_lookup!$A$2:$B$14,2,FALSE) -> Metro
A169: 6064 | B169: MARANGAROO | C169: CITY OF | D169: WANNEROO | E169: Perth | F169: =VLOOKUP(E169,Admin_lookup!$A$2:$B$14,2,FALSE) -> Metro
A170: 6065 | B170: ASHBY | C170: CITY OF | D170: WANNEROO | E170: Perth | F170: =VLOOKUP(E170,Admin_lookup!$A$2:$B$14,2,FALSE) -> Metro
A171: 6065 | B171: DARCH | C171: CITY OF | D171: WANNEROO | E171: Perth | F171: =VLOOKUP(E171,Admin_lookup!$A$2:$B$14,2,FALSE) -> Metro
A172: 6065 | B172: GNANGARA | C172: CITY OF | D172: WANNEROO | E172: Perth | F172: =VLOOKUP(E172,Admin_lookup!$A$2:$B$14,2,FALSE) -> Metro
A173: 6065 | B173: HOCKING | C173: CITY OF | D173: WANNEROO | E173: Perth | F173: =VLOOKUP(E173,Admin_lookup!$A$2:$B$14,2,FALSE) -> Metro
A174: 6065 | B174: JANDABUP | C174: CITY OF | D174: WANNEROO | E174: Perth | F174: =VLOOKUP(E174,Admin_lookup!$A$2:$B$14,2,FALSE) -> Metro
A175: 6065 | B175: KINGSWAY | C175: CITY OF | D175: WANNEROO | E175: Perth | F175: =VLOOKUP(E175,Admin_lookup!$A$2:$B$14,2,FALSE) -> Metro
A176: 6065 | B176: LANDSDALE | C176: CITY OF | D176: WANNEROO | E176: Perth | F176: =VLOOKUP(E176,Admin_lookup!$A$2:$B$14,2,FALSE) -> Metro
A177: 6065 | B177: LEXIA | C177: CITY OF | D177: WANNEROO | E177: Perth | F177: =VLOOKUP(E177,Admin_lookup!$A$2:$B$14,2,FALSE) -> Metro
A178: 6065 | B178: MADELEY | C178: CITY OF | D178: WANNEROO | E178: Perth | F178: =VLOOKUP(E178,Admin_lookup!$A$2:$B$14,2,FALSE) -> Metro
A179: 6065 | B179: MARIGINIUP | C179: CITY OF | D179: WANNEROO | E179: Perth | F179: =VLOOKUP(E179,Admin_lookup!$A$2:$B$14,2,FALSE) -> Metro
A180: 6065 | B180: MELALEUCA | C180: CITY OF | D180: WANNEROO | E180: Perth | F180: =VLOOKUP(E180,Admin_lookup!$A$2:$B$14,2,FALSE) -> Metro
A181: 6065 | B181: PEARSALL | C181: CITY OF | D181: WANNEROO | E181: Perth | F181: =VLOOKUP(E181,Admin_lookup!$A$2:$B$14,2,FALSE) -> Metro
A182: 6065 | B182: PINJAR | C182: CITY OF | D182: WANNEROO | E182: Perth | F182: =VLOOKUP(E182,Admin_lookup!$A$2:$B$14,2,FALSE) -> Metro
A183: 6065 | B183: SINAGRA | C183: CITY OF | D183: WANNEROO | E183: Perth | F183: =VLOOKUP(E183,Admin_lookup!$A$2:$B$14,2,FALSE) -> Metro
A184: 6065 | B184: TAPPING | C184: CITY OF | D184: WANNEROO | E184: Perth | F184: =VLOOKUP(E184,Admin_lookup!$A$2:$B$14,2,FALSE) -> Metro
A185: 6065 | B185: WANGARA | C185: CITY OF | D185: WANNEROO | E185: Perth | F185: =VLOOKUP(E185,Admin_lookup!$A$2:$B$14,2,FALSE) -> Metro
A186: 6065 | B186: WANGARA DC | C186: CITY OF | D186: WANNEROO | E186: Perth | F186: =VLOOKUP(E186,Admin_lookup!$A$2:$B$14,2,FALSE) -> Metro
A187: 6065 | B187: WANNEROO | C187: CITY OF | D187: WANNEROO | E187: Perth | F187: =VLOOKUP(E187,Admin_lookup!$A$2:$B$14,2,FALSE) -> Metro
A188: 6066 | B188: BALLAJURA | C188: CITY OF | D188: SWAN | E188: Perth | F188: =VLOOKUP(E188,Admin_lookup!$A$2:$B$14,2,FALSE) -> Metro
A189: 6067 | B189: CULLACABARDEE | C189: CITY OF | D189: SWAN | E189: Perth | F189: =VLOOKUP(E189,Admin_lookup!$A$2:$B$14,2,FALSE) -> Metro
A190: 6068 | B190: WHITEMAN | C190: CITY OF | D190: SWAN | E190: Perth | F190: =VLOOKUP(E190,Admin_lookup!$A$2:$B$14,2,FALSE) -> Metro
A191: 6069 | B191: AVELEY | C191: CITY OF | D191: SWAN | E191: Perth | F191: =VLOOKUP(E191,Admin_lookup!$A$2:$B$14,2,FALSE) -> Metro
A192: 6069 | B192: BELHUS | C192: CITY OF | D192: SWAN | E192: Perth | F192: =VLOOKUP(E192,Admin_lookup!$A$2:$B$14,2,FALSE) -> Metro
A193: 6069 | B193: BRIGADOON | C193: CITY OF | D193: SWAN | E193: Perth | F193: =VLOOKUP(E193,Admin_lookup!$A$2:$B$14,2,FALSE) -> Metro
A194: 6069 | B194: ELLENBROOK | C194: CITY OF | D194: SWAN | E194: Perth | F194: =VLOOKUP(E194,Admin_lookup!$A$2:$B$14,2,FALSE) -> Metro
A195: 6069 | B195: ELLENBROOK EAST | C195: CITY OF | D195: SWAN | E195: Perth | F195: =VLOOKUP(E195,Admin_lookup!$A$2:$B$14,2,FALSE) -> Metro
A196: 6069 | B196: THE VINES | C196: CITY OF | D196: SWAN | E196: Perth | F196: =VLOOKUP(E196,Admin_lookup!$A$2:$B$14,2,FALSE) -> Metro
A197: 6069 | B197: UPPER SWAN | C197: CITY OF | D197: SWAN | E197: Perth | F197: =VLOOKUP(E197,Admin_lookup!$A$2:$B$14,2,FALSE) -> Metro
A198: 6070 | B198: DARLINGTON | C198: SHIRE OF | D198: MUNDARING | E198: Perth | F198: =VLOOKUP(E198,Admin_lookup!$A$2:$B$14,2,FALSE) -> Metro
A199: 6071 | B199: GLEN FORREST | C199: SHIRE OF | D199: MUNDARING | E199: Perth | F199: =VLOOKUP(E199,Admin_lookup!$A$2:$B$14,2,FALSE) -> Metro
A200: 6071 | B200: HOVEA | C200: SHIRE OF | D200: MUNDARING | E200: Perth | F200: =VLOOKUP(E200,Admin_lookup!$A$2:$B$14,2,FALSE) -> Metro
... 1648 more rows

Sheet Admin_lookup (hidden)
A2: Region | B2: Income Limit
A3: Christmas Island | B3: Not applicable
A4: Cocos (Keeling) Islands | B4: Not applicable
A5: Gascoyne | B5: Regional
A6: Goldfields-Esperance | B6: Regional
A7: Great Southern | B7: Regional
A8: Kimberley | B8: Kimberley
A9: Mid-West | B9: Regional
A10: Peel | B10: Regional
A11: Perth | B11: Metro
A12: Pilbara | B12: Pilbara
A13: South West | B13: Regional
A14: Wheatbelt | B14: Regional
A16: Region | B16: Single | C16: Couple | D16: Family
A17: Metro | B17: 148000 | C17: 218000 | D17: 218000
A18: Regional | B18: 148000 | C18: 218000 | D18: 218000
A19: Kimberley | B19: 225000 | C19: 285000 | D19: 285000
A20: Pilbara | B20: 225000 | C20: 285000 | D20: 285000

Sheet Admin_HELP (hidden)
B2: HECS-HELP Range Maintenance
B3: From Range | C3: To Range | D3: Rate %
B4: 0 | C4: 54434.99 | D4: 0
B5: 54435 | C5: 62850.99 | D5: 0.01
B6: 62851 | C6: 66620.99 | D6: 0.02
B7: 66621 | C7: 70618.99 | D7: 0.025
B8: 70619 | C8: 74855.99 | D8: 0.03
B9: 74856 | C9: 79346.99 | D9: 0.035
B10: 79347 | C10: 84107.99 | D10: 0.04
B11: 84108 | C11: 89154.99 | D11: 0.045
B12: 89155 | C12: 94503.99 | D12: 0.05
B13: 94504 | C13: 100174.99 | D13: 0.055
B14: 100175 | C14: 106185.99 | D14: 0.06
B15: 106186 | C15: 112556.99 | D15: 0.065
B16: 112557 | C16: 119309.99 | D16: 0.07
B17: 119310 | C17: 126467.99 | D17: 0.075
B18: 126468 | C18: 134056.99 | D18: 0.08
B19: 134057 | C19: 142100.99 | D19: 0.085
B20: 142101 | C20: 150626.99 | D20: 0.09
B21: 150627 | C21: 159663.99 | D21: 0.095
B22: 159664 | C22: 999999.99 | D22: 0.1

Sheet Admin_stamp_duty (hidden)
B2: STAMP DUTY MAINTENANCE
B3: Standard Stamp Duty on Purchase
B4: From Range | C4: To Range | D4: Rate %
B5: 0 | C5: 120000 | D5: 0.019
B6: =C5+1 -> 120001 | C6: 150000 | D6: 0.0285
B7: =C6+1 -> 150001 | C7: 360000 | D7: 0.038
B8: =C7+1 -> 360001 | C8: 725000 | D8: 0.0475
B9: =C8+1 -> 725001 | C9: 2000000 | D9: 0.0515
B11: Standard Stamp Duty on Purchase of Land Only
B12: From Range | C12: To Range | D12: Rate %
B13: 0 | C13: 120000 | D13: 0.019
B14: =C13+1 -> 120001 | C14: 150000 | D14: 0.0285
B15: =C14+1 -> 150001 | C15: 360000 | D15: 0.038
B16: =C15+1 -> 360001 | C16: 725000 | D16: 0.0475
B17: =C16+1 -> 725001 | C17: 2000000 | D17: 0.0515
B19: Concessional Stamp Duty on Purchase
B20: From Range | C20: To Range | D20: Rate %
B21: 0 | C21: 100000 | D21: 0.015
B22: =C21+1 -> 100001 | C22: 200000 | D22: 0.0439
B24: First Home Owner Stamp Duty on Purchase
B25: From Range | C25: To Range | D25: Rate %
B26: 0 | C26: 500000 | D26: 0
B27: =C26+1 -> 500001 | C27: 700000 | D27: 0.1363
B29: First Home Owner Stamp Duty on Land
B30: From Range | C30: To Range | D30: Rate %
B31: 0 | C31: 350000 | D31: 0
B32: =C31+1 -> 350001 | C32: 450000 | D32: 0.1539

Sheet Admin_Tax (hidden)
B2: TAX BRACKET 2024-25
B4: Tax Tier | C4: Tax Rate
B5: 0 | C5: 0
B6: 18200 | C6: 0.16
B7: 45000 | C7: 0.3
B8: 135000 | C8: 0.37
B9: 190000 | C9: 0.45

Sheet Admin_Rates (hidden)
B3: WATER & SHIRE RATES MAINTENANCE
B5: Month | C5: # Payments
B6: August | C6: 9
B7: September | C7: 8
B8: October | C8: 7
B9: November | C9: 6
B10: December | C10: 5
B11: January | C11: 4
B12: February | C12: 3
B13: March | C13: 2
B14: April | C14: 12
B15: May | C15: 12
B16: June | C16: 11
B17: July | C17: 10

Sheet Admin_FTP (hidden)
B3: FAMILY TAX BENEFIT MAINTENANCE
B5: Age From | C5: Age To | D5: Maximum Rate per Dependant | E5: Base Rate per Dependant | F5: Benefit Type | G5: Centrelink Guide
B6: 0 | C6: 4 | D6: 6705.05 | E6: 2774 | F6: Family Tax Part A | G6: Page 3
B7: 5 | C7: 12 | D7: 6705.05 | E7: 2774 | F7: Family Tax Part A | G7: Page 3
B8: 13 | C8: 15 | D8: 8446.1 | E8: 2774 | F8: Family Tax Part A | G8: Page 3
B9: 16 | C9: 17 | D9: 2774 | E9: 2774 | F9: Family Tax Part A | G9: Page 3
B10: 18 | C10: 24 | D10: 0 | E10: 0 | F10: Family Tax Part A | G10: Page 3
B11: 0 | C11: 4 | D11: 5372.8 | E11: 0 | F11: Family Tax Part B | G11: Page 6
B12: 5 | C12: 15 | D12: 3883.6 | E12: 0 | F12: Family Tax Part B | G12: Page 6

Sheet Admin_Depend_assess_rates (hidden)
B3: DEPENDANT ASSESSMENT RATE MAINTENANCE
B5: Dependant Age | C5: Rate % | D5: Effective Date
B6: 0 | C6: 1 | D6: 2013-08-01
B7: 1 | C7: 1 | D7: 2013-08-01
B8: 2 | C8: 1 | D8: 2013-08-01
B9: 3 | C9: 1 | D9: 2013-08-01
B10: 4 | C10: 1 | D10: 2013-08-01
B11: 5 | C11: 1 | D11: 2013-08-01
B12: 6 | C12: 1 | D12: 2013-08-01
B13: 7 | C13: 1 | D13: 2013-08-01
B14: 8 | C14: 1 | D14: 2013-08-01
B15: 9 | C15: 1 | D15: 2013-08-01
B16: 10 | C16: 1 | D16: 2013-08-01
B17: 11 | C17: 1 | D17: 2013-08-01
B18: 12 | C18: 0.5 | D18: 2013-08-01
B19: 13 | C19: 0.5 | D19: 2013-08-01
B20: 14 | C20: 0 | D20: 2013-08-01
B21: 15 | C21: 0 | D21: 2013-08-01
B22: 16 | C22: 0 | D22: 2013-08-01
B23: 17 | C23: 0 | D23: 2013-08-01
B24: 18 | C24: 0 | D24: 2013-08-01
B25: 19 | C25: 0 | D25: 2013-08-01
B26: 20 | C26: 0 | D26: 2013-08-01
B27: 21 | C27: 0 | D27: 2013-08-01
B28: 22 | C28: 0 | D28: 2013-08-01
B29: 23 | C29: 0 | D29: 2013-08-01
B30: 24 | C30: 0 | D30: 2013-08-01

Sheet Admin_settlement_agent (hidden)
B3: SETTLEMENT AGENT FEE RANGE MAINTENANCE
B5: From Range | C5: To Range | D5: Fixed Range | E5: Rate %
B6: 0 | C6: 150000 | D6: 963 | E6: 0
B7: 150001 | C7: 500000 | D7: 770 | E7: 0.0022
B8: 500001 | C8: 1000000 | D8: 825 | E8: 0.00165
B9: 1000001 | C9: 10000000 | D9: 9900 | E9: 0.0011

Sheet Admin_HEM (hidden)
B3: BENCHMARK EXPENSES & RATES ALLOWANCE
B5: Period | C5: Single | D5: Joint | E5: Dependant
B6: Weekly | C6: 0 | D6: 0 | E6: 0
B7: Monthly | C7: =SUM(C6*52)/12 -> 0 | D7: =SUM(D6*52)/12 -> 0 | E7: 0
B8: Annually | C8: =C6*52 -> 0 | D8: =D6*52 -> 0 | E8: 0

Sheet Admin_Tiered Hems (hidden)
A1: Tiered Hems
A3: Assesable Income | B3: ='Online Assessment tool'!AC35 -> 0
A5: Single Applicant | B5: =Single_Applicant -> 0
A7: Couple Applicants | B7: =Couple -> 0
A9: Number of Dependants | B9: =No_of_depend -> 0
A11: Household Type | B11: =IF(B5=1,"S",IF(B7=1,"C","")) -> 
A13: Income Category | B13: =HLOOKUP(B3,E22:P24,3,TRUE) -> 1
A15: Combined | B15: =CONCATENATE(B11,B9) -> 0
A17: Expense Amount | B17: =VLOOKUP(B15,D25:P46,MATCH(B13,D24:P24,0),0) -> 
E22: 0 | F22: =E23+0.01 -> 26000.01 | G22: =F23+0.01 -> 39000.01 | H22: =G23+0.01 -> 52000.01 | I22: 65000.01 | J22: 78000.01 | K22: 104000.01 | L22: 130000.01 | M22: 156000.01 | N22: 182000.01 | O22: 208000.01 | P22: 261000.01
E23: 26000 | F23: 39000 | G23: 52000 | H23: 65000 | I23: 78000 | J23: 104000 | K23: 130000 | L23: 156000 | M23: 182000 | N23: 208000 | O23: 261000 | P23: 326000
B24: Family Status | C24: Dependents | D24: Ref | E24: 1 | F24: 2 | G24: 3 | H24: 4 | I24: 5 | J24: 6 | K24: 7 | L24: 8 | M24: 9 | N24: 10 | O24: 11 | P24: 12
B25: Couple | C25: 0 | D25: C0 | E25: 542.9709545 | F25: 557.7044027 | G25: 572.4378509 | H25: 597.2934414 | I25: 637.98228 | J25: 700.9258055 | K25: 788.1985747 | L25: 862.18206 | M25: 944.508296 | N25: 992.8933359 | O25: 1058.914564 | P25: 1175.434944
B26: Couple | C26: 1 | D26: C1 | E26: 612.7315025 | F26: 636.7516887 | G26: 661.7135097 | H26: 686.6753307 | I26: 727.5380692 | J26: 790.7506085 | K26: 878.3963716 | L26: 952.696055 | M26: 1035.374145 | N26: 1083.965979 | O26: 1150.269372 | P26: 1267.28775
B27: Couple | C27: 2 | D27: C2 | E27: 679.3288292 | F27: 703.283026 | G27: 728.0818853 | H27: 752.8807446 | I27: 793.4767138 | J27: 856.2765739 | K27: 943.350148 | L27: 1017.164772 | M27: 1099.303103 | N27: 1147.577708 | O27: 1213.448246 | P27: 1329.702677
B28: Couple | C28: 3 | D28: C3 | E28: 704.3663245 | F28: 741.0311298 | G28: 779.6044704 | H28: 820.1856924 | I28: 860.7669143 | J28: 923.5439666 | K28: 1010.585912 | L28: 1084.373725 | M28: 1166.482219 | N28: 1214.73929 | O28: 1280.585903 | P28: 1396.798107
B29: Couple | C29: 4 | D29: C4 | E29: 729.4038198 | F29: 778.7792337 | G29: 831.1270555 | H29: 887.4906401 | I29: 928.0571149 | J29: 990.8113593 | K29: 1077.821676 | L29: 1151.582678 | M29: 1233.661336 | N29: 1281.900872 | O29: 1347.723559 | P29: 1463.893536
B30: Couple | C30: 5 | D30: C5 | E30: 754.4413151 | F30: 816.5273375 | G30: 882.6496406 | H30: 954.7955879 | I30: 995.3473154 | J30: 1058.078752 | K30: 1145.05744 | L30: 1218.791631 | M30: 1300.840452 | N30: 1349.062455 | O30: 1414.861215 | P30: 1530.988965
B31: Couple | C31: 6 | D31: C6 | E31: 779.4788105 | F31: 854.2754413 | G31: 934.1722257 | H31: 1022.100536 | I31: 1062.637516 | J31: 1125.346145 | K31: 1212.293205 | L31: 1286.000584 | M31: 1368.019568 | N31: 1416.224037 | O31: 1481.998871 | P31: 1598.084395
B32: Couple | C32: 7 | D32: C7 | E32: 804.5163058 | F32: 892.0235451 | G32: 985.6948108 | H32: 1089.405483 | I32: 1129.927717 | J32: 1192.613537 | K32: 1279.528969 | L32: 1353.209537 | M32: 1435.198684 | N32: 1483.385619 | O32: 1549.136527 | P32: 1665.179824
B33: Couple | C33: 8 | D33: C8 | E33: 829.5538011 | F33: 929.7716489 | G33: 1037.217396 | H33: 1156.710431 | I33: 1197.217917 | J33: 1259.88093 | K33: 1346.764733 | L33: 1420.418491 | M33: 1502.3778 | N33: 1550.547201 | O33: 1616.274184 | P33: 1732.275254
B34: Couple | C34: 9 | D34: C9 | E34: 854.5912964 | F34: 967.5197527 | G34: 1088.739981 | H34: 1224.015379 | I34: 1264.508118 | J34: 1327.148323 | K34: 1414.000497 | L34: 1487.627444 | M34: 1569.556916 | N34: 1617.708783 | O34: 1683.41184 | P34: 1799.370683
B35: Couple | C35: 10 | D35: C10 | E35: 879.6287917 | F35: 1005.267856 | G35: 1140.262566 | H35: 1291.320327 | I35: 1331.798318 | J35: 1394.415716 | K35: 1481.236261 | L35: 1554.836397 | M35: 1636.736033 | N35: 1684.870366 | O35: 1750.549496 | P35: 1866.466113
B36: Single | C36: 0 | D36: S0 | E36: 270.034348 | F36: 285.4380298 | G36: 300.1968919 | H36: 325.0953565 | I36: 365.8543802 | J36: 428.9064778 | K36: 516.3297851 | L36: 590.4408868 | M36: 672.9091274 | N36: 721.3776287 | O36: 787.5127382 | P36: 904.2341052
B37: Single | C37: 1 | D37: S1 | E37: 371.5732643 | F37: 382.9396659 | G37: 397.6005155 | H37: 422.3336309 | I37: 462.8219758 | J37: 525.4553514 | K37: 612.2980885 | L37: 685.9170227 | M37: 767.8376011 | N37: 815.9842285 | O37: 881.6801401 | P37: 997.6263713
B38: Single | C38: 2 | D38: S2 | E38: 478.5847459 | F38: 493.2246217 | G38: 507.8644974 | H38: 532.5622304 | I38: 572.9926549 | J38: 635.5364237 | K38: 722.2549197 | L38: 795.7685367 | M38: 877.5719178 | N38: 925.6496616 | O38: 991.2515854 | P38: 1107.031947
B39: Single | C39: 3 | D39: S3 | E39: 569.7877667 | F39: 593.4661286 | G39: 618.1284793 | H39: 642.79083 | I39: 683.163334 | J39: 745.6174959 | K39: 832.2117509 | L39: 905.6200507 | M39: 987.3062345 | N39: 1035.315095 | O39: 1100.823031 | P39: 1216.437523
B40: Single | C40: 4 | D40: S4 | E40: 660.9907876 | F40: 693.7076355 | G40: 728.3924611 | H40: 753.0194295 | I40: 793.334013 | J40: 855.6985682 | K40: 942.1685821 | L40: 1015.471565 | M40: 1097.040551 | N40: 1144.980528 | O40: 1210.394476 | P40: 1325.843099
B41: Single | C41: 5 | D41: S5 | E41: 752.1938084 | F41: 793.9491424 | G41: 838.656443 | H41: 863.248029 | I41: 903.5046921 | J41: 965.7796404 | K41: 1052.125413 | L41: 1125.323079 | M41: 1206.774868 | N41: 1254.645961 | O41: 1319.965921 | P41: 1435.248674
B42: Single | C42: 6 | D42: S6 | E42: 843.3968292 | F42: 894.1906493 | G42: 948.9204249 | H42: 973.4766286 | I42: 1013.675371 | J42: 1075.860713 | K42: 1162.082244 | L42: 1235.174593 | M42: 1316.509185 | N42: 1364.311394 | O42: 1429.537366 | P42: 1544.65425
B43: Single | C43: 7 | D43: S7 | E43: 934.59985 | F43: 994.4321562 | G43: 1059.184407 | H43: 1083.705228 | I43: 1123.84605 | J43: 1185.941785 | K43: 1272.039076 | L43: 1345.026107 | M43: 1426.243501 | N43: 1473.976827 | O43: 1539.108812 | P43: 1654.059826
B44: Single | C44: 8 | D44: S8 | E44: 1025.802871 | F44: 1094.673663 | G44: 1169.448389 | H44: 1193.933828 | I44: 1234.016729 | J44: 1296.022857 | K44: 1381.995907 | L44: 1454.877621 | M44: 1535.977818 | N44: 1583.64226 | O44: 1648.680257 | P44: 1763.465402
B45: Single | C45: 9 | D45: S9 | E45: 1117.005892 | F45: 1194.91517 | G45: 1279.71237 | H45: 1304.162427 | I45: 1344.187409 | J45: 1406.103929 | K45: 1491.952738 | L45: 1564.729135 | M45: 1645.712135 | N45: 1693.307693 | O45: 1758.251702 | P45: 1872.870978
B46: Single | C46: 10 | D46: S10 | E46: 1208.208913 | F46: 1295.156677 | G46: 1389.976352 | H46: 1414.391027 | I46: 1454.358088 | J46: 1516.185002 | K46: 1601.909569 | L46: 1674.580649 | M46: 1755.446451 | N46: 1802.973126 | O46: 1867.823148 | P46: 1982.276553

Sheet Admin_LAM_variables (hidden)
B3: VARIABLE MAINTENANCE
B4: Name | C4: Description | D4: Value | E4: Notes
B5: AgedPensionLimit | C5: Policy - Loan Percentage Outstanding at Retirement Age Threshold | D5: 27
B6: AgeDsp | C6: Centrelink - Age Pension and Disability Support Pension (Fortnightly - Basic Rate) | D6: N/A
B7: AnnualSuperDeposit | C7: Calculation - Compulsory Employer Superannuation Contribution | D7: 0.115
B8: CLAboveB33ReduceBy | C8: FTB-A - Maximum Rate - Benefit Reduction (0.xx cents in dollar) | D8: 0.2 | E8: Centrelink Guide Page 3
B9: CLIncomeAboveB35 | C9: FTB-A - Base Rate - Benefit Reduction (0.xx cents in dollar) | D9: 0.3 | E9: Centrelink Guide Page 3
B10: CLIncomeEachChild | C10: FTB-A - Base Rate - Income Reduction Threshold (Increased for each Child after first) | D10: 0 | E10: Reduced from $3796 to $0
B11: CLIncomeMaxLowerEarner | C11: FTB-B - Income Reduction Threshold (Based on the Lowest Income Earner) | D11: 6789 | E11: Centrelink Guide Page 6
B12: CLIncomeMaxIncome | C12: FTB-B - Income based eligibility | D12: 117194 | E12: Centrelink Guide Page 5
B13: CLIncomeMinLevel | C13: FTB-A - Base Rate - Income Reduction Threshold | D13: 115997 | E13: Centrelink Guide Page 3
B14: CLIncomeReduces | C14: FTB-B - Benefit Reduction (0.xx cents in dollar) | D14: 0.2 | E14: Centrelink Guide Page 6
B15: CLIncreaseEachChildAfter | C15: FTB-A - Maintenance Income - Income Reduction Threshold (Increase for each Child after first) | D15: 653.35 | E15: Centrelink Guide Page 4
B16: CLLargeFamily | C16: FTB-A - Large Family Supplement (Fourth and subsequent child) | D16: 0 | E16: Centrelink Guide Page 5
B17: CLMaintRecOver5 | C17: FTB-A - Maintenance Income - Income Reduction Threshold (Single Parent) | D17: 3920.1 | E17: Centrelink Guide Page 4
B18: CLMaintRecUnder5 | C18: FTB-A - Maintenance Income - Income Reduction Threshold (Couple) | D18: 1960.05 | E18: Centrelink Guide Page 4
B19: CLPartAReducing | C19: FTB-A - Maximum Rate - Income Reduction Threshold | D19: 65189 | E19: Centrelink Guide Page 3
B20: CLRateOfReduction | C20: FTB-A - Maintenance Income - Benefit Reduction (0.xx cents in dollar) | D20: 0.5 | E20: Centrelink Guide Page 4
B21: ConstructionValFee | C21: Loan - Construction Valuation Fee | D21: 0
B22: ConstructionPeriod | C22: Average construction period - block & build | D22: 15
B23: DefaultLoanTerm | C23: Loan - Default Loan Term (Years) | D23: 30
B24: DOHMaxSharePercent | C24: Policy - DOH Equity - Maximum Share (Percentage) | D24: N/A
B25: DOHMaxValue | C25: Policy - DOH Equity - Maximum Share (Dollar Value) | D25: N/A
B26: FeeAssistance | C26: Policy - Maximum Fee Assistance | D26: 2000
B27: FHOGConstruction | C27: Policy - FHOG - Housing Loan Subsidy (Construction) | D27: 10000
B28: FHOGEstablished | C28: Policy - FHOG - Housing Loan Subsidy (Established) | D28: 0
B29: FHOGEstHomeLimit | C29: Policy - FHOG - Maximum Home Value (Established) | D29: 530000
B30: FHOGLandLimit | C30: Policy - FHOG - Maximum Land Value (Construction) | D30: 400000
B31: FutureEffectiveDays | C31: Loan - Maximum Days - Effective Date can be set in future | D31: N/A | E31: Number of Days (from the current date) for Future Effective Date calendar picker to show
B32: GenuineSavings | C32: Policy - Minimum Genuine Savings Required (Percentage) | D32: Refer to Loan Variables sheet
B33: GovPensionGrowth | C33: Calculation - Estimated Growth of Government Pension | D33: 0.01
B34: IntRate | C34: Interest Rate - Keystart standard variable | D34: 0.071
B35: MaxDebtServiceRatio | C35: Policy - Maximum Debt Service Ratio / Debt to Income (Percentage) | D35: 0
B36: MaxIncome | C36: Policy - Maximum Qualifying Income | D36: Refer to Loan Variables sheet
B37: MaxLoanAmount | C37: Policy - Maximum Loan Amount | D37: Refer to Loan Variables sheet
B38: MaxPropertyValue | C38: Policy - Maximum Property Value | D38: Refer to Loan Variables sheet
B39: Median property value | C39: Retirement age policy | D39: 510000
B40: MedicareLevy | C40: Calculation - Medicare Levy (Percentage) | D40: 0.02
B41: MinimumDeposit | C41: Policy - Minimum Deposit Required (Percentage) | D41: Refer to Loan Variables sheet
B42: MinimumMonthlyConstPymt | C42: Minimum monthly repayment - construction loans | D42: 200
B43: NIS Buffer | C43: NIS Buffer | D43: 0.01
B44: NewStart | C44: Centrelink - Newstart Allowance (Fornightly - Single / Couple / Family) | D44: N/A
B45: ParentingPayment | C45: Centrelink - Parenting Payment (Fortnightly - Single / Couples) | D45: N/A
B46: PensionCouple | C46: Centrelink - Aged Pension - Couple (Annually - One Person - Includes Pension Supplement) | D46: 20852 | E46: Centrelink Guide Pages 14 & 32
B47: PensionSingle | C47: Centrelink - Aged Pension - Single (Annually - Includes Pension Supplement) | D47: 27664 | E47: Centrelink Guide Pages 14 & 32
B48: RateBuffer | C48: Calculation - Assessment Rate Buffer (Percentage) - All regions | D48: 0.02
B49: RetirementCalcBuffer | C49: Calculation - Retirement Rate Buffer (Percentage added to Current Interest Rate) | D49: 0.01
B50: SDConcessionalLimit | C50: Calculation - Concessional Stamp Duty Threshold (House and Land with No FHOG) | D50: 200000
B51: SettlementFeeMin | C51: Loan - Settlement Agents Fee (Minimum) | D51: 963
B52: SharedEquitySplitLimit | C52: Calculation - Maximum overriding DOH Equity in a Property (70/30 and 80/20 split) | D52: N/A
B53: SLSharedPropCeiling | C53: Calculation - Property Value ceiling for eligibility of Social Lending Requirements | D53: N/A | E53: Variable referenced when checking the max. property ceiling for Shared Equity min. deposit calculation
B54: SuperAnnualReturn | C54: Calculation - Retirement Age Superannuation Projection - Annual Return of Portfolio | D54: 0.04
B55: SuperEmployeeRate | C55: Compulsory Employer Superannuation Contribution | D55: 0.115
B56: WaterAllowance | C56: Loan - Maximum Water/Shire Rates Allowance | D56: 3000

Sheet Admin_loan_variables (hidden)
A1: =CELL("filename") -> C:\Users\naung\AppData\Local\Microsoft\Windows\INetCache\Content.Outlook\92X2GW43\[Offline Calc. v1.92 effective 15 October 2025 (2).xlsm]Online Assessment tool
A3: Calculator expiry data | B3: 2030-12-31
A5: KEYSTART INCOME LIMITS
A6: Metro - Single | B6: 148000
A7: Metro - Couple | B7: 218000
A8: Metro - Family | B8: 218000
A9: Regional - Single | B9: 148000
A10: Regional - Couple | B10: 218000
A11: Regional - Family | B11: 218000
A12: Kimberley - Single | B12: 225000
A13: Kimberley - Couple | B13: 285000
A14: Kimberley - Family | B14: 285000
A15: Pilbara - Singles | B15: 225000
A16: Pilbara - Couples | B16: 285000
A17: Pilbara - Family | B17: 285000
A19: KEYSTART PROPERTY VALUE LIMITS
A20: Metro | B20: 800000
A21: Regional | B21: 800000
A22: Kimberley & Pilbara | B22: 800000
A23: Kimberley & Pilbara | B23: 800000
A25: KEYSTART MAXIMUM LOAN AMOUNT
A26: Metro - Up to $800,000 | B26: 784000
A27: Regional - Up to $800,000 | B27: 784000
A28: Regional - Up to $800,000 | B28: 784000
A29: Kimberley & Pilbara - Up to $800,000 | B29: 784000
A30: Kimberley & Pilbara - Up to $800,000 | B30: 784000
A33: DEPOSIT REQUIREMENT
A34: =A26 -> Metro - Up to $800,000 | B34: 0.02
A35: =A27 -> Regional - Up to $800,000 | B35: 0.02
A36: =A28 -> Regional - Up to $800,000 | B36: 0.02
A37: =A29 -> Kimberley & Pilbara - Up to $800,000 | B37: 0.02
A38: Kimberley & Pilbara $500,001 to $750,000 | B38: 0.02
A41: GENUINE SAVINGS REQUIREMENT
A42: =A26 -> Metro - Up to $800,000 | B42: 0.01
A43: =A27 -> Regional - Up to $800,000 | B43: 0.01
A44: =A28 -> Regional - Up to $800,000 | B44: 0.01
A45: =A29 -> Kimberley & Pilbara - Up to $800,000 | B45: 0.01
A46: Kimberley & Pilbara $500,001 to $750,000 | B46: 0.02
A49: MAXIMUM LVR
A50: =A26 -> Metro - Up to $800,000 | B50: 0.98
A51: =A27 -> Regional - Up to $800,000 | B51: 0.98
A52: =A28 -> Regional - Up to $800,000 | B52: 0.98
A53: =A29 -> Kimberley & Pilbara - Up to $800,000 | B53: 0.98
A54: Kimberley & Pilbara $500,001 to $750,000 | B54: 0.98
A58: MAXIMUM DEBT RATIO
A59: Standard Keystart L70 - Singles & Couples | B59: 0.1
A60: Standard Keystart L70 - Families | B60: 0.1

Sheet Admin_Log (hidden)
A1: DATE LOG OF CHANGES | B1: Version | C1: Effect Date
A2: Included LVR Calculation on main sheet | C2: 2002-12-05
A3: Included worksheet to assist in annualising income | C3: 2002-12-16
A4: HECS figures updated | C4: 2003-01-07
A5: New Policy included | C5: 2003-03-19
A6: Centrelink payments updated | C6: 2003-03-19
A7: Max loan and Purchase price updated | C7: 2003-05-05
A8: max loan updated to $240,000 - worksheet end date 01/02/2004 | C8: 2003-11-19
A9: Centrelink benefits 20 sept to 31 dec 2003 | B9: 10 | C9: 2003-11-19
A10: Interest rate increase .25% Version number 11 not sent to brokers? | B10: 11 | C10: 2003-12-01
A11: Interest rate increase .25% | B11: 12 | C11: 2004-01-01
A12: Stamp Duty changed, no changes to worksheet Centrelink. Unhide some area's. Expiry date 01/05/2004 amend age 65 workings. | B12: 13 | C12: 2004-01-26
A13: Stamp Duty for First Homebuyersa corrected. | B13: 13.1 | C13: 2004-02-11
A14: Include GreenSmart $1,000 as part of Fee Assistance. | B14: 14 | C14: 2004-03-01
A15: Amend 27.03% to 27%, Take $75,000 max income off HECS | B15: 14 | C15: 2004-03-01
A16: Centrelink amended, new expiry date 1 July 2004,(later found wrong date used) SD fhog AND Est. fixed. | B16: 15 | C16: 2004-04-20
A17: term changed from 25 to 30 yrs and assessed rate from 2% margin to 1% ie 7.99%. Also tax rates changed to 2003/04 rates | B17: 16 | C17: 2004-04-22
A18: Settlement agent fees increased | B18: 16.1
A19: Added settlement fee to broker version, also if loan>policy | B19: 16.2 | C19: 2004-04-29
A20: Corrected settlement agent fee to purchaser rate…included new val fee from 1 may 2004 | B20: 16.3 | C20: 2004-04-29
A21: New warning messages for new max loan amounts | B21: 16.4
A22: Texpiry date extended to 1st Aug | B22: 16.5 | C22: 2004-05-28
A23: Amended for new First Home Owners stamp duty as from 1July 2004 time bomb 1st Oct 2004 | B23: 17
A24: Amended for new HECS/HELP parameters, estimate of annual shire/water $1,200 pa. Minor changes to deposit requirements messages. Centerlink changes to Sept 2004. Expiry date set to 1st Nov 04. | B24: 17.1 | C24: 2004-07-23
A25: Amended Family tax part A (au37) page 2. % reduced from 30% to 20% - put into sheet1. Part A amended to exclude Supplement $613.20 - applicable 2004/05 only. . | B25: 17.2 | C25: Not sent to brokers
A26: Amended Family tax part A (au37) page 2. % reduced from 30% to 20% - put into sheet1. Part A amended to exclude Supplement $613.20 - lump sum payable after tax return done. For age 65 section have amended to be term remaining or 10 years - whichever is the smaller repayment. For Land only have amended stamp duty on trf to be at normal rates...can claim back when they move in. REBA max pp $125,000. Warning message outside policy at age 65 changed to DSR at that age >27%. Tab changed from Sheet 1 to Variables and new Log sheet created. | B26: 17.3 | C26: 2004-08-23
A27: In V17.3 considered stamp duty for First Home Buyers payable up front and claim back later. Not so. On production of copy of FHOG approval and Stamp duty form, duty exempt when land trf stamped. If Land Loan FHOG is "blacked out" - FHOG can only be approved when building contract is signed. Legal fees increased $2.20 for DLI fee increase. | B27: 17.4 | C27: 2004-09-06
A28: Qrtly Centrelink changes to Parenting Payment, Aged pension, Newstart and in broker v min stds to included fully completed applic. Expiry date set 1/2/05 | B28: 17.5 | C28: 2004-10-29
B29: 17.6
A30: Qrtly Centrelink changes Jan to March 2005 no changes to major benefits . In fees box rates/water changed to $1500 pa. Miscellaneaous fees increased from $100 to $200 Expiry date set 1/5/05 | B30: 17.7
A31: Increase in rate by .25% from current rate 6.99% to 7.24% and assessed 7.99% to 8.24% - 1% margin. | B31: 18 | C31: 2005-03-18
A32: include filename in the sheet - internal one only | B32: 18.1
A33: Update lastest Centrelink and filename in broker version as well. Expiry date 01 Aug 05 | B33: 19 | C33: 2005-04-27
A34: Large Family Supplement "Loan worksheet AV40" moved to "variables" | B34: 19 | C34: 2005-05-31
A35: Allocation of shire & water rates made 100% for June each yr. Loan worksheet AW66 made 12. Also see variables b27 for total allocation of yrs rates. | B35: 19.1 | C35: 2005-06-15
A36: Income tax table changed from 01/07/05. Centrelink updated. More lines included in payee box in increase tab | B36: 20 | C36: 2005-07-06
A37: Centrelink changes - Lending limits increased | B37: 21
A38: Small changes - Loan DSR, DSR & LVR ratio's to 1 decimal place, add HELP to HECS amend AY to "variable b43" and centrelink changes. Also major amendmets to Child Support sheet. | B38: 22 | C38: 2005-09-13
A39: Board 20/12/2005 approved change of removing Loan DSR and only having Total DSR. Also DSR rate changed for incomes below and over $35,000. Centrelink Jan - March 06 - no changes to major benefits. | B39: 23 | C39: 2005-12-22
A40: New stamp Duty exemptions from 1/1/06 for refinanced loans. Only amended in the "Mtge SD" tab. | B40: 23.1 | C40: 2006-01-03
A41: New Centrelink rates updated 20/3 to 30/6/06 | B41: 24 | C41: 2006-04-24
A42: RBA rate rise 3 May 06 Int rate increase .25%, to 7.49% Mortgage SD halved. Increased loan details included in front worksheet. | B42: 25 | C42: 2006-07-01
A43: New centrelink rates to 19 Sept. 06. Small increase in legal fee at DOLI | B43: 25.1 | C43: 2006-07-07
A44: New increased lending limits - max pp $500,000 | B44: 26 | C44: 2006-07-27
A45: Part A & B (Page 2, 3, 4 of guide) amended - should have been in V26. | B45: 26.1 | C45: 2006-08-01
A46: Loan limits increased to $500,000 & 10% removed. | B46: 27 | C46: 2006-08-21
A47: DSR increases 33% to 36%, 35% to 39%, 38% to 42%. Res Bank Interest rate increase 2 Aug 06 by .25%, KS to 7.74%. REBA inrease on purchase limit to $400,000. New Centrelink rates. | B47: 28 | C47: 2006-09-28
A48: Increase in rate by .25% from current rate 7.74% to 7.99% and assessed 8.74% to 8.99% - 1% margin. Calculation of SD on Est to include Fee Ass. Mtge SD increase loan section made same as fee worksheet. | B48: 29 | C48: 2007-01-01
A49: Balance at age 65 youngest applic. Amended to deduct FV of Superan. for both from loan bal. at 65. | B49: 29 | C49: 2007-01-01
A50: On Mtge SD sheet Land Loan added with sd based on 100%, not 105%. | B50: 29.1
A51: Cell G73 changed from <200000 to <=200000….changed to v29.2 to keep in step with broker version. | B51: 29.2 | C51: 2007-03-21
A52: HECS figures updated to 2007/08 | B52: 29.2 | C52: 2007-04-19
A53: First home Buyer stamp duty exemption increased from 10/05/07 to $500,000 - also land to $300,000. Also Centerlink and new tax scales updated. | B53: 30 | C53: 2007-05-11
A54: Landgate fees amended in line with new fees effective 2 July 2007. | B54: 30.1 | C54: 2007-06-19
A55: Centrelink payments adjusted to new rates effective 1 July 2007. | B55: 30.2 | C55: 2007-06-27
A56: Income tax table updated to new rates effective 1 July 2007 | B56: 30.2 | C56: 2007-06-26
A57: Centrelink Benefits 1 July 2007 to 19 September 2007 | B57: 30.2 | C57: 2007-06-26
A58: UMI BASIS OF ASSESSMENT INTRODUCED | B58: 30.2 | C58: 2007-06-26
A59: Interest Rate increase .25% to 8.24%. Up date Centrelink. | B59: 31 | C59: 2007-11-01
A60: Interest Rate increase .25% to 8.24%. Up date Centrelink update Henderson Poverty index numbers. | B60: 31 | C60: 2007-11-01
A61: Interest Rate increase .25% to 8.49%. | B61: 32 | C61: 2008-02-01
A62: Interest Rate increase .25% to 8.74%. Henderson Poverty Index updated. | B62: 33 | C62: 2008-02-21
A63: UMI & DSR Calculator combined with First Start Calculator | B63: 33 | C63: 2008-02-21
A64: Interest rate increase .25% to 8.99% from 1st June. Board approved 50% of Child Maintance and Fam tax A and B to be used in calculation of DSR. HPI figures updated to December 2007 figures. | B64: 34 | C64: 2008-05-01
A65: Income tax rates changed to new rates effective 1 July 2008 | B65: 35 | C65: 2008-07-01
A66: Updated Henderson Poverty Index to March 08 quarter figures | B66: 35 | C66: 2008-07-01
A67: Updated stamp duty tables in line with new rates effective 1 July 08 | B67: 35 | C67: 2008-07-01
A68: Updated HECS & HELP table to 2008-2009 rates | B68: 35 | C68: 2008-07-01
A69: Interest rate decrease .25% to 8.74% | B69: 35.1 | C69: 2009-09-16
A70: FHOG increased to $14,000 (Established) $21,000 (Construction) | B70: 35.2 | C70: 2008-10-15
A71: Interest rate decrease by 1.00% to 7.74%. | B71: 35.3 | C71: 2008-10-22
A72: Updated Henderson Poverty Index to June 08 quarter figures | B72: 35.3 | C72: 2008-10-22
A73: Centrelink Benefits updated to 20 Sept 08 to 31 Dec 08 entitlements | B73: 35.3 | C73: 2008-10-22
A74: Interest rate decrease by .50% to 7.24% from 1 Dec 08. Buffer increased to 3.5%. | B74: 35.4 | C74: 2008-12-01
A75: Interest rate decrease by 1.00% to 6.24%. | B75: 35.5 | C75: 2008-12-09
A76: Interest rate decrease by 1.00% to 5.24% effective 7 Feb 09. | B76: 35.6 | C76: 2009-02-03
A77: Maximum income limit decreased to $120,000 | B77: 35.7 | C77: 2009-03-01
A78: Maximum property value decreased to $412,000 for Perth metro & country areas. | B78: 35.7 | C78: 2009-03-01
A79: Debt to income ratio introduced. | B79: 35.7 | C79: 2009-03-01
A80: Updated Henderson Poverty Index to Sept 08 figures | B80: 35.7 | C80: 2009-03-01
A81: Interest rate decrease by 0.25% to 4.99% effective 19 April 2009. | B81: 35.9 | C81: 2009-04-20
A82: Amended Family Tax rate for 14yo to 0% share, consistent with Internal calculator | B82: 35.9 | C82: 2009-05-04
A83: Correct errors as stated in work schedule (v35.9 to v36.0) | B83: 36 | C83: 2009-07-06
A84: Update Henderson Poverty Index to Mar 2009 | B84: 36 | C84: 2009-07-06
A85: Update Centrelink to Jun 2009 | B85: 36 | C85: 2009-07-06
A86: Update Landgate charges to 1 Jul 09 | B86: 36 | C86: 2009-07-06
A87: Update DOH fees to 1 Jul 09 | B87: 36 | C87: 2009-07-06
A88: Income tax rates changed to new rates effective 1 July 2009 | B88: 36.1 | C88: 2009-07-23
A89: Updated HECS & HELP table to 2009-2010 rates | B89: 36.1 | C89: 2009-07-23
A90: Contract date drop down menu incorporated to allow for reduction in FHOG Boost | B90: 36.2 | C90: 2009-09-07
A91: Minimum deposit changed to 4% or $4,000 (whichever is greater) for property values up to $450,000. | B91: 36.2 | C91: 2009-09-07
A92: Provision for SFSS debt repayments incorporated in commitments box. | B92: 36.2 | C92: 2009-09-07
A93: Updated Centrelink benefits 20 Sept to 31 Dec 2009 entitlements | B93: 36.3 | C93: 2009-10-12
A94: Updated Henderson Poverty Index to Jun 09 figures | B94: 36.3 | C94: 2009-10-12
A95: Interest rate increase by 1.03% to 6.02% | B95: 36.3 | C95: 2009-10-12
A96: Interest rate increased by 0.25% to 6.27% effective 9 Nov 09 | B96: 36.4 | C96: 2009-11-06
A97: UMI warning message changed | B97: 36.4 | C97: 2009-11-06
A98: Interest rate increased by 0.35% to 6.62% effective 21 Dec 09 | B98: 36.5 | C98: 2009-12-21
A99: Updated Henderson Poverty Index to Sept 09 figures | B99: 36.6 | C99: 2010-03-04
A100: Interest rate increased by 0.25% to 6.87%. | B100: 36.6 | C100: 2010-03-04
A101: Minimum deposit changed to 6% or $6,000 (whichever is greater) for property values up to $450,000. | B101: 36.7 | C101: 2010-03-30
A102: Genuine savings requirement changed to 3% of property value. | B102: 36.7 | C102: 2010-03-30
A103: Establishment fee increased to $600. | B103: 36.7 | C103: 2010-03-30
A104: Income thresholds introduced. Singles - $70,000, Couple - $90,000 | B104: 36.7 | C104: 2010-03-30
A105: Updated Henderson Poverty Index to Dec 2009 data. | B105: 36.7 | C105: 2010-03-30
A106: Updated Centrelink benefits to 20 March - 30 June 2010 data. | B106: 36.7 | C106: 2010-03-30
A107: Interest rate increased by 0.25% to 7.12% | B107: 36.8 | C107: 2010-04-19
A108: Removed loan increase section from main worksheet. | B108: 36.8 | C108: 2010-04-19
A109: Removed First Start worksheets from main workbook | B109: 36.8 | C109: 2010-04-19
A110: Removed contract date cell & changed formula for FHOG to | B110: 36.8 | C110: 2010-04-19
A111: Valuation fee increased to $195.00 (established) & $214.50 (construction) | B111: 36.9 | C111: 2010-05-20
A112: Interest rate increased to 7.37% effective 1 June 2010 | B112: 37 | C112: 2010-06-01
A113: Landgate fees amended to new schedule effective 1 July 2010 | B113: 37.1 | C113: 2010-07-01
A114: Updated Henderson Poverty Index to March 2010 data | B114: 37.1 | C114: 2010-07-01
A115: Income tax rates changed to new rates effective 1 July 2010 | B115: 37.1 | C115: 2010-07-01
A116: Updated Centrelink Benefits to rates effective 1 July 2010 | B116: 37.1 | C116: 2010-07-01
A117: Updated HECS & HELP table to 2010-2011 rates | B117: 37.1 | C117: 2010-07-01
A118: Updated Centrelink Benefits to rates effective 1 Jan to 19 March 2011 | B118: 37.2 | C118: 2011-02-17
A119: Updated Henderson Poverty Index to Sept 2010 rates | B119: 37.2 | C119: 2011-02-17
A120: Minimum deposit changed to 4% and genuine savings to 2%. | B120: 37.2 | C120: 2011-02-17
A121: Interest increased by 41 basis points to 7.78% | B121: 37.3 | C121: 2011-02-23
A122: Updated Centrelink benefits to rates effective 1 July 2011 | B122: 37.4 | C122: 2011-07-01
A123: Updated Henderson Poverty Index to March 2011 rates | B123: 37.4 | C123: 2011-07-01
A124: Updated HECS to 2011-2012 rates | B124: 37.4 | C124: 2011-07-01
A125: Landgate fees amended to new schedule effective 1 July 2011 | B125: 37.4 | C125: 2011-07-01
A126: Provision for rates increased to $1900 | B126: 37.4 | C126: 2011-07-01
A127: Valuation fee increased to $195.00 (established) | B127: 37.5 | C127: 2011-08-09
A128: Updated Centrelink benefits to rates effective 20 Sept to 31 Dec 2011 | B128: 37.6 | C128: 2011-09-27
A129: Updated Henderson Poverty Index to June 2011 rates | B129: 37.6 | C129: 2011-09-27
A130: Minimum deposit changed to 2% with genuine savings of 1% | B130: 37.7 | C130: 2011-11-08
A131: Interest rate decreased to 7.53% effective 14 Nov 11 | B131: 37.7 | C131: 2011-11-08
A132: Interest rate decreased to 7.28% effective 22 Dec 11 | B132: 37.8 | C132: 2011-12-10
A133: Incorporated facility to select repayment frequency for other debts | B133: 37.8 | C133: 2012-01-03
A134: Standard L70 loan - Income limit increased to $110,000 for families | B134: 37.9 | C134: 2012-01-27
A135: Debt ratio increased to 8% for familes - Standard L70 loan only | B135: 37.9 | C135: 2012-01-27
A136: Updated Henderson Poverty Index to Sept 11 data | B136: 37.9 | C136: 2012-01-27
A137: Interest rate increased by 0.08% to 7.36% effective 5 March 12 | B137: 38 | C137: 2012-02-27
A138: Updated Henderson Poverty Index to Dec 2011 figures | B138: 38.1 | C138: 2012-04-16
A139: Updated Centrelink benefits to rates effective 20 March to 30 June 2012. | B139: 38.1 | C139: 2012-04-16
A140: Interest rate decreased to 6.99% effective 14 May 2012 | B140: 38.2 | C140: 2012-05-11
A141: Income & debt ratio limit for couples is now max $110k & 8% | B141: 38.3 | C141: 2012-05-20
A142: Interest rate decreased by 0.22% to 6.77% effective 18 June 12 | B142: 38.4 | C142: 2012-06-10
A143: Updated DOH fees to new rates effective 1 July 2012. | B143: 38.4 | C143: 2012-06-10
A144: Updated income tax rates to new rates effective 1 July 2012 | B144: 38.4 | C144: 2012-06-10
A145: Updated Henderson Poverty Index to March 2012 figures | B145: 38.5 | C145: 2012-07-06
A146: Updated HECS to 2012-13 rates | B146: 38.5 | C146: 2012-07-06
A147: Updated Centrelink benefits to rates effective 1 July to 19 September 2012 | B147: 38.5 | C147: 2012-07-09
A148: Buffer reduced to 2.5% - Metro, regional & Gascoyne only | B148: 38.6 | C148: 2012-09-28
A149: Debt ratio increased to 10% for all loan products | B149: 38.6 | C149: 2012-09-28
A150: Income increased to $90,000 (singles) $110,000 couples & $130,000 (couples & families) - Metro | B150: 38.6 | C150: 2012-09-28
A151: Income increased to $110,000 (singles) & $130,000 (Couples/families) - Regional areas | B151: 38.6 | C151: 2012-10-18
A152: Income increased to $120,000 (singles) & $150,000 (couples & families - Kimberley | B152: 38.6 | C152: 2012-10-18
A153: Income increased to $150,000 (singles & $180,000 (couples & families) - Pilbara | B153: 38.6 | C153: 2012-10-18
A154: Max purchase price for standard loan increased to $450,000 (metro) | B154: 38.6 | C154: 2012-10-18
A155: Max purchase price for standard loan increased to $500,000 (regional) | B155: 38.6 | C155: 2012-10-18
A156: Max purchase price for standard loan increased to $700,000 (Kimberley) | B156: 38.6 | C156: 2012-10-18
A157: Max purchase price for standard loan increased to $850,00 (Pilbara) | B157: 38.6 | C157: 2012-10-18
A158: 2% deposit / 1% genuine savings - Metro $0 - $450,000 | B158: 38.6 | C158: 2012-10-18
A159: 5% deposit / 1% genuine savings - Regional $450,001 - $500,000 | B159: 38.6 | C159: 2012-10-18
A160: 7% deposit / 2% genuine savings - Kimberley & Pilbara $500,001 - $600,000 | B160: 38.6 | C160: 2012-10-18
A161: 8% deposit / 3% genuine savings - Kimberley & Pilbara $600,001 - $700,000 | B161: 38.6 | C161: 2012-10-18
A162: 9% deposit / 4% genuine savings - Pilbara $700,001 - $800,000 | B162: 38.6 | C162: 2012-10-18
A163: 10% deposit / 5% genuine savings - Pilbara $800,001 - $850,000 | B163: 38.6 | C163: 2012-10-18
A164: Updated Henderson Poverty Index data to June 2012 figures | B164: 38.6 | C164: 2012-10-03
A165: Interest rate decreased by 0.20% to 6.57% | B165: 38.6 | C165: 2012-10-12
A166: Interest rate decreased by 0.20% to 6.37% | B166: 38.7 | C166: 2012-12-14
A167: Updated Henderson Poverty Index data to Sept 2012 data | B167: 38.8 | C167: 2013-01-30
A168: Updated Henderson Poverty Index to dec 2012 data | B168: 38.9 | C168: 2013-05-03
A169: Updated Centrelink benefits to to rates effective 20 March to 30 Jun 2013 | B169: 38.9 | C169: 2013-05-03
A170: Interest rate decreased by 0.25% to 6.12% (new) & 5.34% (existing) eff 13 May 13 | B170: 38.9 | C170: 2013-05-08
A171: Updated Centrelink benefits to rates effective 1 July to 19 Sept 2013 | B171: 39 | C171: 2013-07-15
A172: Updated Henderson Poverty Index to Mar 13 Qtr data | B172: 39 | C172: 2013-07-24
A173: Interest Rate Amended to 5.86 | B173: 39.1 | C173: 2013-08-13
A174: FHOG increased to $10000 Construction & Reduced to $3000 Established | B174: 39.1 | C174: 2013-08-13
A175: Property
A176: Max purchase price for standard loan increased to $470,000 (metro & regional) | B176: 39.2
A177: Updated Centrelinks benefit to rates effect 20 Sept to 31 dec 2013 | B177: 39.3 | C177: 2013-09-22
A178: Updated Henderson Poverty Index to Jun 13 Qtr | B178: 39.3 | C178: 2013-10-22
A179: Annualising calculator changed to daily methodology | B179: 39.4 | C179: 2013-12-13
A180: Settlement agent fees increased to new rates effective 1 October 2013 | B180: 39.4 | C180: 2013-12-13
A181: Updated Henderson Poverty Index to Sept 13 Qtr data | B181: 39.4 | C181: 2014-01-22
A182: Income limits increased to $95,000 for singles (Metro only) | B182: 39.5 | C182: 2014-03-14
A183: Income limits to $135,000 for couples, siblings & families (Metro & regional only) | B183: 39.5 | C183: 2014-03-14
A184: Maximum purchase price increased to $480,000 (Metro only) | B184: 39.5 | C184: 2014-03-14
A185: Income limit decreased to $115k for couples & siblings (metro area only) | B185: 39.6 | C185: 2014-04-28
A186: Updated Henderson Poverty Index to Dec 13 Qtr | B186: 39.6 | C186: 2014-04-28
A187: Updated FHB stamp duty thresholds and rate to rates effect 1 Jul 14 | B187: 39.7 | C187: 2014-05-19
A188: Updated HECS and Medicare to new rates effective 1 Jul 14 | B188: 39.8 | C188: 2014-07-23
A189: Updated Centrelink benefits to rates effective 1 Jul 14 to 19 Sept 14 | B189: 39.8 | C189: 2014-08-01
A190: Updated HPI data to March 2014 quarter | B190: 39.9 | C190: 2014-08-18
A191: Created online assessment tool for release to broker network | B191: 1 | C191: 2015-01-30
A192: Updated Centrelink benefits to rates effective 20 Sept 14 to 31 Dec 14 | B192: 1 | C192: 2015-01-30
A193: Amended stamp duty rates on land to residential rates | B193: 1 | C193: 2015-01-30
A194: Interest rate decreased by 0.26% to 5.60% effect 12 Feb 15 | B194: 1.1 | C194: 2015-02-06
A195: Income limits reduced to $75k (singles), $95k (couples) & $115k (families) Metro & regional only) | B195: 1.2 | C195: 2015-05-01
A196: Maximum property value reduced to $600k (Kimberley) & $700k (Pilbara) | B196: 1.2 | C196: 2015-05-01
A197: Interest rate decreased by 0.22% to 5.38% effective 13 May 2015 | B197: 1.3 | C197: 2015-05-07
A198: Updated HPI to Dec 14 Qtr data | B198: 1.3 | C198: 2015-05-07
A199: Allowance for rates increased to $2500 per annum | B199: 1.3 | C199: 2015-05-07
A200: Incorporated suburb & postcode search facility | B200: 1.4
... 108 more rows
